Body,BodyName,InvoiceDate,ClearanceDate,UniqueReference,SupplierName,SupplierRefNo,Amount,DepartmentExpenseArea,ExpenseType,ExpenseCode,ExtendedDescription,AccountHolder,MerchantCategory
http://statistics.data.gov.uk/id/local-authority/43UM,WOKING BOROUGH COUNCIL,01/05/2022,01/05/2022,GPC/00018847,PARTY BUZ,PROCUREMENT CARD,23.09,INDEPENDENT LIVING SERVICES - HALE END COURT,CONTRIBUTION,P550,JUBILEE DECORATIONS,RIANNA MEME,MISC SPECIALITY RETAIL
http://statistics.data.gov.uk/id/local-authority/43UM,WOKING BOROUGH COUNCIL,01/05/2022,01/05/2022,GPC/00018834,THEWORKS,PROCUREMENT CARD,2.50,INDEPENDENT LIVING SERVICES - HALE END COURT,CONTRIBUTION,P550,CRAFT BUTTONS,RIANNA MEME,DISCOUNT STORES
http://statistics.data.gov.uk/id/local-authority/43UM,WOKING BOROUGH COUNCIL,02/05/2022,02/05/2022,GPC/00018846,AMZNMKTPLACE,PROCUREMENT CARD,5.66,HOUSING SERVICES - HOME IMPS & BEN AGENCY,HANDYPERSON MATERIALS,G201,CHARGER CABLE,MYCROFT HUNTER,MISC SPECIALITY RETAIL
http://statistics.data.gov.uk/id/local-authority/43UM,WOKING BOROUGH COUNCIL,02/05/2022,02/05/2022,GPC/00018843,AMZNMKTPLACE,PROCUREMENT CARD,103.80,NEIGHBOURHOOD SERVICES - WOMENS SUPPORT CENTRE,PROCUREMENT CARD,H990,AMAZON,DONNA DRUMMOND,MISC SPECIALITY RETAIL
http://statistics.data.gov.uk/id/local-authority/43UM,WOKING BOROUGH COUNCIL,02/05/2022,02/05/2022,GPC/00018839,SAINSBURYS PETROL,PROCUREMENT CARD,16.70,INDEPENDENT LIVING SERVICES - MEALS ON WHEELS,PETROL,F200,MOW PETROL,BERNADETTE MAHONEY,SERVICE STATIONS
http://statistics.data.gov.uk/id/local-authority/43UM,WOKING BOROUGH COUNCIL,02/05/2022,02/05/2022,GPC/00018845,SAINSBURYS PETROL,PROCUREMENT CARD,41.67,INDEPENDENT LIVING SERVICES - MEALS ON WHEELS,PETROL,F200,MOW PETROL,BERNADETTE MAHONEY,SERVICE STATIONS
http://statistics.data.gov.uk/id/local-authority/43UM,WOKING BOROUGH COUNCIL,02/05/2022,02/05/2022,GPC/00018836,SP BOMB COSMETICS UK,PROCUREMENT CARD,18.35,INDEPENDENT LIVING SERVICES - FAMILY SUPPORT PROGRAMME,PARKING COSTS,F510,CARD USED IN ERROR RATHER,RHIANNON STOKES,COSMETIC STORES
http://statistics.data.gov.uk/id/local-authority/43UM,WOKING BOROUGH COUNCIL,03/05/2022,03/05/2022,GPC/00018859,3C_*WOKING BOROUGH COUNC,PROCUREMENT CARD,6.33,HOUSING SERVICES - SHEERWATER REGENERATION,TRAVEL EXPENSES-OFFICERS,F600,PARKING FOR LEE JOLIFFE,BEN JONES,AUTO PARKING LOTS/GARAGES
http://statistics.data.gov.uk/id/local-authority/43UM,WOKING BOROUGH COUNCIL,03/05/2022,03/05/2022,GPC/00018850,3C_*WOKING BOROUGH COUNC,PROCUREMENT CARD,6.33,HOUSING SERVICES - SHEERWATER REGENERATION,TRAVEL EXPENSES-OFFICERS,F600,PARKING FOR MEETING,BEN JONES,AUTO PARKING LOTS/GARAGES
http://statistics.data.gov.uk/id/local-authority/43UM,WOKING BOROUGH COUNCIL,03/05/2022,03/05/2022,GPC/00018860,CATERING APPLIANCE SUP,PROCUREMENT CARD,491.99,INDEPENDENT LIVING SERVICES - HALE END COURT,PROVISIONS,G410,BBQ FOR HALE END,MRS M CHILCOTT,CATERERS
http://statistics.data.gov.uk/id/local-authority/43UM,WOKING BOROUGH COUNCIL,03/05/2022,03/05/2022,GPC/00018853,CHALLENGE FENCING,PROCUREMENT CARD,60.03,HOUSING SERVICES - HOME IMPS & BEN AGENCY,HANDYPERSON MATERIALS,G201,HANDYPERSON MATERIALS,LEIGH ROBERTS,LUMBER/BUILD SUPPLY STORES
http://statistics.data.gov.uk/id/local-authority/43UM,WOKING BOROUGH COUNCIL,03/05/2022,03/05/2022,GPC/00018849,CLEARCHECK.CO.UK,PROCUREMENT CARD,8.00,CORPORATE MANAGEMENT GROUP - STAFF TRAINING/GENERAL COSTS,CRIMINAL RECORDS BUREAU FEES,H642,DBS FEE,MRS SARAH REED,PROFESSIONAL SERVICES - DEF
http://statistics.data.gov.uk/id/local-authority/43UM,WOKING BOROUGH COUNCIL,03/05/2022,03/05/2022,GPC/00018854,CLOUD NEXT,PROCUREMENT CARD,25.98,INFORMATION TECHNOLOGY - I.T.S. ICT,PC & SERVER SYSTEMS SOFTWARE,G193,DOMAIN RENEWAL,ANDREW GRESHAM,COMPUTERS/PERIPHERALS/SOFTWARE
http://statistics.data.gov.uk/id/local-authority/43UM,WOKING BOROUGH COUNCIL,03/05/2022,03/05/2022,GPC/00018861,CO-OP GROUP FOOD,PROCUREMENT CARD,13.50,INDEPENDENT LIVING SERVICES - MEALS SERVICE - ST MARYS,PROVISIONS,G410,CAFE SUPPLIES,BEVERLEY PARISH,GROCERY STORES
http://statistics.data.gov.uk/id/local-authority/43UM,WOKING BOROUGH COUNCIL,03/05/2022,03/05/2022,GPC/00018848,DISCLOSURE AND BARRING,PROCUREMENT CARD,18.00,CORPORATE MANAGEMENT GROUP - STAFF TRAINING/GENERAL COSTS,CRIMINAL RECORDS BUREAU FEES,H642,BASIC DBS CHECK,MRS SARAH REED,GOV'T SERV - DEFAULT
http://statistics.data.gov.uk/id/local-authority/43UM,WOKING BOROUGH COUNCIL,03/05/2022,03/05/2022,GPC/00018862,HOBBYCRAFT,PROCUREMENT CARD,45.00,INDEPENDENT LIVING SERVICES - FAMILY SUPPORT PROGRAMME,EQUIPMENT,G100,TALKING TEENS GROUP EQUIPMENT,DONNA DRUMMOND,ARTIST/CRAFT SHOPS
http://statistics.data.gov.uk/id/local-authority/43UM,WOKING BOROUGH COUNCIL,03/05/2022,03/05/2022,GPC/00018858,HOMEBASE LTD 084,PROCUREMENT CARD,5.00,HOUSING SERVICES - HOME IMPS & BEN AGENCY,HANDYPERSON MATERIALS,G201,HANDYPERSON MATERIALS,LEIGH ROBERTS,HOME SUPPLY WAREHOUSE STORES
http://statistics.data.gov.uk/id/local-authority/43UM,WOKING BOROUGH COUNCIL,03/05/2022,03/05/2022,GPC/00018852,RSS KNAPHILL,PROCUREMENT CARD,101.79,HOUSING SERVICES - HOME IMPS & BEN AGENCY,TRAVEL EXPENSES-OFFICERS,F600,FUEL FOR HANDYPERSON VAN,IAN DEANE,SERVICE STATIONS
http://statistics.data.gov.uk/id/local-authority/43UM,WOKING BOROUGH COUNCIL,03/05/2022,03/05/2022,GPC/00018938,THE WORKS,PROCUREMENT CARD,13.33,CORPORATE STRATEGY - DEMOCRATIC REPRESENTATION,MEMBERS MISC ALLOWANCES,H291,FOLDERS FOR NEW CLLRS,HANNA TAYLOR,DISCOUNT STORES
http://statistics.data.gov.uk/id/local-authority/43UM,WOKING BOROUGH COUNCIL,03/05/2022,03/05/2022,GPC/00018855,WH SMITH,PROCUREMENT CARD,9.97,CORPORATE STRATEGY - DEMOCRATIC REPRESENTATION,MEMBERS MISC ALLOWANCES,H291,FOLDERS FOR NEW CLLRS,HANNA TAYLOR,NEWS DEALERS/NEWSSTANDS
http://statistics.data.gov.uk/id/local-authority/43UM,WOKING BOROUGH COUNCIL,03/05/2022,03/05/2022,GPC/00018857,WICKES WOKING,PROCUREMENT CARD,9.48,HOUSING SERVICES - HOME IMPS & BEN AGENCY,HANDYPERSON MATERIALS,G201,HANDYMAN MATERIALS,JASON BALCHIN,HOME SUPPLY WAREHOUSE STORES
http://statistics.data.gov.uk/id/local-authority/43UM,WOKING BOROUGH COUNCIL,03/05/2022,03/05/2022,GPC/00018856,WWW.BANNERUK.COM,PROCUREMENT CARD,1.36,ASSET MANAGEMENT - CIVIC OFFICES,STATIONERY,G620,WHITE CORRECTION FLUID,MOLLY DOYLE,STATIONERY/OFFICE SUPPLIES
http://statistics.data.gov.uk/id/local-authority/43UM,WOKING BOROUGH COUNCIL,03/05/2022,03/05/2022,GPC/00018851,WWW.SCREWFIX.COM,PROCUREMENT CARD,84.59,ASSET MANAGEMENT - CIVIC OFFICES,CLOTHING/UNIFORMS,G510,WORK WEAR,DAVID RASBURN,LUMBER/BUILD SUPPLY STORES
http://statistics.data.gov.uk/id/local-authority/43UM,WOKING BOROUGH COUNCIL,01/05/2022,04/05/2022,0000477293/001,ACCESSABLE,01652000,"9,890.00",INFORMATION TECHNOLOGY - I.T.S. ICT,HOSTED SYSTEMS,G198,HOSTED SYSTEMS,INFORMATION TECHNOLOGY,INFORMATION COMMUNICATION TECHNOLOGY
http://statistics.data.gov.uk/id/local-authority/43UM,WOKING BOROUGH COUNCIL,31/03/2022,04/05/2022,0000477234/001,AECOM INFRASTRUCTURE&ENVIRONMENT UK LTD,01503100,"7,375.00",PLANNING SERVICES - BUILDING REGULATIONS,CONSULTANTS - STRUCTURAL WORKS,H688,CONSULTANTS - STRUCTURAL WORKS,PLANNING SERVICES,CONSULTANCY
http://statistics.data.gov.uk/id/local-authority/43UM,WOKING BOROUGH COUNCIL,23/04/2022,04/05/2022,0000477325/001,AFFINITY WATER,01095900,111.01,HOUSING SERVICES - LANDLORDS EXPENSES,WATER,D700,WATER,HOUSING SERVICES,UTILITIES
http://statistics.data.gov.uk/id/local-authority/43UM,WOKING BOROUGH COUNCIL,26/05/2022,04/05/2022,0000477295/002,ALPHABET (GB) LIMITED,00015200,-24.00,CORPORATE MANAGEMENT GROUP - LEASED CAR RELIEF,REVENUE CONTRIBUTIONS,T775,REVENUE CONTRIBUTIONS,CORPORATE MANAGEMENT GROUP,VEHICLE MANAGEMENT
http://statistics.data.gov.uk/id/local-authority/43UM,WOKING BOROUGH COUNCIL,26/05/2022,04/05/2022,0000477295/001,ALPHABET (GB) LIMITED,00015200,"3,084.04",CORPORATE MANAGEMENT GROUP - LEASED CAR PAYMENTS,PAYMENT TO LESSORS,T170,PAYMENT TO LESSORS,CORPORATE MANAGEMENT GROUP,VEHICLE MANAGEMENT
http://statistics.data.gov.uk/id/local-authority/43UM,WOKING BOROUGH COUNCIL,26/05/2022,04/05/2022,0000477295/003,ALPHABET (GB) LIMITED,00015200,24.00,CORPORATE MANAGEMENT GROUP - LEASED CAR PAYMENTS,PAYMENT TO LESSORS,T170,PAYMENT TO LESSORS,CORPORATE MANAGEMENT GROUP,VEHICLE MANAGEMENT
http://statistics.data.gov.uk/id/local-authority/43UM,WOKING BOROUGH COUNCIL,26/05/2022,04/05/2022,0000477295/005,ALPHABET (GB) LIMITED,00015200,290.07,CORPORATE MANAGEMENT GROUP - LEASED CAR PAYMENTS,PAYMENT TO LESSORS,T170,PAYMENT TO LESSORS,CORPORATE MANAGEMENT GROUP,VEHICLE MANAGEMENT
http://statistics.data.gov.uk/id/local-authority/43UM,WOKING BOROUGH COUNCIL,27/05/2022,04/05/2022,0000477297/001,ALPHABET (GB) LIMITED,00015200,-647.25,CORPORATE MANAGEMENT GROUP - LEASED CAR DEDUCTIONS,RECOVERABLE COSTS,T162,RECOVERABLE COSTS,CORPORATE MANAGEMENT GROUP,VEHICLE MANAGEMENT
http://statistics.data.gov.uk/id/local-authority/43UM,WOKING BOROUGH COUNCIL,27/05/2022,04/05/2022,0000477297/003,ALPHABET (GB) LIMITED,00015200,-64.72,CORPORATE MANAGEMENT GROUP - LEASED CAR DEDUCTIONS,RECOVERABLE COSTS,T162,RECOVERABLE COSTS,CORPORATE MANAGEMENT GROUP,VEHICLE MANAGEMENT
http://statistics.data.gov.uk/id/local-authority/43UM,WOKING BOROUGH COUNCIL,28/05/2022,04/05/2022,0000477299/001,ALPHABET (GB) LIMITED,00015200,65.00,CORPORATE MANAGEMENT GROUP - LEASED CAR DEDUCTIONS,RECOVERABLE COSTS,T162,RECOVERABLE COSTS,CORPORATE MANAGEMENT GROUP,VEHICLE MANAGEMENT
http://statistics.data.gov.uk/id/local-authority/43UM,WOKING BOROUGH COUNCIL,04/05/2022,04/05/2022,GPC/00018880,AMZNBUSINESS,PROCUREMENT CARD,7.84,INDEPENDENT LIVING SERVICES - MEALS SERVICE - HALE END COURT,PROVISIONS,G410,PANINI PAPERS FOR KITCHENS,REBECCA STEVENS,MISC SPECIALITY RETAIL
http://statistics.data.gov.uk/id/local-authority/43UM,WOKING BOROUGH COUNCIL,04/05/2022,04/05/2022,GPC/00018880,AMZNBUSINESS,PROCUREMENT CARD,7.83,INDEPENDENT LIVING SERVICES - MEALS SERVICE -THE VYNE,PROVISIONS,G410,PANINI PAPERS FOR KITCHENS,REBECCA STEVENS,MISC SPECIALITY RETAIL
http://statistics.data.gov.uk/id/local-authority/43UM,WOKING BOROUGH COUNCIL,04/05/2022,04/05/2022,GPC/00018880,AMZNBUSINESS,PROCUREMENT CARD,23.49,INDEPENDENT LIVING SERVICES - MEALS SERVICE - ST MARYS,PROVISIONS,G410,PANINI PAPERS FOR KITCHENS,REBECCA STEVENS,MISC SPECIALITY RETAIL
http://statistics.data.gov.uk/id/local-authority/43UM,WOKING BOROUGH COUNCIL,04/05/2022,04/05/2022,GPC/00018865,AMZNMKTPLACE,PROCUREMENT CARD,22.47,NEIGHBOURHOOD SERVICES - CPZ WBC FROM 25/7/05,EQUIPMENT,G100,CHARGERS FOR CEO HHS,RICHARD TAYLOR,MISC SPECIALITY RETAIL
http://statistics.data.gov.uk/id/local-authority/43UM,WOKING BOROUGH COUNCIL,04/05/2022,04/05/2022,GPC/00018882,AMZNMKTPLACE,PROCUREMENT CARD,10.60,NEIGHBOURHOOD SERVICES - CPZ WBC FROM 25/7/05,EQUIPMENT,G100,CHARGERS FOR CEO HHS,RICHARD TAYLOR,MISC SPECIALITY RETAIL
http://statistics.data.gov.uk/id/local-authority/43UM,WOKING BOROUGH COUNCIL,04/05/2022,04/05/2022,GPC/00018869,AMZNMKTPLACE,PROCUREMENT CARD,33.32,NEIGHBOURHOOD SERVICES - MUSLIM BURIAL GRND PEACE GARDE,MAINTENANCE/MINOR WORKS,D211,CHLORINE TABLETS FOR PEACE GARDEN,DAVID RASBURN,MISC SPECIALITY RETAIL
http://statistics.data.gov.uk/id/local-authority/43UM,WOKING BOROUGH COUNCIL,04/05/2022,04/05/2022,GPC/00018878,AMZNMKTPLACE,PROCUREMENT CARD,7.49,INDEPENDENT LIVING SERVICES - FAMILY CENTRES,STATIONERY,G620,LAMINATING POUCHES,NASREEN FAROOQ,MISC SPECIALITY RETAIL
http://statistics.data.gov.uk/id/local-authority/43UM,WOKING BOROUGH COUNCIL,04/05/2022,04/05/2022,GPC/00018867,AMZNMKTPLACE,PROCUREMENT CARD,7.33,INDEPENDENT LIVING SERVICES - YOUTH DEVELOPMENT,EQUIPMENT,G100,WOKING BC YOUTH PROGRAMME,SANDIE BOLGER,MISC SPECIALITY RETAIL
http://statistics.data.gov.uk/id/local-authority/43UM,WOKING BOROUGH COUNCIL,04/05/2022,04/05/2022,GPC/00018871,AMZNMKTPLACE,PROCUREMENT CARD,19.97,INDEPENDENT LIVING SERVICES - MOORCROFT,FIXTURES & FITTINGS - NEW,D800,CARETAKER TOOLS,RICHARD BUCKENHAM,MISC SPECIALITY RETAIL
http://statistics.data.gov.uk/id/local-authority/43UM,WOKING BOROUGH COUNCIL,04/05/2022,04/05/2022,GPC/00018863,AMZNMKTPLACE,PROCUREMENT CARD,45.75,INDEPENDENT LIVING SERVICES - MOORCROFT,FIXTURES & FITTINGS - NEW,D800,CARETAKERS TOOLS,RICHARD BUCKENHAM,MISC SPECIALITY RETAIL
http://statistics.data.gov.uk/id/local-authority/43UM,WOKING BOROUGH COUNCIL,04/05/2022,04/05/2022,GPC/00018864,AMZNMKTPLACE,PROCUREMENT CARD,21.66,INDEPENDENT LIVING SERVICES - MOORCROFT,FIXTURES & FITTINGS - NEW,D800,CARETAKERS TOOLS,RICHARD BUCKENHAM,MISC SPECIALITY RETAIL
http://statistics.data.gov.uk/id/local-authority/43UM,WOKING BOROUGH COUNCIL,01/05/2022,04/05/2022,0000477211/001,APETITO LTD,00186100,"2,873.34",INDEPENDENT LIVING SERVICES - MEALS ON WHEELS,VEHICLE LEASING COSTS,F400,VEHICLE LEASING COSTS,INDEPENDENT LIVING SERVICES,CATERING
http://statistics.data.gov.uk/id/local-authority/43UM,WOKING BOROUGH COUNCIL,03/05/2022,04/05/2022,0000477361/001,ARTICLE SEVEN,00942800,206.25,INFORMATION TECHNOLOGY - I.T.S. ICT,PC & SERVER SYSTEMS SOFTWARE,G193,PC & SERVER SYSTEMS SOFTWARE,INFORMATION TECHNOLOGY,FACILITIES & MANAGEMENT SERVICES
http://statistics.data.gov.uk/id/local-authority/43UM,WOKING BOROUGH COUNCIL,27/04/2022,04/05/2022,0000477162/001,ARTON MONOSEAL LTD,40470800,145.00,HOUSING SERVICES - DISABLED FACILITIES GRANTS,MANDATORY GRANTS,Q712,MANDATORY GRANTS,HOUSING SERVICES,WORKS (CONSTRUCTION REPAIR MAINTENANCE)
http://statistics.data.gov.uk/id/local-authority/43UM,WOKING BOROUGH COUNCIL,27/04/2022,04/05/2022,0000477165/001,ARTON MONOSEAL LTD,40470800,145.00,HOUSING SERVICES - DISABLED FACILITIES GRANTS,MANDATORY GRANTS,Q712,MANDATORY GRANTS,HOUSING SERVICES,WORKS (CONSTRUCTION REPAIR MAINTENANCE)
http://statistics.data.gov.uk/id/local-authority/43UM,WOKING BOROUGH COUNCIL,27/04/2022,04/05/2022,0000477187/001,ARTON MONOSEAL LTD,40470800,145.00,HOUSING SERVICES - DISABLED FACILITIES GRANTS,MANDATORY GRANTS,Q712,MANDATORY GRANTS,HOUSING SERVICES,WORKS (CONSTRUCTION REPAIR MAINTENANCE)
http://statistics.data.gov.uk/id/local-authority/43UM,WOKING BOROUGH COUNCIL,27/04/2022,04/05/2022,0000477187/002,ARTON MONOSEAL LTD,40470800,145.00,HOUSING SERVICES - DISABLED FACILITIES GRANTS,MANDATORY GRANTS,Q712,MANDATORY GRANTS,HOUSING SERVICES,WORKS (CONSTRUCTION REPAIR MAINTENANCE)
http://statistics.data.gov.uk/id/local-authority/43UM,WOKING BOROUGH COUNCIL,27/04/2022,04/05/2022,0000477188/001,ARTON MONOSEAL LTD,40470800,145.00,HOUSING SERVICES - DISABLED FACILITIES GRANTS,MANDATORY GRANTS,Q712,MANDATORY GRANTS,HOUSING SERVICES,WORKS (CONSTRUCTION REPAIR MAINTENANCE)
http://statistics.data.gov.uk/id/local-authority/43UM,WOKING BOROUGH COUNCIL,27/04/2022,04/05/2022,0000477188/002,ARTON MONOSEAL LTD,40470800,145.00,HOUSING SERVICES - DISABLED FACILITIES GRANTS,MANDATORY GRANTS,Q712,MANDATORY GRANTS,HOUSING SERVICES,WORKS (CONSTRUCTION REPAIR MAINTENANCE)
http://statistics.data.gov.uk/id/local-authority/43UM,WOKING BOROUGH COUNCIL,26/04/2022,04/05/2022,0000477149/001,ASTOR CARE & NURSING AGENCY,01531000,177.64,INDEPENDENT LIVING SERVICES - BATHING SERVICE,SERVICE PROVIDER,H730,SERVICE PROVIDER,INDEPENDENT LIVING SERVICES,SOCIAL COMMUNITY CARE SUP & SERV (ADULT)
http://statistics.data.gov.uk/id/local-authority/43UM,WOKING BOROUGH COUNCIL,25/04/2022,04/05/2022,0000477317/001,BENTLEY MOBILITY SERVICES LTD,40462300,705.00,HOUSING SERVICES - STATUTORU HRA,HRA STATUTORY,D116,HRA STATUTORY,HOUSING SERVICES,WORKS (CONSTRUCTION REPAIR MAINTENANCE)
http://statistics.data.gov.uk/id/local-authority/43UM,WOKING BOROUGH COUNCIL,25/04/2022,04/05/2022,0000477316/001,BENTLEY MOBILITY SERVICES LTD,40462300,773.20,HOUSING SERVICES - RESPONSIVE REPARS HRA,HRA REPAIRS CONTRACTOR,D112,HRA REPAIRS CONTRACTOR,HOUSING SERVICES,WORKS (CONSTRUCTION REPAIR MAINTENANCE)
http://statistics.data.gov.uk/id/local-authority/43UM,WOKING BOROUGH COUNCIL,29/04/2022,04/05/2022,0000477279/001,BOLLSCAR BUILDERS LTD,41003800,"4,513.19",HOUSING SERVICES - TEMPORARY ACCOMMODATION,SCHED 1B VOIDS,D166,SCHED 1B VOIDS,HOUSING SERVICES,CLEANING & JANITORIAL
http://statistics.data.gov.uk/id/local-authority/43UM,WOKING BOROUGH COUNCIL,22/04/2022,04/05/2022,0000477205/001,BOLLSCAR BUILDERS LTD,41003800,"10,430.95",HOUSING SERVICES - PRIVATE SECTOR LEASING SCHEME,SCHED 1B VOIDS,D166,SCHED 1B VOIDS,HOUSING SERVICES,CLEANING & JANITORIAL
http://statistics.data.gov.uk/id/local-authority/43UM,WOKING BOROUGH COUNCIL,22/04/2022,04/05/2022,0000477206/001,BOLLSCAR BUILDERS LTD,41003800,"21,941.82",HOUSING SERVICES - PRIVATE SECTOR LEASING SCHEME,SCHED 1B VOIDS,D166,SCHED 1B VOIDS,HOUSING SERVICES,CLEANING & JANITORIAL
http://statistics.data.gov.uk/id/local-authority/43UM,WOKING BOROUGH COUNCIL,22/04/2022,04/05/2022,0000477207/001,BOLLSCAR BUILDERS LTD,41003800,"9,244.16",HOUSING SERVICES - NVH VOIDS (REVENUE),SCHED 1B VOIDS,D166,SCHED 1B VOIDS,HOUSING SERVICES,CLEANING & JANITORIAL
http://statistics.data.gov.uk/id/local-authority/43UM,WOKING BOROUGH COUNCIL,29/04/2022,04/05/2022,0000477278/001,BOLLSCAR BUILDERS LTD,41003800,"5,662.11",HOUSING SERVICES - NVH VOIDS (REVENUE),SCHED 1B VOIDS,D166,SCHED 1B VOIDS,HOUSING SERVICES,CLEANING & JANITORIAL
http://statistics.data.gov.uk/id/local-authority/43UM,WOKING BOROUGH COUNCIL,29/04/2022,04/05/2022,0000477280/001,BOLLSCAR BUILDERS LTD,41003800,"17,491.27",HOUSING SERVICES - NVH VOIDS (REVENUE),SCHED 1B VOIDS,D166,SCHED 1B VOIDS,HOUSING SERVICES,CLEANING & JANITORIAL
http://statistics.data.gov.uk/id/local-authority/43UM,WOKING BOROUGH COUNCIL,22/04/2022,04/05/2022,0000477208/001,BOLLSCAR BUILDERS LTD,41003800,794.19,HOUSING SERVICES - PINNACLE DAY TO DAY REPAIRS,SCHED 1A RESPONSIVE REPAIRS,D165,SCHED 1A RESPONSIVE REPAIRS,HOUSING SERVICES,CLEANING & JANITORIAL
http://statistics.data.gov.uk/id/local-authority/43UM,WOKING BOROUGH COUNCIL,22/04/2022,04/05/2022,0000477209/001,BOLLSCAR BUILDERS LTD,41003800,"1,042.53",HOUSING SERVICES - PINNACLE DAY TO DAY REPAIRS,SCHED 1A RESPONSIVE REPAIRS,D165,SCHED 1A RESPONSIVE REPAIRS,HOUSING SERVICES,CLEANING & JANITORIAL
http://statistics.data.gov.uk/id/local-authority/43UM,WOKING BOROUGH COUNCIL,29/04/2022,04/05/2022,0000477277/001,BOLLSCAR BUILDERS LTD,41003800,"1,062.17",HOUSING SERVICES - PINNACLE DAY TO DAY REPAIRS,SCHED 1A RESPONSIVE REPAIRS,D165,SCHED 1A RESPONSIVE REPAIRS,HOUSING SERVICES,CLEANING & JANITORIAL
http://statistics.data.gov.uk/id/local-authority/43UM,WOKING BOROUGH COUNCIL,07/04/2022,04/05/2022,0000476832/001,BRITISH GAS,01736300,78.49,HOUSING SERVICES - LANDLORDS EXPENSES,GAS,D420,GAS,HOUSING SERVICES,UTILITIES
http://statistics.data.gov.uk/id/local-authority/43UM,WOKING BOROUGH COUNCIL,25/04/2022,04/05/2022,0000477101/001,BT GLOBAL SERVICES,01298100,"1,151.15",INFORMATION TECHNOLOGY - COMMUNICATIONS,NETWORK CIRCUITS,G800,NETWORK CIRCUITS,INFORMATION TECHNOLOGY,INFORMATION COMMUNICATION TECHNOLOGY
http://statistics.data.gov.uk/id/local-authority/43UM,WOKING BOROUGH COUNCIL,14/03/2022,04/05/2022,0000475833/001,CAPITA BUSINESS SERVICES LTD,00585800,"49,825.00",INFORMATION TECHNOLOGY - I.T.S. ICT,PC & SERVER SYSTEMS SOFTWARE,G193,PC & SERVER SYSTEMS SOFTWARE,INFORMATION TECHNOLOGY,CONSULTANCY
http://statistics.data.gov.uk/id/local-authority/43UM,WOKING BOROUGH COUNCIL,26/04/2022,04/05/2022,0000477186/001,CASTLE WATER LIMITED,40650200,23.90,HOUSING SERVICES - LANDLORDS EXPENSES,WATER,D700,WATER,HOUSING SERVICES,UTILITIES
http://statistics.data.gov.uk/id/local-authority/43UM,WOKING BOROUGH COUNCIL,26/04/2022,04/05/2022,0000477159/001,CASTLE WATER LIMITED,40650200,46.72,INDEPENDENT LIVING SERVICES - MOORCROFT,WATER,D700,WATER,INDEPENDENT LIVING SERVICES,UTILITIES
http://statistics.data.gov.uk/id/local-authority/43UM,WOKING BOROUGH COUNCIL,27/04/2022,04/05/2022,0000477181/001,CASTLE WATER LIMITED,40650200,20.24,ASSET MANAGEMENT - UNIT 15A MON WAY EAST,WATER,D700,WATER,ASSET MANAGEMENT,UTILITIES
http://statistics.data.gov.uk/id/local-authority/43UM,WOKING BOROUGH COUNCIL,27/04/2022,04/05/2022,0000477178/001,CASTLE WATER LIMITED,40650200,12.93,ASSET MANAGEMENT - TOWN CENTRE LEISURE,WATER,D700,WATER,ASSET MANAGEMENT,UTILITIES
http://statistics.data.gov.uk/id/local-authority/43UM,WOKING BOROUGH COUNCIL,17/02/2022,04/05/2022,0000475096/001,CITY ELECTRICAL FACTORS LIMITED,41000200,938.78,NEIGHBOURHOOD SERVICES - OTHER CAR PARKS,R&M BUILDINGS - CONTRACTORS,D100,R&M BUILDINGS - CONTRACTORS,NEIGHBOURHOOD SERVICES,FACILITIES & MANAGEMENT SERVICES
http://statistics.data.gov.uk/id/local-authority/43UM,WOKING BOROUGH COUNCIL,20/04/2022,04/05/2022,0000477002/001,CLARK & KENT CONTRACTORS,41021700,"60,502.50",NEIGHBOURHOOD SERVICES - GOLDSWORTH PK CYCLE PARK,MAIN CONTRACTOR,Q200,MAIN CONTRACTOR,NEIGHBOURHOOD SERVICES,BUILDING CONSTRUCTION MATERIALS
http://statistics.data.gov.uk/id/local-authority/43UM,WOKING BOROUGH COUNCIL,31/03/2022,04/05/2022,0000477235/001,CORAM LIFE EDUCATION,01341900,"5,301.00",CORPORATE STRATEGY - GRANTS TO ORGANISATION,GRANTS,H100,GRANTS,CORPORATE STRATEGY,FINANCIAL SERVICES
http://statistics.data.gov.uk/id/local-authority/43UM,WOKING BOROUGH COUNCIL,27/04/2022,04/05/2022,0000477171/001,CRE8TE DESIGN LIMITED,40950600,600.00,ASSET MANAGEMENT - DUKES COURT,MARKETING,H406,MARKETING,ASSET MANAGEMENT,CONSULTANCY
http://statistics.data.gov.uk/id/local-authority/43UM,WOKING BOROUGH COUNCIL,24/03/2022,04/05/2022,0000476300/001,CROYDON COUNCIL,01650500,"15,571.50",FINANCIAL SERVICES - AUDIT,INTERNAL AUDIT CONTRACT,J660,INTERNAL AUDIT CONTRACT,FINANCIAL SERVICES,HUMAN RESOURCES
http://statistics.data.gov.uk/id/local-authority/43UM,WOKING BOROUGH COUNCIL,30/03/2022,04/05/2022,0000476376/001,CROYDON COUNCIL,01650500,"20,193.00",FINANCIAL SERVICES - AUDIT,INTERNAL AUDIT CONTRACT,J660,INTERNAL AUDIT CONTRACT,FINANCIAL SERVICES,HUMAN RESOURCES
http://statistics.data.gov.uk/id/local-authority/43UM,WOKING BOROUGH COUNCIL,29/04/2022,04/05/2022,0000477274/001,DIGITAL FACTORY LTD,40417300,480.00,ASSET MANAGEMENT - HIF COMMUNICATIONS WORK,CAPITAL BUDGET CODE ONLY,Q000,CAPITAL BUDGET CODE ONLY,ASSET MANAGEMENT,WORKS (CONSTRUCTION REPAIR MAINTENANCE)
http://statistics.data.gov.uk/id/local-authority/43UM,WOKING BOROUGH COUNCIL,31/03/2022,04/05/2022,0000476764/001,DMD COURIERS LIMITED,00957600,690.56,CORPORATE STRATEGY - CORPORATE STRATEGY GENERAL EXP,COURIER SERVICES - EXTERNAL,G618,COURIER SERVICES - EXTERNAL,CORPORATE STRATEGY,MAIL SERVICES
http://statistics.data.gov.uk/id/local-authority/43UM,WOKING BOROUGH COUNCIL,07/04/2022,04/05/2022,0000476882/001,E.ON ENERGY SOLUTIONS LIMITED,40941500,121.68,HOUSING SERVICES - LANDLORDS EXPENSES,GAS,D420,GAS,HOUSING SERVICES,UTILITIES
http://statistics.data.gov.uk/id/local-authority/43UM,WOKING BOROUGH COUNCIL,30/04/2022,04/05/2022,0000477331/001,EMCOR GROUP (UK) PLC,00004600,"9,552.33",INFORMATION TECHNOLOGY - I.T.S. ICT,EXPORT HOUSE CHARGES,G131,EXPORT HOUSE CHARGES,INFORMATION TECHNOLOGY,WORKS (CONSTRUCTION REPAIR MAINTENANCE)
http://statistics.data.gov.uk/id/local-authority/43UM,WOKING BOROUGH COUNCIL,22/04/2022,04/05/2022,0000477222/001,FAITH RECRUITMENT,01709500,41.37,PLANNING SERVICES - DEVELOPMENT CONTROL,TEMPORARY STAFF,A110,TEMPORARY STAFF,PLANNING SERVICES,HUMAN RESOURCES
http://statistics.data.gov.uk/id/local-authority/43UM,WOKING BOROUGH COUNCIL,15/04/2022,04/05/2022,0000477053/001,FAITH RECRUITMENT,01709500,502.50,NEIGHBOURHOOD SERVICES - PARKING SERVICES,TEMPORARY STAFF,A110,TEMPORARY STAFF,NEIGHBOURHOOD SERVICES,HUMAN RESOURCES
http://statistics.data.gov.uk/id/local-authority/43UM,WOKING BOROUGH COUNCIL,22/04/2022,04/05/2022,0000477218/001,FAITH RECRUITMENT,01709500,502.50,NEIGHBOURHOOD SERVICES - PARKING SERVICES,TEMPORARY STAFF,A110,TEMPORARY STAFF,NEIGHBOURHOOD SERVICES,HUMAN RESOURCES
http://statistics.data.gov.uk/id/local-authority/43UM,WOKING BOROUGH COUNCIL,15/04/2022,04/05/2022,0000477057/001,FAITH RECRUITMENT,01709500,532.06,CORPORATE STRATEGY - CUSTOMER SERVICES,TEMPORARY STAFF,A110,TEMPORARY STAFF,CORPORATE STRATEGY,HUMAN RESOURCES
http://statistics.data.gov.uk/id/local-authority/43UM,WOKING BOROUGH COUNCIL,22/04/2022,04/05/2022,0000477221/001,FAITH RECRUITMENT,01709500,532.06,CORPORATE STRATEGY - CUSTOMER SERVICES,TEMPORARY STAFF,A110,TEMPORARY STAFF,CORPORATE STRATEGY,HUMAN RESOURCES
http://statistics.data.gov.uk/id/local-authority/43UM,WOKING BOROUGH COUNCIL,28/04/2022,04/05/2022,0000477195/001,FLYING UMBRELLA,41022200,"1,000.00",REVENUES AND BENEFITS - BENEFIT SERVICES,TEMPORARY STAFF,A110,TEMPORARY STAFF,REVENUES AND BENEFITS,HUMAN RESOURCES
http://statistics.data.gov.uk/id/local-authority/43UM,WOKING BOROUGH COUNCIL,02/05/2022,04/05/2022,0000477359/001,FRONTLINE PROTECTION SGD LTD,40542500,524.99,HOUSING SERVICES - 121 CHERTSEY ROAD,CARETAKING/SECURITY,D995,CARETAKING/SECURITY,HOUSING SERVICES,FACILITIES & MANAGEMENT SERVICES
http://statistics.data.gov.uk/id/local-authority/43UM,WOKING BOROUGH COUNCIL,27/04/2022,04/05/2022,0000477196/001,GARY LEA,40308200,550.00,CORPORATE STRATEGY - FREEDOM OF THE BOROUGH,EQUIPMENT,G100,EQUIPMENT,CORPORATE STRATEGY,FINANCIAL SERVICES
http://statistics.data.gov.uk/id/local-authority/43UM,WOKING BOROUGH COUNCIL,24/04/2022,04/05/2022,0000477070/001,GARY LEA,40308200,220.00,ASSET MANAGEMENT - FACILITIES MANAGEMENT,FACILITIES MANAGEMENT REPAIRS,D908,FACILITIES MANAGEMENT REPAIRS,ASSET MANAGEMENT,FINANCIAL SERVICES
http://statistics.data.gov.uk/id/local-authority/43UM,WOKING BOROUGH COUNCIL,24/04/2022,04/05/2022,0000477071/001,GARY LEA,40308200,180.00,ASSET MANAGEMENT - FACILITIES MANAGEMENT,FACILITIES MANAGEMENT REPAIRS,D908,FACILITIES MANAGEMENT REPAIRS,ASSET MANAGEMENT,FINANCIAL SERVICES
http://statistics.data.gov.uk/id/local-authority/43UM,WOKING BOROUGH COUNCIL,27/04/2022,04/05/2022,0000477170/001,GARY LEA,40308200,150.00,CORPORATE STRATEGY - BOROUGH ELECTIONS,PUBLICITY,H405,PUBLICITY,CORPORATE STRATEGY,FINANCIAL SERVICES
http://statistics.data.gov.uk/id/local-authority/43UM,WOKING BOROUGH COUNCIL,27/04/2022,04/05/2022,0000477226/001,GASP MOTOR PROJECT,40753900,"2,736.00",CORPORATE STRATEGY - GRANTS TO ORGANISATION,GRANTS,H100,GRANTS,CORPORATE STRATEGY,CONSULTANCY
http://statistics.data.gov.uk/id/local-authority/43UM,WOKING BOROUGH COUNCIL,01/04/2022,04/05/2022,0000476445/001,GEMINI CONSULTANTS LTD,01152000,"9,447.99",HOUSING SERVICES - HOUSING ADVANCES-ADMIN,PAYMENTS TO CONTRACTOR,J791,PAYMENTS TO CONTRACTOR,HOUSING SERVICES,CONSULTANCY
http://statistics.data.gov.uk/id/local-authority/43UM,WOKING BOROUGH COUNCIL,26/04/2022,04/05/2022,0000477335/001,GIANT DECKCHAIRS LTD,41024100,30.00,CORPORATE STRATEGY - CELEBRATE WOKING - MARKETING/PROMO 14,MAIN CONTRACTOR,Q200,MAIN CONTRACTOR,CORPORATE STRATEGY,DOMESTIC GOODS
http://statistics.data.gov.uk/id/local-authority/43UM,WOKING BOROUGH COUNCIL,26/04/2022,04/05/2022,0000477335/002,GIANT DECKCHAIRS LTD,41024100,"1,586.00",CORPORATE STRATEGY - CELEBRATE WOKING - MARKETING/PROMO 14,MAIN CONTRACTOR,Q200,MAIN CONTRACTOR,CORPORATE STRATEGY,DOMESTIC GOODS
http://statistics.data.gov.uk/id/local-authority/43UM,WOKING BOROUGH COUNCIL,26/04/2022,04/05/2022,0065000289/001,GIUSEPPE AMICO,40558700,15.50,HOUSING SERVICES - NVH VOIDS (REVENUE),SCHED 1B VOIDS,D166,SCHED 1B VOIDS,HOUSING SERVICES,HUMAN RESOURCES
http://statistics.data.gov.uk/id/local-authority/43UM,WOKING BOROUGH COUNCIL,26/04/2022,04/05/2022,0065000290/001,GIUSEPPE AMICO,40558700,12.99,HOUSING SERVICES - NVH VOIDS (REVENUE),SCHED 1B VOIDS,D166,SCHED 1B VOIDS,HOUSING SERVICES,HUMAN RESOURCES
http://statistics.data.gov.uk/id/local-authority/43UM,WOKING BOROUGH COUNCIL,26/04/2022,04/05/2022,0000477108/001,GULSAY DURMUS,40961500,120.00,NEIGHBOURHOOD SERVICES - SPORTS DEVELOPMENT,COACH EDUCATION,H657,COACH EDUCATION,NEIGHBOURHOOD SERVICES,ARTS & LEISURE SERVICES
http://statistics.data.gov.uk/id/local-authority/43UM,WOKING BOROUGH COUNCIL,19/04/2022,04/05/2022,0000477122/001,H M SUPPLIES LTD,40820600,36.66,NEIGHBOURHOOD SERVICES - SURREY HEATH ON STREET PARKING,CLOTHING/UNIFORMS,G510,CLOTHING/UNIFORMS,NEIGHBOURHOOD SERVICES,FINANCIAL SERVICES
http://statistics.data.gov.uk/id/local-authority/43UM,WOKING BOROUGH COUNCIL,28/04/2022,04/05/2022,0000477192/001,H M SUPPLIES LTD,40820600,16.66,NEIGHBOURHOOD SERVICES - SURREY HEATH ON STREET PARKING,CLOTHING/UNIFORMS,G510,CLOTHING/UNIFORMS,NEIGHBOURHOOD SERVICES,FINANCIAL SERVICES
http://statistics.data.gov.uk/id/local-authority/43UM,WOKING BOROUGH COUNCIL,21/04/2022,04/05/2022,0000477286/001,HEADLINE DESIGN & PRINT,00016900,"2,600.00",CORPORATE STRATEGY - PUBLIC RELATIONS,PUBLICATIONS,G606,PUBLICATIONS,CORPORATE STRATEGY,FINANCIAL SERVICES
http://statistics.data.gov.uk/id/local-authority/43UM,WOKING BOROUGH COUNCIL,21/04/2022,04/05/2022,0000477285/001,HEADLINE DESIGN & PRINT,00016900,750.00,CORPORATE STRATEGY - TOWN CENTRE FORUM,MARKETING,H406,MARKETING,CORPORATE STRATEGY,FINANCIAL SERVICES
http://statistics.data.gov.uk/id/local-authority/43UM,WOKING BOROUGH COUNCIL,26/04/2022,04/05/2022,0000477291/001,HEADLINE DESIGN & PRINT,00016900,125.00,HOUSING SERVICES - LETS RENT SCHEME,MARKETING,H406,MARKETING,HOUSING SERVICES,FINANCIAL SERVICES
http://statistics.data.gov.uk/id/local-authority/43UM,WOKING BOROUGH COUNCIL,25/04/2022,04/05/2022,0000477288/001,HEADLINE DESIGN & PRINT,00016900,"1,390.30",CORPORATE STRATEGY - BOROUGH ELECTIONS,PUBLICITY,H405,PUBLICITY,CORPORATE STRATEGY,FINANCIAL SERVICES
http://statistics.data.gov.uk/id/local-authority/43UM,WOKING BOROUGH COUNCIL,26/04/2022,04/05/2022,0000477106/001,IDIT YEHEZKELY LEWIS,41018600,145.00,CORPORATE STRATEGY - WOMENS SUPPORT CENTRE SURREY,PUBLIC HEALTH ACCESS,H701,PUBLIC HEALTH ACCESS,CORPORATE STRATEGY,EDUCATION
http://statistics.data.gov.uk/id/local-authority/43UM,WOKING BOROUGH COUNCIL,29/04/2022,04/05/2022,0000477230/001,IMPULSE CONVENIENCE LTD,40996500,35.60,CORPORATE STRATEGY - CORPORATE STRATEGY GENERAL EXP,NEWSPAPERS,G660,NEWSPAPERS,CORPORATE STRATEGY,SOCIAL COMMUNITY CARE SUPPLIES & SERVICS
http://statistics.data.gov.uk/id/local-authority/43UM,WOKING BOROUGH COUNCIL,31/03/2022,04/05/2022,0000477237/001,INSTITUTE OF REVENUES RATING & VALUATION,00034200,160.00,CORPORATE MANAGEMENT GROUP - STAFF TRAINING/GENERAL COSTS,TRAINING - POST ENTRY,A903,TRAINING - POST ENTRY,CORPORATE MANAGEMENT GROUP,HUMAN RESOURCES
http://statistics.data.gov.uk/id/local-authority/43UM,WOKING BOROUGH COUNCIL,21/01/2022,04/05/2022,0000477180/001,JAN R BINDSCHEDLER,40294500,"1,477.41",HOUSING SERVICES - LETS RENT SCHEME,CONNECT BOND CLAIMS,H713,CONNECT BOND CLAIMS,HOUSING SERVICES,FINANCIAL SERVICES
http://statistics.data.gov.uk/id/local-authority/43UM,WOKING BOROUGH COUNCIL,27/04/2022,04/05/2022,0000477174/001,JASON COLE,40928100,"8,516.56",HOUSING SERVICES - PRIVATE SECTOR LEASING SCHEME,LEASE PAYMENTS TO LANDLORD,H787,LEASE PAYMENTS TO LANDLORD,HOUSING SERVICES,FINANCIAL SERVICES
http://statistics.data.gov.uk/id/local-authority/43UM,WOKING BOROUGH COUNCIL,26/04/2022,04/05/2022,0000477163/001,JONES LANG LASALLE LIMITED,40265900,"27,500.00",ASSET MANAGEMENT - PEACOCKS ACQUISITION,OTHER CONSULTANTS,Q430,OTHER CONSULTANTS,ASSET MANAGEMENT,CONSULTANCY
http://statistics.data.gov.uk/id/local-authority/43UM,WOKING BOROUGH COUNCIL,04/05/2022,04/05/2022,GPC/00018881,JUSTPARK PARKING LIMITED,PROCUREMENT CARD,2.67,INDEPENDENT LIVING SERVICES - MOORCROFT,VOLUNTEER EXPENSES,H313,JUNCTION VISIT,RICHARD BUCKENHAM,AUTO PARKING LOTS/GARAGES
http://statistics.data.gov.uk/id/local-authority/43UM,WOKING BOROUGH COUNCIL,08/04/2022,04/05/2022,0000476648/001,KENT FINANCIAL SERVICES,40484900,35.00,CORPORATE STRATEGY - LEGAL,NON WBC LEGAL COSTS,H913,NON WBC LEGAL COSTS,CORPORATE STRATEGY,FINANCIAL SERVICES
http://statistics.data.gov.uk/id/local-authority/43UM,WOKING BOROUGH COUNCIL,12/04/2022,04/05/2022,0000476843/001,LOCAL GOVERNMENT ASSOCIATION,00255600,"9,930.15",CORPORATE STRATEGY - CORPORATE MANAGEMENT,SUBSCRIPTIONS,H110,SUBSCRIPTIONS,CORPORATE STRATEGY,CONSULTANCY
http://statistics.data.gov.uk/id/local-authority/43UM,WOKING BOROUGH COUNCIL,31/03/2022,04/05/2022,0000476509/001,LUCY DUGGAN,40854200,80.00,INDEPENDENT LIVING SERVICES - SHEERWATER SOCIAL SUPPORT,OTHER CONSULTANTS,Q430,OTHER CONSULTANTS,INDEPENDENT LIVING SERVICES,ARTS & LEISURE SERVICES
http://statistics.data.gov.uk/id/local-authority/43UM,WOKING BOROUGH COUNCIL,29/04/2022,04/05/2022,0000477273/001,MAIL BOXES ETC,01633600,197.50,INFORMATION TECHNOLOGY - MICROSOFT 365 IMPLEMENTATION,SERVICES,Q053,SERVICES,INFORMATION TECHNOLOGY,FACILITIES & MANAGEMENT SERVICES
http://statistics.data.gov.uk/id/local-authority/43UM,WOKING BOROUGH COUNCIL,03/05/2022,04/05/2022,0065000295/001,MARK FERGUSON,40945500,449.17,ASSET MANAGEMENT - BUILDING SERVICES,PROFESSIONAL FEES,A750,PROFESSIONAL FEES,ASSET MANAGEMENT,FINANCIAL SERVICES
http://statistics.data.gov.uk/id/local-authority/43UM,WOKING BOROUGH COUNCIL,28/04/2022,04/05/2022,0000477320/002,MINISTRY OF JUSTICE-HMCTS CAPS,01774100,"8,000.00",NEIGHBOURHOOD SERVICES - SURREY HEATH ON STREET PARKING,COURT COSTS,H620,COURT COSTS,NEIGHBOURHOOD SERVICES,FINANCIAL SERVICES
http://statistics.data.gov.uk/id/local-authority/43UM,WOKING BOROUGH COUNCIL,28/04/2022,04/05/2022,0000477320/001,MINISTRY OF JUSTICE-HMCTS CAPS,01774100,"10,000.00",NEIGHBOURHOOD SERVICES - CPZ WBC FROM 25/7/05,COURT COSTS,H620,COURT COSTS,NEIGHBOURHOOD SERVICES,FINANCIAL SERVICES
http://statistics.data.gov.uk/id/local-authority/43UM,WOKING BOROUGH COUNCIL,28/04/2022,04/05/2022,0000477320/003,MINISTRY OF JUSTICE-HMCTS CAPS,01774100,"2,000.00",NEIGHBOURHOOD SERVICES - CAR PARKS ADMIN&OPERATIONAL EX,COURT COSTS,H620,COURT COSTS,NEIGHBOURHOOD SERVICES,FINANCIAL SERVICES
http://statistics.data.gov.uk/id/local-authority/43UM,WOKING BOROUGH COUNCIL,24/04/2022,04/05/2022,0000477185/001,MORGAN HUNT UK LIMITED,01768500,937.50,REVENUES AND BENEFITS - COUNCIL TAX,TEMPORARY STAFF,A110,TEMPORARY STAFF,REVENUES AND BENEFITS,HUMAN RESOURCES
http://statistics.data.gov.uk/id/local-authority/43UM,WOKING BOROUGH COUNCIL,26/04/2022,04/05/2022,0000477126/001,MULGAS LIMITED,40290900,189.64,HOUSING SERVICES - PRIVATE SECTOR LEASING SCHEME,SCHED 1A RESPONSIVE REPAIRS,D165,SCHED 1A RESPONSIVE REPAIRS,HOUSING SERVICES,HOUSING MANAGEMENT
http://statistics.data.gov.uk/id/local-authority/43UM,WOKING BOROUGH COUNCIL,04/05/2022,04/05/2022,GPC/00018870,NHBS LTD,PROCUREMENT CARD,84.52,ASSET MANAGEMENT - VICTORIA ARCH SOUTH,MAIN CONTRACTOR,Q200,BIRD BOX FOR HIF PROJECT,FAOUZI SAFFAR,BOOKS/PERIODICALS/NEWSPAPERS
http://statistics.data.gov.uk/id/local-authority/43UM,WOKING BOROUGH COUNCIL,13/04/2022,04/05/2022,0000477168/256,OPUS ENERGY LIMITED,40311700,"10,663.00",LEISURE SERVICES - SHEERWATER LEISURE CENTRE,UTILITIES,Q506,UTILITIES,LEISURE SERVICES,UTILITIES
http://statistics.data.gov.uk/id/local-authority/43UM,WOKING BOROUGH COUNCIL,13/04/2022,04/05/2022,0000477168/257,OPUS ENERGY LIMITED,40311700,540.58,LEISURE SERVICES - SHEERWATER LEISURE CENTRE,UTILITIES,Q506,UTILITIES,LEISURE SERVICES,UTILITIES
http://statistics.data.gov.uk/id/local-authority/43UM,WOKING BOROUGH COUNCIL,13/04/2022,04/05/2022,0000477168/258,OPUS ENERGY LIMITED,40311700,5.14,NEIGHBOURHOOD SERVICES - COUNTRYSIDE SERVICES - GENERAL,CLIMATE CHANGE LEVY,D430,CLIMATE CHANGE LEVY,NEIGHBOURHOOD SERVICES,UTILITIES
http://statistics.data.gov.uk/id/local-authority/43UM,WOKING BOROUGH COUNCIL,13/04/2022,04/05/2022,0000477168/178,OPUS ENERGY LIMITED,40311700,9.76,ASSET MANAGEMENT - PUBLIC CONVENIENCES,CLIMATE CHANGE LEVY,D430,CLIMATE CHANGE LEVY,ASSET MANAGEMENT,UTILITIES
http://statistics.data.gov.uk/id/local-authority/43UM,WOKING BOROUGH COUNCIL,13/04/2022,04/05/2022,0000477168/234,OPUS ENERGY LIMITED,40311700,9.53,ASSET MANAGEMENT - PUBLIC CONVENIENCES,CLIMATE CHANGE LEVY,D430,CLIMATE CHANGE LEVY,ASSET MANAGEMENT,UTILITIES
http://statistics.data.gov.uk/id/local-authority/43UM,WOKING BOROUGH COUNCIL,13/04/2022,04/05/2022,0000477168/001,OPUS ENERGY LIMITED,40311700,96.48,ASSET MANAGEMENT - PUBLIC CONVENIENCES,ELECTRICITY,D400,ELECTRICITY,ASSET MANAGEMENT,UTILITIES
http://statistics.data.gov.uk/id/local-authority/43UM,WOKING BOROUGH COUNCIL,13/04/2022,04/05/2022,0000477168/014,OPUS ENERGY LIMITED,40311700,79.97,ASSET MANAGEMENT - PUBLIC CONVENIENCES,ELECTRICITY,D400,ELECTRICITY,ASSET MANAGEMENT,UTILITIES
http://statistics.data.gov.uk/id/local-authority/43UM,WOKING BOROUGH COUNCIL,13/04/2022,04/05/2022,0000477168/176,OPUS ENERGY LIMITED,40311700,52.75,ASSET MANAGEMENT - PUBLIC CONVENIENCES,ELECTRICITY,D400,ELECTRICITY,ASSET MANAGEMENT,UTILITIES
http://statistics.data.gov.uk/id/local-authority/43UM,WOKING BOROUGH COUNCIL,13/04/2022,04/05/2022,0000477168/177,OPUS ENERGY LIMITED,40311700,179.50,ASSET MANAGEMENT - PUBLIC CONVENIENCES,ELECTRICITY,D400,ELECTRICITY,ASSET MANAGEMENT,UTILITIES
http://statistics.data.gov.uk/id/local-authority/43UM,WOKING BOROUGH COUNCIL,13/04/2022,04/05/2022,0000477168/233,OPUS ENERGY LIMITED,40311700,173.41,ASSET MANAGEMENT - PUBLIC CONVENIENCES,ELECTRICITY,D400,ELECTRICITY,ASSET MANAGEMENT,UTILITIES
http://statistics.data.gov.uk/id/local-authority/43UM,WOKING BOROUGH COUNCIL,13/04/2022,04/05/2022,0000477168/239,OPUS ENERGY LIMITED,40311700,128.86,ASSET MANAGEMENT - PUBLIC CONVENIENCES,ELECTRICITY,D400,ELECTRICITY,ASSET MANAGEMENT,UTILITIES
http://statistics.data.gov.uk/id/local-authority/43UM,WOKING BOROUGH COUNCIL,13/04/2022,04/05/2022,0000477168/263,OPUS ENERGY LIMITED,40311700,30.72,ASSET MANAGEMENT - PUBLIC CONVENIENCES,ELECTRICITY,D400,ELECTRICITY,ASSET MANAGEMENT,UTILITIES
http://statistics.data.gov.uk/id/local-authority/43UM,WOKING BOROUGH COUNCIL,13/04/2022,04/05/2022,0000477168/267,OPUS ENERGY LIMITED,40311700,53.23,ASSET MANAGEMENT - PUBLIC CONVENIENCES,ELECTRICITY,D400,ELECTRICITY,ASSET MANAGEMENT,UTILITIES
http://statistics.data.gov.uk/id/local-authority/43UM,WOKING BOROUGH COUNCIL,13/04/2022,04/05/2022,0000477168/225,OPUS ENERGY LIMITED,40311700,37.68,NEIGHBOURHOOD SERVICES - HEATHSIDE CRESCENT,CLIMATE CHANGE LEVY,D430,CLIMATE CHANGE LEVY,NEIGHBOURHOOD SERVICES,UTILITIES
http://statistics.data.gov.uk/id/local-authority/43UM,WOKING BOROUGH COUNCIL,13/04/2022,04/05/2022,0000477168/224,OPUS ENERGY LIMITED,40311700,663.23,NEIGHBOURHOOD SERVICES - HEATHSIDE CRESCENT,ELECTRICITY,D400,ELECTRICITY,NEIGHBOURHOOD SERVICES,UTILITIES
http://statistics.data.gov.uk/id/local-authority/43UM,WOKING BOROUGH COUNCIL,13/04/2022,04/05/2022,0000477168/196,OPUS ENERGY LIMITED,40311700,100.34,NEIGHBOURHOOD SERVICES - MUSLIM BURIAL GRND PEACE GARDE,ELECTRICITY,D400,ELECTRICITY,NEIGHBOURHOOD SERVICES,UTILITIES
http://statistics.data.gov.uk/id/local-authority/43UM,WOKING BOROUGH COUNCIL,13/04/2022,04/05/2022,0000477168/072,OPUS ENERGY LIMITED,40311700,81.89,NEIGHBOURHOOD SERVICES - PARKS-GENERAL,ELECTRICITY,D400,ELECTRICITY,NEIGHBOURHOOD SERVICES,UTILITIES
http://statistics.data.gov.uk/id/local-authority/43UM,WOKING BOROUGH COUNCIL,13/04/2022,04/05/2022,0000477168/195,OPUS ENERGY LIMITED,40311700,8.45,NEIGHBOURHOOD SERVICES - PARKS-GENERAL,ELECTRICITY,D400,ELECTRICITY,NEIGHBOURHOOD SERVICES,UTILITIES
http://statistics.data.gov.uk/id/local-authority/43UM,WOKING BOROUGH COUNCIL,13/04/2022,04/05/2022,0000477168/197,OPUS ENERGY LIMITED,40311700,11.33,NEIGHBOURHOOD SERVICES - PARKS-GENERAL,ELECTRICITY,D400,ELECTRICITY,NEIGHBOURHOOD SERVICES,UTILITIES
http://statistics.data.gov.uk/id/local-authority/43UM,WOKING BOROUGH COUNCIL,13/04/2022,04/05/2022,0000477168/216,OPUS ENERGY LIMITED,40311700,"1,014.82",NEIGHBOURHOOD SERVICES - PARKS-GENERAL,ELECTRICITY,D400,ELECTRICITY,NEIGHBOURHOOD SERVICES,UTILITIES
http://statistics.data.gov.uk/id/local-authority/43UM,WOKING BOROUGH COUNCIL,13/04/2022,04/05/2022,0000477168/240,OPUS ENERGY LIMITED,40311700,107.20,NEIGHBOURHOOD SERVICES - PARKS-GENERAL,ELECTRICITY,D400,ELECTRICITY,NEIGHBOURHOOD SERVICES,UTILITIES
http://statistics.data.gov.uk/id/local-authority/43UM,WOKING BOROUGH COUNCIL,13/04/2022,04/05/2022,0000477168/335,OPUS ENERGY LIMITED,40311700,279.69,NEIGHBOURHOOD SERVICES - PARKS-GENERAL,ELECTRICITY,D400,ELECTRICITY,NEIGHBOURHOOD SERVICES,UTILITIES
http://statistics.data.gov.uk/id/local-authority/43UM,WOKING BOROUGH COUNCIL,13/04/2022,04/05/2022,0000477168/336,OPUS ENERGY LIMITED,40311700,-77.53,NEIGHBOURHOOD SERVICES - PARKS-GENERAL,ELECTRICITY,D400,ELECTRICITY,NEIGHBOURHOOD SERVICES,UTILITIES
http://statistics.data.gov.uk/id/local-authority/43UM,WOKING BOROUGH COUNCIL,13/04/2022,04/05/2022,0000477168/337,OPUS ENERGY LIMITED,40311700,-69.95,NEIGHBOURHOOD SERVICES - PARKS-GENERAL,ELECTRICITY,D400,ELECTRICITY,NEIGHBOURHOOD SERVICES,UTILITIES
http://statistics.data.gov.uk/id/local-authority/43UM,WOKING BOROUGH COUNCIL,13/04/2022,04/05/2022,0000477168/338,OPUS ENERGY LIMITED,40311700,-65.81,NEIGHBOURHOOD SERVICES - PARKS-GENERAL,ELECTRICITY,D400,ELECTRICITY,NEIGHBOURHOOD SERVICES,UTILITIES
http://statistics.data.gov.uk/id/local-authority/43UM,WOKING BOROUGH COUNCIL,13/04/2022,04/05/2022,0000477168/339,OPUS ENERGY LIMITED,40311700,-131.68,NEIGHBOURHOOD SERVICES - PARKS-GENERAL,ELECTRICITY,D400,ELECTRICITY,NEIGHBOURHOOD SERVICES,UTILITIES
http://statistics.data.gov.uk/id/local-authority/43UM,WOKING BOROUGH COUNCIL,13/04/2022,04/05/2022,0000477168/340,OPUS ENERGY LIMITED,40311700,-109.82,NEIGHBOURHOOD SERVICES - PARKS-GENERAL,ELECTRICITY,D400,ELECTRICITY,NEIGHBOURHOOD SERVICES,UTILITIES
http://statistics.data.gov.uk/id/local-authority/43UM,WOKING BOROUGH COUNCIL,13/04/2022,04/05/2022,0000477168/341,OPUS ENERGY LIMITED,40311700,-118.50,NEIGHBOURHOOD SERVICES - PARKS-GENERAL,ELECTRICITY,D400,ELECTRICITY,NEIGHBOURHOOD SERVICES,UTILITIES
http://statistics.data.gov.uk/id/local-authority/43UM,WOKING BOROUGH COUNCIL,13/04/2022,04/05/2022,0000477168/342,OPUS ENERGY LIMITED,40311700,-84.46,NEIGHBOURHOOD SERVICES - PARKS-GENERAL,ELECTRICITY,D400,ELECTRICITY,NEIGHBOURHOOD SERVICES,UTILITIES
http://statistics.data.gov.uk/id/local-authority/43UM,WOKING BOROUGH COUNCIL,13/04/2022,04/05/2022,0000477168/343,OPUS ENERGY LIMITED,40311700,-83.92,NEIGHBOURHOOD SERVICES - PARKS-GENERAL,ELECTRICITY,D400,ELECTRICITY,NEIGHBOURHOOD SERVICES,UTILITIES
http://statistics.data.gov.uk/id/local-authority/43UM,WOKING BOROUGH COUNCIL,13/04/2022,04/05/2022,0000477168/344,OPUS ENERGY LIMITED,40311700,-88.36,NEIGHBOURHOOD SERVICES - PARKS-GENERAL,ELECTRICITY,D400,ELECTRICITY,NEIGHBOURHOOD SERVICES,UTILITIES
http://statistics.data.gov.uk/id/local-authority/43UM,WOKING BOROUGH COUNCIL,13/04/2022,04/05/2022,0000477168/345,OPUS ENERGY LIMITED,40311700,-90.94,NEIGHBOURHOOD SERVICES - PARKS-GENERAL,ELECTRICITY,D400,ELECTRICITY,NEIGHBOURHOOD SERVICES,UTILITIES
http://statistics.data.gov.uk/id/local-authority/43UM,WOKING BOROUGH COUNCIL,13/04/2022,04/05/2022,0000477168/346,OPUS ENERGY LIMITED,40311700,-80.05,NEIGHBOURHOOD SERVICES - PARKS-GENERAL,ELECTRICITY,D400,ELECTRICITY,NEIGHBOURHOOD SERVICES,UTILITIES
http://statistics.data.gov.uk/id/local-authority/43UM,WOKING BOROUGH COUNCIL,13/04/2022,04/05/2022,0000477168/347,OPUS ENERGY LIMITED,40311700,-65.84,NEIGHBOURHOOD SERVICES - PARKS-GENERAL,ELECTRICITY,D400,ELECTRICITY,NEIGHBOURHOOD SERVICES,UTILITIES
http://statistics.data.gov.uk/id/local-authority/43UM,WOKING BOROUGH COUNCIL,13/04/2022,04/05/2022,0000477168/348,OPUS ENERGY LIMITED,40311700,-61.58,NEIGHBOURHOOD SERVICES - PARKS-GENERAL,ELECTRICITY,D400,ELECTRICITY,NEIGHBOURHOOD SERVICES,UTILITIES
http://statistics.data.gov.uk/id/local-authority/43UM,WOKING BOROUGH COUNCIL,13/04/2022,04/05/2022,0000477168/349,OPUS ENERGY LIMITED,40311700,-64.90,NEIGHBOURHOOD SERVICES - PARKS-GENERAL,ELECTRICITY,D400,ELECTRICITY,NEIGHBOURHOOD SERVICES,UTILITIES
http://statistics.data.gov.uk/id/local-authority/43UM,WOKING BOROUGH COUNCIL,13/04/2022,04/05/2022,0000477168/350,OPUS ENERGY LIMITED,40311700,-73.75,NEIGHBOURHOOD SERVICES - PARKS-GENERAL,ELECTRICITY,D400,ELECTRICITY,NEIGHBOURHOOD SERVICES,UTILITIES
http://statistics.data.gov.uk/id/local-authority/43UM,WOKING BOROUGH COUNCIL,13/04/2022,04/05/2022,0000477168/286,OPUS ENERGY LIMITED,40311700,14.69,HOUSING SERVICES - TEMPORARY ACCOMMODATION,CLIMATE CHANGE LEVY,D430,CLIMATE CHANGE LEVY,HOUSING SERVICES,UTILITIES
http://statistics.data.gov.uk/id/local-authority/43UM,WOKING BOROUGH COUNCIL,13/04/2022,04/05/2022,0000477168/074,OPUS ENERGY LIMITED,40311700,21.89,HOUSING SERVICES - TEMPORARY ACCOMMODATION,ELECTRICITY,D400,ELECTRICITY,HOUSING SERVICES,UTILITIES
http://statistics.data.gov.uk/id/local-authority/43UM,WOKING BOROUGH COUNCIL,13/04/2022,04/05/2022,0000477168/075,OPUS ENERGY LIMITED,40311700,7.46,HOUSING SERVICES - TEMPORARY ACCOMMODATION,ELECTRICITY,D400,ELECTRICITY,HOUSING SERVICES,UTILITIES
http://statistics.data.gov.uk/id/local-authority/43UM,WOKING BOROUGH COUNCIL,13/04/2022,04/05/2022,0000477168/076,OPUS ENERGY LIMITED,40311700,14.29,HOUSING SERVICES - TEMPORARY ACCOMMODATION,ELECTRICITY,D400,ELECTRICITY,HOUSING SERVICES,UTILITIES
http://statistics.data.gov.uk/id/local-authority/43UM,WOKING BOROUGH COUNCIL,13/04/2022,04/05/2022,0000477168/077,OPUS ENERGY LIMITED,40311700,24.88,HOUSING SERVICES - TEMPORARY ACCOMMODATION,ELECTRICITY,D400,ELECTRICITY,HOUSING SERVICES,UTILITIES
http://statistics.data.gov.uk/id/local-authority/43UM,WOKING BOROUGH COUNCIL,13/04/2022,04/05/2022,0000477168/080,OPUS ENERGY LIMITED,40311700,50.60,HOUSING SERVICES - TEMPORARY ACCOMMODATION,ELECTRICITY,D400,ELECTRICITY,HOUSING SERVICES,UTILITIES
http://statistics.data.gov.uk/id/local-authority/43UM,WOKING BOROUGH COUNCIL,13/04/2022,04/05/2022,0000477168/081,OPUS ENERGY LIMITED,40311700,75.65,HOUSING SERVICES - TEMPORARY ACCOMMODATION,ELECTRICITY,D400,ELECTRICITY,HOUSING SERVICES,UTILITIES
http://statistics.data.gov.uk/id/local-authority/43UM,WOKING BOROUGH COUNCIL,13/04/2022,04/05/2022,0000477168/145,OPUS ENERGY LIMITED,40311700,14.40,HOUSING SERVICES - TEMPORARY ACCOMMODATION,ELECTRICITY,D400,ELECTRICITY,HOUSING SERVICES,UTILITIES
http://statistics.data.gov.uk/id/local-authority/43UM,WOKING BOROUGH COUNCIL,13/04/2022,04/05/2022,0000477168/285,OPUS ENERGY LIMITED,40311700,280.10,HOUSING SERVICES - TEMPORARY ACCOMMODATION,ELECTRICITY,D400,ELECTRICITY,HOUSING SERVICES,UTILITIES
http://statistics.data.gov.uk/id/local-authority/43UM,WOKING BOROUGH COUNCIL,13/04/2022,04/05/2022,0000477168/013,OPUS ENERGY LIMITED,40311700,46.13,INDEPENDENT LIVING SERVICES - ALPHA RD COMMUNITY HALL,CLIMATE CHANGE LEVY,D430,CLIMATE CHANGE LEVY,INDEPENDENT LIVING SERVICES,UTILITIES
http://statistics.data.gov.uk/id/local-authority/43UM,WOKING BOROUGH COUNCIL,13/04/2022,04/05/2022,0000477168/012,OPUS ENERGY LIMITED,40311700,835.22,INDEPENDENT LIVING SERVICES - ALPHA RD COMMUNITY HALL,ELECTRICITY,D400,ELECTRICITY,INDEPENDENT LIVING SERVICES,UTILITIES
http://statistics.data.gov.uk/id/local-authority/43UM,WOKING BOROUGH COUNCIL,13/04/2022,04/05/2022,0000477168/024,OPUS ENERGY LIMITED,40311700,-9.35,HOUSING SERVICES - LANDLORDS EXPENSES,CLIMATE CHANGE LEVY,D430,CLIMATE CHANGE LEVY,HOUSING SERVICES,UTILITIES
http://statistics.data.gov.uk/id/local-authority/43UM,WOKING BOROUGH COUNCIL,13/04/2022,04/05/2022,0000477168/027,OPUS ENERGY LIMITED,40311700,-17.77,HOUSING SERVICES - LANDLORDS EXPENSES,CLIMATE CHANGE LEVY,D430,CLIMATE CHANGE LEVY,HOUSING SERVICES,UTILITIES
http://statistics.data.gov.uk/id/local-authority/43UM,WOKING BOROUGH COUNCIL,13/04/2022,04/05/2022,0000477168/029,OPUS ENERGY LIMITED,40311700,-20.17,HOUSING SERVICES - LANDLORDS EXPENSES,CLIMATE CHANGE LEVY,D430,CLIMATE CHANGE LEVY,HOUSING SERVICES,UTILITIES
http://statistics.data.gov.uk/id/local-authority/43UM,WOKING BOROUGH COUNCIL,13/04/2022,04/05/2022,0000477168/046,OPUS ENERGY LIMITED,40311700,7.94,HOUSING SERVICES - LANDLORDS EXPENSES,CLIMATE CHANGE LEVY,D430,CLIMATE CHANGE LEVY,HOUSING SERVICES,UTILITIES
http://statistics.data.gov.uk/id/local-authority/43UM,WOKING BOROUGH COUNCIL,13/04/2022,04/05/2022,0000477168/048,OPUS ENERGY LIMITED,40311700,8.35,HOUSING SERVICES - LANDLORDS EXPENSES,CLIMATE CHANGE LEVY,D430,CLIMATE CHANGE LEVY,HOUSING SERVICES,UTILITIES
http://statistics.data.gov.uk/id/local-authority/43UM,WOKING BOROUGH COUNCIL,13/04/2022,04/05/2022,0000477168/050,OPUS ENERGY LIMITED,40311700,17.68,HOUSING SERVICES - LANDLORDS EXPENSES,CLIMATE CHANGE LEVY,D430,CLIMATE CHANGE LEVY,HOUSING SERVICES,UTILITIES
http://statistics.data.gov.uk/id/local-authority/43UM,WOKING BOROUGH COUNCIL,13/04/2022,04/05/2022,0000477168/055,OPUS ENERGY LIMITED,40311700,12.01,HOUSING SERVICES - LANDLORDS EXPENSES,CLIMATE CHANGE LEVY,D430,CLIMATE CHANGE LEVY,HOUSING SERVICES,UTILITIES
http://statistics.data.gov.uk/id/local-authority/43UM,WOKING BOROUGH COUNCIL,13/04/2022,04/05/2022,0000477168/059,OPUS ENERGY LIMITED,40311700,8.49,HOUSING SERVICES - LANDLORDS EXPENSES,CLIMATE CHANGE LEVY,D430,CLIMATE CHANGE LEVY,HOUSING SERVICES,UTILITIES
http://statistics.data.gov.uk/id/local-authority/43UM,WOKING BOROUGH COUNCIL,13/04/2022,04/05/2022,0000477168/083,OPUS ENERGY LIMITED,40311700,12.77,HOUSING SERVICES - LANDLORDS EXPENSES,CLIMATE CHANGE LEVY,D430,CLIMATE CHANGE LEVY,HOUSING SERVICES,UTILITIES
http://statistics.data.gov.uk/id/local-authority/43UM,WOKING BOROUGH COUNCIL,13/04/2022,04/05/2022,0000477168/087,OPUS ENERGY LIMITED,40311700,16.90,HOUSING SERVICES - LANDLORDS EXPENSES,CLIMATE CHANGE LEVY,D430,CLIMATE CHANGE LEVY,HOUSING SERVICES,UTILITIES
http://statistics.data.gov.uk/id/local-authority/43UM,WOKING BOROUGH COUNCIL,13/04/2022,04/05/2022,0000477168/093,OPUS ENERGY LIMITED,40311700,17.00,HOUSING SERVICES - LANDLORDS EXPENSES,CLIMATE CHANGE LEVY,D430,CLIMATE CHANGE LEVY,HOUSING SERVICES,UTILITIES
http://statistics.data.gov.uk/id/local-authority/43UM,WOKING BOROUGH COUNCIL,13/04/2022,04/05/2022,0000477168/106,OPUS ENERGY LIMITED,40311700,17.01,HOUSING SERVICES - LANDLORDS EXPENSES,CLIMATE CHANGE LEVY,D430,CLIMATE CHANGE LEVY,HOUSING SERVICES,UTILITIES
http://statistics.data.gov.uk/id/local-authority/43UM,WOKING BOROUGH COUNCIL,13/04/2022,04/05/2022,0000477168/111,OPUS ENERGY LIMITED,40311700,8.83,HOUSING SERVICES - LANDLORDS EXPENSES,CLIMATE CHANGE LEVY,D430,CLIMATE CHANGE LEVY,HOUSING SERVICES,UTILITIES
http://statistics.data.gov.uk/id/local-authority/43UM,WOKING BOROUGH COUNCIL,13/04/2022,04/05/2022,0000477168/116,OPUS ENERGY LIMITED,40311700,317.32,HOUSING SERVICES - LANDLORDS EXPENSES,CLIMATE CHANGE LEVY,D430,CLIMATE CHANGE LEVY,HOUSING SERVICES,UTILITIES
http://statistics.data.gov.uk/id/local-authority/43UM,WOKING BOROUGH COUNCIL,13/04/2022,04/05/2022,0000477168/158,OPUS ENERGY LIMITED,40311700,17.00,HOUSING SERVICES - LANDLORDS EXPENSES,CLIMATE CHANGE LEVY,D430,CLIMATE CHANGE LEVY,HOUSING SERVICES,UTILITIES
http://statistics.data.gov.uk/id/local-authority/43UM,WOKING BOROUGH COUNCIL,13/04/2022,04/05/2022,0000477168/168,OPUS ENERGY LIMITED,40311700,120.41,HOUSING SERVICES - LANDLORDS EXPENSES,CLIMATE CHANGE LEVY,D430,CLIMATE CHANGE LEVY,HOUSING SERVICES,UTILITIES
http://statistics.data.gov.uk/id/local-authority/43UM,WOKING BOROUGH COUNCIL,13/04/2022,04/05/2022,0000477168/172,OPUS ENERGY LIMITED,40311700,17.87,HOUSING SERVICES - LANDLORDS EXPENSES,CLIMATE CHANGE LEVY,D430,CLIMATE CHANGE LEVY,HOUSING SERVICES,UTILITIES
http://statistics.data.gov.uk/id/local-authority/43UM,WOKING BOROUGH COUNCIL,13/04/2022,04/05/2022,0000477168/204,OPUS ENERGY LIMITED,40311700,17.00,HOUSING SERVICES - LANDLORDS EXPENSES,CLIMATE CHANGE LEVY,D430,CLIMATE CHANGE LEVY,HOUSING SERVICES,UTILITIES
http://statistics.data.gov.uk/id/local-authority/43UM,WOKING BOROUGH COUNCIL,13/04/2022,04/05/2022,0000477168/230,OPUS ENERGY LIMITED,40311700,9.78,HOUSING SERVICES - LANDLORDS EXPENSES,CLIMATE CHANGE LEVY,D430,CLIMATE CHANGE LEVY,HOUSING SERVICES,UTILITIES
http://statistics.data.gov.uk/id/local-authority/43UM,WOKING BOROUGH COUNCIL,13/04/2022,04/05/2022,0000477168/237,OPUS ENERGY LIMITED,40311700,10.24,HOUSING SERVICES - LANDLORDS EXPENSES,CLIMATE CHANGE LEVY,D430,CLIMATE CHANGE LEVY,HOUSING SERVICES,UTILITIES
http://statistics.data.gov.uk/id/local-authority/43UM,WOKING BOROUGH COUNCIL,13/04/2022,04/05/2022,0000477168/261,OPUS ENERGY LIMITED,40311700,9.52,HOUSING SERVICES - LANDLORDS EXPENSES,CLIMATE CHANGE LEVY,D430,CLIMATE CHANGE LEVY,HOUSING SERVICES,UTILITIES
http://statistics.data.gov.uk/id/local-authority/43UM,WOKING BOROUGH COUNCIL,13/04/2022,04/05/2022,0000477168/274,OPUS ENERGY LIMITED,40311700,98.60,HOUSING SERVICES - LANDLORDS EXPENSES,CLIMATE CHANGE LEVY,D430,CLIMATE CHANGE LEVY,HOUSING SERVICES,UTILITIES
http://statistics.data.gov.uk/id/local-authority/43UM,WOKING BOROUGH COUNCIL,13/04/2022,04/05/2022,0000477168/278,OPUS ENERGY LIMITED,40311700,17.00,HOUSING SERVICES - LANDLORDS EXPENSES,CLIMATE CHANGE LEVY,D430,CLIMATE CHANGE LEVY,HOUSING SERVICES,UTILITIES
http://statistics.data.gov.uk/id/local-authority/43UM,WOKING BOROUGH COUNCIL,13/04/2022,04/05/2022,0000477168/292,OPUS ENERGY LIMITED,40311700,17.58,HOUSING SERVICES - LANDLORDS EXPENSES,CLIMATE CHANGE LEVY,D430,CLIMATE CHANGE LEVY,HOUSING SERVICES,UTILITIES
http://statistics.data.gov.uk/id/local-authority/43UM,WOKING BOROUGH COUNCIL,13/04/2022,04/05/2022,0000477168/300,OPUS ENERGY LIMITED,40311700,8.05,HOUSING SERVICES - LANDLORDS EXPENSES,CLIMATE CHANGE LEVY,D430,CLIMATE CHANGE LEVY,HOUSING SERVICES,UTILITIES
http://statistics.data.gov.uk/id/local-authority/43UM,WOKING BOROUGH COUNCIL,13/04/2022,04/05/2022,0000477168/303,OPUS ENERGY LIMITED,40311700,25.43,HOUSING SERVICES - LANDLORDS EXPENSES,CLIMATE CHANGE LEVY,D430,CLIMATE CHANGE LEVY,HOUSING SERVICES,UTILITIES
http://statistics.data.gov.uk/id/local-authority/43UM,WOKING BOROUGH COUNCIL,13/04/2022,04/05/2022,0000477168/002,OPUS ENERGY LIMITED,40311700,32.55,HOUSING SERVICES - LANDLORDS EXPENSES,ELECTRICITY,D400,ELECTRICITY,HOUSING SERVICES,UTILITIES
http://statistics.data.gov.uk/id/local-authority/43UM,WOKING BOROUGH COUNCIL,13/04/2022,04/05/2022,0000477168/003,OPUS ENERGY LIMITED,40311700,48.81,HOUSING SERVICES - LANDLORDS EXPENSES,ELECTRICITY,D400,ELECTRICITY,HOUSING SERVICES,UTILITIES
http://statistics.data.gov.uk/id/local-authority/43UM,WOKING BOROUGH COUNCIL,13/04/2022,04/05/2022,0000477168/004,OPUS ENERGY LIMITED,40311700,35.06,HOUSING SERVICES - LANDLORDS EXPENSES,ELECTRICITY,D400,ELECTRICITY,HOUSING SERVICES,UTILITIES
http://statistics.data.gov.uk/id/local-authority/43UM,WOKING BOROUGH COUNCIL,13/04/2022,04/05/2022,0000477168/006,OPUS ENERGY LIMITED,40311700,24.17,HOUSING SERVICES - LANDLORDS EXPENSES,ELECTRICITY,D400,ELECTRICITY,HOUSING SERVICES,UTILITIES
http://statistics.data.gov.uk/id/local-authority/43UM,WOKING BOROUGH COUNCIL,13/04/2022,04/05/2022,0000477168/007,OPUS ENERGY LIMITED,40311700,260.32,HOUSING SERVICES - LANDLORDS EXPENSES,ELECTRICITY,D400,ELECTRICITY,HOUSING SERVICES,UTILITIES
http://statistics.data.gov.uk/id/local-authority/43UM,WOKING BOROUGH COUNCIL,13/04/2022,04/05/2022,0000477168/008,OPUS ENERGY LIMITED,40311700,46.67,HOUSING SERVICES - LANDLORDS EXPENSES,ELECTRICITY,D400,ELECTRICITY,HOUSING SERVICES,UTILITIES
http://statistics.data.gov.uk/id/local-authority/43UM,WOKING BOROUGH COUNCIL,13/04/2022,04/05/2022,0000477168/009,OPUS ENERGY LIMITED,40311700,126.48,HOUSING SERVICES - LANDLORDS EXPENSES,ELECTRICITY,D400,ELECTRICITY,HOUSING SERVICES,UTILITIES
http://statistics.data.gov.uk/id/local-authority/43UM,WOKING BOROUGH COUNCIL,13/04/2022,04/05/2022,0000477168/010,OPUS ENERGY LIMITED,40311700,39.31,HOUSING SERVICES - LANDLORDS EXPENSES,ELECTRICITY,D400,ELECTRICITY,HOUSING SERVICES,UTILITIES
http://statistics.data.gov.uk/id/local-authority/43UM,WOKING BOROUGH COUNCIL,13/04/2022,04/05/2022,0000477168/011,OPUS ENERGY LIMITED,40311700,31.40,HOUSING SERVICES - LANDLORDS EXPENSES,ELECTRICITY,D400,ELECTRICITY,HOUSING SERVICES,UTILITIES
http://statistics.data.gov.uk/id/local-authority/43UM,WOKING BOROUGH COUNCIL,13/04/2022,04/05/2022,0000477168/015,OPUS ENERGY LIMITED,40311700,60.24,HOUSING SERVICES - LANDLORDS EXPENSES,ELECTRICITY,D400,ELECTRICITY,HOUSING SERVICES,UTILITIES
http://statistics.data.gov.uk/id/local-authority/43UM,WOKING BOROUGH COUNCIL,13/04/2022,04/05/2022,0000477168/016,OPUS ENERGY LIMITED,40311700,40.56,HOUSING SERVICES - LANDLORDS EXPENSES,ELECTRICITY,D400,ELECTRICITY,HOUSING SERVICES,UTILITIES
http://statistics.data.gov.uk/id/local-authority/43UM,WOKING BOROUGH COUNCIL,13/04/2022,04/05/2022,0000477168/017,OPUS ENERGY LIMITED,40311700,67.98,HOUSING SERVICES - LANDLORDS EXPENSES,ELECTRICITY,D400,ELECTRICITY,HOUSING SERVICES,UTILITIES
http://statistics.data.gov.uk/id/local-authority/43UM,WOKING BOROUGH COUNCIL,13/04/2022,04/05/2022,0000477168/018,OPUS ENERGY LIMITED,40311700,5.27,HOUSING SERVICES - LANDLORDS EXPENSES,ELECTRICITY,D400,ELECTRICITY,HOUSING SERVICES,UTILITIES
http://statistics.data.gov.uk/id/local-authority/43UM,WOKING BOROUGH COUNCIL,13/04/2022,04/05/2022,0000477168/019,OPUS ENERGY LIMITED,40311700,5.14,HOUSING SERVICES - LANDLORDS EXPENSES,ELECTRICITY,D400,ELECTRICITY,HOUSING SERVICES,UTILITIES
http://statistics.data.gov.uk/id/local-authority/43UM,WOKING BOROUGH COUNCIL,13/04/2022,04/05/2022,0000477168/020,OPUS ENERGY LIMITED,40311700,6.79,HOUSING SERVICES - LANDLORDS EXPENSES,ELECTRICITY,D400,ELECTRICITY,HOUSING SERVICES,UTILITIES
http://statistics.data.gov.uk/id/local-authority/43UM,WOKING BOROUGH COUNCIL,13/04/2022,04/05/2022,0000477168/023,OPUS ENERGY LIMITED,40311700,-162.60,HOUSING SERVICES - LANDLORDS EXPENSES,ELECTRICITY,D400,ELECTRICITY,HOUSING SERVICES,UTILITIES
http://statistics.data.gov.uk/id/local-authority/43UM,WOKING BOROUGH COUNCIL,13/04/2022,04/05/2022,0000477168/025,OPUS ENERGY LIMITED,40311700,318.39,HOUSING SERVICES - LANDLORDS EXPENSES,ELECTRICITY,D400,ELECTRICITY,HOUSING SERVICES,UTILITIES
http://statistics.data.gov.uk/id/local-authority/43UM,WOKING BOROUGH COUNCIL,13/04/2022,04/05/2022,0000477168/026,OPUS ENERGY LIMITED,40311700,-314.15,HOUSING SERVICES - LANDLORDS EXPENSES,ELECTRICITY,D400,ELECTRICITY,HOUSING SERVICES,UTILITIES
http://statistics.data.gov.uk/id/local-authority/43UM,WOKING BOROUGH COUNCIL,13/04/2022,04/05/2022,0000477168/028,OPUS ENERGY LIMITED,40311700,-356.67,HOUSING SERVICES - LANDLORDS EXPENSES,ELECTRICITY,D400,ELECTRICITY,HOUSING SERVICES,UTILITIES
http://statistics.data.gov.uk/id/local-authority/43UM,WOKING BOROUGH COUNCIL,13/04/2022,04/05/2022,0000477168/030,OPUS ENERGY LIMITED,40311700,19.72,HOUSING SERVICES - LANDLORDS EXPENSES,ELECTRICITY,D400,ELECTRICITY,HOUSING SERVICES,UTILITIES
http://statistics.data.gov.uk/id/local-authority/43UM,WOKING BOROUGH COUNCIL,13/04/2022,04/05/2022,0000477168/042,OPUS ENERGY LIMITED,40311700,45.84,HOUSING SERVICES - LANDLORDS EXPENSES,ELECTRICITY,D400,ELECTRICITY,HOUSING SERVICES,UTILITIES
http://statistics.data.gov.uk/id/local-authority/43UM,WOKING BOROUGH COUNCIL,13/04/2022,04/05/2022,0000477168/043,OPUS ENERGY LIMITED,40311700,21.32,HOUSING SERVICES - LANDLORDS EXPENSES,ELECTRICITY,D400,ELECTRICITY,HOUSING SERVICES,UTILITIES
http://statistics.data.gov.uk/id/local-authority/43UM,WOKING BOROUGH COUNCIL,13/04/2022,04/05/2022,0000477168/044,OPUS ENERGY LIMITED,40311700,27.99,HOUSING SERVICES - LANDLORDS EXPENSES,ELECTRICITY,D400,ELECTRICITY,HOUSING SERVICES,UTILITIES
http://statistics.data.gov.uk/id/local-authority/43UM,WOKING BOROUGH COUNCIL,13/04/2022,04/05/2022,0000477168/045,OPUS ENERGY LIMITED,40311700,144.99,HOUSING SERVICES - LANDLORDS EXPENSES,ELECTRICITY,D400,ELECTRICITY,HOUSING SERVICES,UTILITIES
http://statistics.data.gov.uk/id/local-authority/43UM,WOKING BOROUGH COUNCIL,13/04/2022,04/05/2022,0000477168/047,OPUS ENERGY LIMITED,40311700,155.37,HOUSING SERVICES - LANDLORDS EXPENSES,ELECTRICITY,D400,ELECTRICITY,HOUSING SERVICES,UTILITIES
http://statistics.data.gov.uk/id/local-authority/43UM,WOKING BOROUGH COUNCIL,13/04/2022,04/05/2022,0000477168/049,OPUS ENERGY LIMITED,40311700,316.37,HOUSING SERVICES - LANDLORDS EXPENSES,ELECTRICITY,D400,ELECTRICITY,HOUSING SERVICES,UTILITIES
http://statistics.data.gov.uk/id/local-authority/43UM,WOKING BOROUGH COUNCIL,13/04/2022,04/05/2022,0000477168/051,OPUS ENERGY LIMITED,40311700,42.42,HOUSING SERVICES - LANDLORDS EXPENSES,ELECTRICITY,D400,ELECTRICITY,HOUSING SERVICES,UTILITIES
http://statistics.data.gov.uk/id/local-authority/43UM,WOKING BOROUGH COUNCIL,13/04/2022,04/05/2022,0000477168/052,OPUS ENERGY LIMITED,40311700,5.76,HOUSING SERVICES - LANDLORDS EXPENSES,ELECTRICITY,D400,ELECTRICITY,HOUSING SERVICES,UTILITIES
http://statistics.data.gov.uk/id/local-authority/43UM,WOKING BOROUGH COUNCIL,13/04/2022,04/05/2022,0000477168/053,OPUS ENERGY LIMITED,40311700,87.44,HOUSING SERVICES - LANDLORDS EXPENSES,ELECTRICITY,D400,ELECTRICITY,HOUSING SERVICES,UTILITIES
http://statistics.data.gov.uk/id/local-authority/43UM,WOKING BOROUGH COUNCIL,13/04/2022,04/05/2022,0000477168/054,OPUS ENERGY LIMITED,40311700,217.47,HOUSING SERVICES - LANDLORDS EXPENSES,ELECTRICITY,D400,ELECTRICITY,HOUSING SERVICES,UTILITIES
http://statistics.data.gov.uk/id/local-authority/43UM,WOKING BOROUGH COUNCIL,13/04/2022,04/05/2022,0000477168/056,OPUS ENERGY LIMITED,40311700,22.01,HOUSING SERVICES - LANDLORDS EXPENSES,ELECTRICITY,D400,ELECTRICITY,HOUSING SERVICES,UTILITIES
http://statistics.data.gov.uk/id/local-authority/43UM,WOKING BOROUGH COUNCIL,13/04/2022,04/05/2022,0000477168/057,OPUS ENERGY LIMITED,40311700,22.99,HOUSING SERVICES - LANDLORDS EXPENSES,ELECTRICITY,D400,ELECTRICITY,HOUSING SERVICES,UTILITIES
http://statistics.data.gov.uk/id/local-authority/43UM,WOKING BOROUGH COUNCIL,13/04/2022,04/05/2022,0000477168/058,OPUS ENERGY LIMITED,40311700,155.57,HOUSING SERVICES - LANDLORDS EXPENSES,ELECTRICITY,D400,ELECTRICITY,HOUSING SERVICES,UTILITIES
http://statistics.data.gov.uk/id/local-authority/43UM,WOKING BOROUGH COUNCIL,13/04/2022,04/05/2022,0000477168/060,OPUS ENERGY LIMITED,40311700,25.49,HOUSING SERVICES - LANDLORDS EXPENSES,ELECTRICITY,D400,ELECTRICITY,HOUSING SERVICES,UTILITIES
http://statistics.data.gov.uk/id/local-authority/43UM,WOKING BOROUGH COUNCIL,13/04/2022,04/05/2022,0000477168/061,OPUS ENERGY LIMITED,40311700,78.20,HOUSING SERVICES - LANDLORDS EXPENSES,ELECTRICITY,D400,ELECTRICITY,HOUSING SERVICES,UTILITIES
http://statistics.data.gov.uk/id/local-authority/43UM,WOKING BOROUGH COUNCIL,13/04/2022,04/05/2022,0000477168/062,OPUS ENERGY LIMITED,40311700,19.36,HOUSING SERVICES - LANDLORDS EXPENSES,ELECTRICITY,D400,ELECTRICITY,HOUSING SERVICES,UTILITIES
http://statistics.data.gov.uk/id/local-authority/43UM,WOKING BOROUGH COUNCIL,13/04/2022,04/05/2022,0000477168/063,OPUS ENERGY LIMITED,40311700,25.07,HOUSING SERVICES - LANDLORDS EXPENSES,ELECTRICITY,D400,ELECTRICITY,HOUSING SERVICES,UTILITIES
http://statistics.data.gov.uk/id/local-authority/43UM,WOKING BOROUGH COUNCIL,13/04/2022,04/05/2022,0000477168/064,OPUS ENERGY LIMITED,40311700,90.20,HOUSING SERVICES - LANDLORDS EXPENSES,ELECTRICITY,D400,ELECTRICITY,HOUSING SERVICES,UTILITIES
http://statistics.data.gov.uk/id/local-authority/43UM,WOKING BOROUGH COUNCIL,13/04/2022,04/05/2022,0000477168/065,OPUS ENERGY LIMITED,40311700,34.62,HOUSING SERVICES - LANDLORDS EXPENSES,ELECTRICITY,D400,ELECTRICITY,HOUSING SERVICES,UTILITIES
http://statistics.data.gov.uk/id/local-authority/43UM,WOKING BOROUGH COUNCIL,13/04/2022,04/05/2022,0000477168/066,OPUS ENERGY LIMITED,40311700,37.90,HOUSING SERVICES - LANDLORDS EXPENSES,ELECTRICITY,D400,ELECTRICITY,HOUSING SERVICES,UTILITIES
http://statistics.data.gov.uk/id/local-authority/43UM,WOKING BOROUGH COUNCIL,13/04/2022,04/05/2022,0000477168/067,OPUS ENERGY LIMITED,40311700,21.58,HOUSING SERVICES - LANDLORDS EXPENSES,ELECTRICITY,D400,ELECTRICITY,HOUSING SERVICES,UTILITIES
http://statistics.data.gov.uk/id/local-authority/43UM,WOKING BOROUGH COUNCIL,13/04/2022,04/05/2022,0000477168/068,OPUS ENERGY LIMITED,40311700,8.39,HOUSING SERVICES - LANDLORDS EXPENSES,ELECTRICITY,D400,ELECTRICITY,HOUSING SERVICES,UTILITIES
http://statistics.data.gov.uk/id/local-authority/43UM,WOKING BOROUGH COUNCIL,13/04/2022,04/05/2022,0000477168/069,OPUS ENERGY LIMITED,40311700,98.67,HOUSING SERVICES - LANDLORDS EXPENSES,ELECTRICITY,D400,ELECTRICITY,HOUSING SERVICES,UTILITIES
http://statistics.data.gov.uk/id/local-authority/43UM,WOKING BOROUGH COUNCIL,13/04/2022,04/05/2022,0000477168/073,OPUS ENERGY LIMITED,40311700,58.20,HOUSING SERVICES - LANDLORDS EXPENSES,ELECTRICITY,D400,ELECTRICITY,HOUSING SERVICES,UTILITIES
http://statistics.data.gov.uk/id/local-authority/43UM,WOKING BOROUGH COUNCIL,13/04/2022,04/05/2022,0000477168/078,OPUS ENERGY LIMITED,40311700,71.83,HOUSING SERVICES - LANDLORDS EXPENSES,ELECTRICITY,D400,ELECTRICITY,HOUSING SERVICES,UTILITIES
http://statistics.data.gov.uk/id/local-authority/43UM,WOKING BOROUGH COUNCIL,13/04/2022,04/05/2022,0000477168/079,OPUS ENERGY LIMITED,40311700,46.57,HOUSING SERVICES - LANDLORDS EXPENSES,ELECTRICITY,D400,ELECTRICITY,HOUSING SERVICES,UTILITIES
http://statistics.data.gov.uk/id/local-authority/43UM,WOKING BOROUGH COUNCIL,13/04/2022,04/05/2022,0000477168/082,OPUS ENERGY LIMITED,40311700,255.52,HOUSING SERVICES - LANDLORDS EXPENSES,ELECTRICITY,D400,ELECTRICITY,HOUSING SERVICES,UTILITIES
http://statistics.data.gov.uk/id/local-authority/43UM,WOKING BOROUGH COUNCIL,13/04/2022,04/05/2022,0000477168/084,OPUS ENERGY LIMITED,40311700,34.98,HOUSING SERVICES - LANDLORDS EXPENSES,ELECTRICITY,D400,ELECTRICITY,HOUSING SERVICES,UTILITIES
http://statistics.data.gov.uk/id/local-authority/43UM,WOKING BOROUGH COUNCIL,13/04/2022,04/05/2022,0000477168/085,OPUS ENERGY LIMITED,40311700,34.76,HOUSING SERVICES - LANDLORDS EXPENSES,ELECTRICITY,D400,ELECTRICITY,HOUSING SERVICES,UTILITIES
http://statistics.data.gov.uk/id/local-authority/43UM,WOKING BOROUGH COUNCIL,13/04/2022,04/05/2022,0000477168/086,OPUS ENERGY LIMITED,40311700,306.61,HOUSING SERVICES - LANDLORDS EXPENSES,ELECTRICITY,D400,ELECTRICITY,HOUSING SERVICES,UTILITIES
http://statistics.data.gov.uk/id/local-authority/43UM,WOKING BOROUGH COUNCIL,13/04/2022,04/05/2022,0000477168/088,OPUS ENERGY LIMITED,40311700,192.12,HOUSING SERVICES - LANDLORDS EXPENSES,ELECTRICITY,D400,ELECTRICITY,HOUSING SERVICES,UTILITIES
http://statistics.data.gov.uk/id/local-authority/43UM,WOKING BOROUGH COUNCIL,13/04/2022,04/05/2022,0000477168/091,OPUS ENERGY LIMITED,40311700,26.36,HOUSING SERVICES - LANDLORDS EXPENSES,ELECTRICITY,D400,ELECTRICITY,HOUSING SERVICES,UTILITIES
http://statistics.data.gov.uk/id/local-authority/43UM,WOKING BOROUGH COUNCIL,13/04/2022,04/05/2022,0000477168/092,OPUS ENERGY LIMITED,40311700,307.42,HOUSING SERVICES - LANDLORDS EXPENSES,ELECTRICITY,D400,ELECTRICITY,HOUSING SERVICES,UTILITIES
http://statistics.data.gov.uk/id/local-authority/43UM,WOKING BOROUGH COUNCIL,13/04/2022,04/05/2022,0000477168/094,OPUS ENERGY LIMITED,40311700,96.62,HOUSING SERVICES - LANDLORDS EXPENSES,ELECTRICITY,D400,ELECTRICITY,HOUSING SERVICES,UTILITIES
http://statistics.data.gov.uk/id/local-authority/43UM,WOKING BOROUGH COUNCIL,13/04/2022,04/05/2022,0000477168/095,OPUS ENERGY LIMITED,40311700,105.85,HOUSING SERVICES - LANDLORDS EXPENSES,ELECTRICITY,D400,ELECTRICITY,HOUSING SERVICES,UTILITIES
http://statistics.data.gov.uk/id/local-authority/43UM,WOKING BOROUGH COUNCIL,13/04/2022,04/05/2022,0000477168/096,OPUS ENERGY LIMITED,40311700,28.25,HOUSING SERVICES - LANDLORDS EXPENSES,ELECTRICITY,D400,ELECTRICITY,HOUSING SERVICES,UTILITIES
http://statistics.data.gov.uk/id/local-authority/43UM,WOKING BOROUGH COUNCIL,13/04/2022,04/05/2022,0000477168/103,OPUS ENERGY LIMITED,40311700,85.93,HOUSING SERVICES - LANDLORDS EXPENSES,ELECTRICITY,D400,ELECTRICITY,HOUSING SERVICES,UTILITIES
http://statistics.data.gov.uk/id/local-authority/43UM,WOKING BOROUGH COUNCIL,13/04/2022,04/05/2022,0000477168/104,OPUS ENERGY LIMITED,40311700,37.23,HOUSING SERVICES - LANDLORDS EXPENSES,ELECTRICITY,D400,ELECTRICITY,HOUSING SERVICES,UTILITIES
http://statistics.data.gov.uk/id/local-authority/43UM,WOKING BOROUGH COUNCIL,13/04/2022,04/05/2022,0000477168/105,OPUS ENERGY LIMITED,40311700,300.95,HOUSING SERVICES - LANDLORDS EXPENSES,ELECTRICITY,D400,ELECTRICITY,HOUSING SERVICES,UTILITIES
http://statistics.data.gov.uk/id/local-authority/43UM,WOKING BOROUGH COUNCIL,13/04/2022,04/05/2022,0000477168/107,OPUS ENERGY LIMITED,40311700,28.71,HOUSING SERVICES - LANDLORDS EXPENSES,ELECTRICITY,D400,ELECTRICITY,HOUSING SERVICES,UTILITIES
http://statistics.data.gov.uk/id/local-authority/43UM,WOKING BOROUGH COUNCIL,13/04/2022,04/05/2022,0000477168/108,OPUS ENERGY LIMITED,40311700,28.04,HOUSING SERVICES - LANDLORDS EXPENSES,ELECTRICITY,D400,ELECTRICITY,HOUSING SERVICES,UTILITIES
http://statistics.data.gov.uk/id/local-authority/43UM,WOKING BOROUGH COUNCIL,13/04/2022,04/05/2022,0000477168/109,OPUS ENERGY LIMITED,40311700,93.78,HOUSING SERVICES - LANDLORDS EXPENSES,ELECTRICITY,D400,ELECTRICITY,HOUSING SERVICES,UTILITIES
http://statistics.data.gov.uk/id/local-authority/43UM,WOKING BOROUGH COUNCIL,13/04/2022,04/05/2022,0000477168/110,OPUS ENERGY LIMITED,40311700,164.75,HOUSING SERVICES - LANDLORDS EXPENSES,ELECTRICITY,D400,ELECTRICITY,HOUSING SERVICES,UTILITIES
http://statistics.data.gov.uk/id/local-authority/43UM,WOKING BOROUGH COUNCIL,13/04/2022,04/05/2022,0000477168/112,OPUS ENERGY LIMITED,40311700,-63.39,HOUSING SERVICES - LANDLORDS EXPENSES,ELECTRICITY,D400,ELECTRICITY,HOUSING SERVICES,UTILITIES
http://statistics.data.gov.uk/id/local-authority/43UM,WOKING BOROUGH COUNCIL,13/04/2022,04/05/2022,0000477168/113,OPUS ENERGY LIMITED,40311700,-57.35,HOUSING SERVICES - LANDLORDS EXPENSES,ELECTRICITY,D400,ELECTRICITY,HOUSING SERVICES,UTILITIES
http://statistics.data.gov.uk/id/local-authority/43UM,WOKING BOROUGH COUNCIL,13/04/2022,04/05/2022,0000477168/114,OPUS ENERGY LIMITED,40311700,-57.43,HOUSING SERVICES - LANDLORDS EXPENSES,ELECTRICITY,D400,ELECTRICITY,HOUSING SERVICES,UTILITIES
http://statistics.data.gov.uk/id/local-authority/43UM,WOKING BOROUGH COUNCIL,13/04/2022,04/05/2022,0000477168/115,OPUS ENERGY LIMITED,40311700,"5,949.80",HOUSING SERVICES - LANDLORDS EXPENSES,ELECTRICITY,D400,ELECTRICITY,HOUSING SERVICES,UTILITIES
http://statistics.data.gov.uk/id/local-authority/43UM,WOKING BOROUGH COUNCIL,13/04/2022,04/05/2022,0000477168/117,OPUS ENERGY LIMITED,40311700,-88.48,HOUSING SERVICES - LANDLORDS EXPENSES,ELECTRICITY,D400,ELECTRICITY,HOUSING SERVICES,UTILITIES
http://statistics.data.gov.uk/id/local-authority/43UM,WOKING BOROUGH COUNCIL,13/04/2022,04/05/2022,0000477168/118,OPUS ENERGY LIMITED,40311700,-72.53,HOUSING SERVICES - LANDLORDS EXPENSES,ELECTRICITY,D400,ELECTRICITY,HOUSING SERVICES,UTILITIES
http://statistics.data.gov.uk/id/local-authority/43UM,WOKING BOROUGH COUNCIL,13/04/2022,04/05/2022,0000477168/119,OPUS ENERGY LIMITED,40311700,-53.89,HOUSING SERVICES - LANDLORDS EXPENSES,ELECTRICITY,D400,ELECTRICITY,HOUSING SERVICES,UTILITIES
http://statistics.data.gov.uk/id/local-authority/43UM,WOKING BOROUGH COUNCIL,13/04/2022,04/05/2022,0000477168/120,OPUS ENERGY LIMITED,40311700,-88.28,HOUSING SERVICES - LANDLORDS EXPENSES,ELECTRICITY,D400,ELECTRICITY,HOUSING SERVICES,UTILITIES
http://statistics.data.gov.uk/id/local-authority/43UM,WOKING BOROUGH COUNCIL,13/04/2022,04/05/2022,0000477168/121,OPUS ENERGY LIMITED,40311700,-91.24,HOUSING SERVICES - LANDLORDS EXPENSES,ELECTRICITY,D400,ELECTRICITY,HOUSING SERVICES,UTILITIES
http://statistics.data.gov.uk/id/local-authority/43UM,WOKING BOROUGH COUNCIL,13/04/2022,04/05/2022,0000477168/122,OPUS ENERGY LIMITED,40311700,-63.09,HOUSING SERVICES - LANDLORDS EXPENSES,ELECTRICITY,D400,ELECTRICITY,HOUSING SERVICES,UTILITIES
http://statistics.data.gov.uk/id/local-authority/43UM,WOKING BOROUGH COUNCIL,13/04/2022,04/05/2022,0000477168/123,OPUS ENERGY LIMITED,40311700,-58.02,HOUSING SERVICES - LANDLORDS EXPENSES,ELECTRICITY,D400,ELECTRICITY,HOUSING SERVICES,UTILITIES
http://statistics.data.gov.uk/id/local-authority/43UM,WOKING BOROUGH COUNCIL,13/04/2022,04/05/2022,0000477168/124,OPUS ENERGY LIMITED,40311700,-68.89,HOUSING SERVICES - LANDLORDS EXPENSES,ELECTRICITY,D400,ELECTRICITY,HOUSING SERVICES,UTILITIES
http://statistics.data.gov.uk/id/local-authority/43UM,WOKING BOROUGH COUNCIL,13/04/2022,04/05/2022,0000477168/125,OPUS ENERGY LIMITED,40311700,-83.48,HOUSING SERVICES - LANDLORDS EXPENSES,ELECTRICITY,D400,ELECTRICITY,HOUSING SERVICES,UTILITIES
http://statistics.data.gov.uk/id/local-authority/43UM,WOKING BOROUGH COUNCIL,13/04/2022,04/05/2022,0000477168/126,OPUS ENERGY LIMITED,40311700,205.54,HOUSING SERVICES - LANDLORDS EXPENSES,ELECTRICITY,D400,ELECTRICITY,HOUSING SERVICES,UTILITIES
http://statistics.data.gov.uk/id/local-authority/43UM,WOKING BOROUGH COUNCIL,13/04/2022,04/05/2022,0000477168/127,OPUS ENERGY LIMITED,40311700,27.69,HOUSING SERVICES - LANDLORDS EXPENSES,ELECTRICITY,D400,ELECTRICITY,HOUSING SERVICES,UTILITIES
http://statistics.data.gov.uk/id/local-authority/43UM,WOKING BOROUGH COUNCIL,13/04/2022,04/05/2022,0000477168/128,OPUS ENERGY LIMITED,40311700,29.82,HOUSING SERVICES - LANDLORDS EXPENSES,ELECTRICITY,D400,ELECTRICITY,HOUSING SERVICES,UTILITIES
http://statistics.data.gov.uk/id/local-authority/43UM,WOKING BOROUGH COUNCIL,13/04/2022,04/05/2022,0000477168/129,OPUS ENERGY LIMITED,40311700,32.99,HOUSING SERVICES - LANDLORDS EXPENSES,ELECTRICITY,D400,ELECTRICITY,HOUSING SERVICES,UTILITIES
http://statistics.data.gov.uk/id/local-authority/43UM,WOKING BOROUGH COUNCIL,13/04/2022,04/05/2022,0000477168/130,OPUS ENERGY LIMITED,40311700,32.54,HOUSING SERVICES - LANDLORDS EXPENSES,ELECTRICITY,D400,ELECTRICITY,HOUSING SERVICES,UTILITIES
http://statistics.data.gov.uk/id/local-authority/43UM,WOKING BOROUGH COUNCIL,13/04/2022,04/05/2022,0000477168/131,OPUS ENERGY LIMITED,40311700,31.81,HOUSING SERVICES - LANDLORDS EXPENSES,ELECTRICITY,D400,ELECTRICITY,HOUSING SERVICES,UTILITIES
http://statistics.data.gov.uk/id/local-authority/43UM,WOKING BOROUGH COUNCIL,13/04/2022,04/05/2022,0000477168/132,OPUS ENERGY LIMITED,40311700,30.49,HOUSING SERVICES - LANDLORDS EXPENSES,ELECTRICITY,D400,ELECTRICITY,HOUSING SERVICES,UTILITIES
http://statistics.data.gov.uk/id/local-authority/43UM,WOKING BOROUGH COUNCIL,13/04/2022,04/05/2022,0000477168/133,OPUS ENERGY LIMITED,40311700,27.19,HOUSING SERVICES - LANDLORDS EXPENSES,ELECTRICITY,D400,ELECTRICITY,HOUSING SERVICES,UTILITIES
http://statistics.data.gov.uk/id/local-authority/43UM,WOKING BOROUGH COUNCIL,13/04/2022,04/05/2022,0000477168/134,OPUS ENERGY LIMITED,40311700,22.55,HOUSING SERVICES - LANDLORDS EXPENSES,ELECTRICITY,D400,ELECTRICITY,HOUSING SERVICES,UTILITIES
http://statistics.data.gov.uk/id/local-authority/43UM,WOKING BOROUGH COUNCIL,13/04/2022,04/05/2022,0000477168/135,OPUS ENERGY LIMITED,40311700,18.47,HOUSING SERVICES - LANDLORDS EXPENSES,ELECTRICITY,D400,ELECTRICITY,HOUSING SERVICES,UTILITIES
http://statistics.data.gov.uk/id/local-authority/43UM,WOKING BOROUGH COUNCIL,13/04/2022,04/05/2022,0000477168/136,OPUS ENERGY LIMITED,40311700,8.28,HOUSING SERVICES - LANDLORDS EXPENSES,ELECTRICITY,D400,ELECTRICITY,HOUSING SERVICES,UTILITIES
http://statistics.data.gov.uk/id/local-authority/43UM,WOKING BOROUGH COUNCIL,13/04/2022,04/05/2022,0000477168/137,OPUS ENERGY LIMITED,40311700,39.29,HOUSING SERVICES - LANDLORDS EXPENSES,ELECTRICITY,D400,ELECTRICITY,HOUSING SERVICES,UTILITIES
http://statistics.data.gov.uk/id/local-authority/43UM,WOKING BOROUGH COUNCIL,13/04/2022,04/05/2022,0000477168/138,OPUS ENERGY LIMITED,40311700,39.50,HOUSING SERVICES - LANDLORDS EXPENSES,ELECTRICITY,D400,ELECTRICITY,HOUSING SERVICES,UTILITIES
http://statistics.data.gov.uk/id/local-authority/43UM,WOKING BOROUGH COUNCIL,13/04/2022,04/05/2022,0000477168/139,OPUS ENERGY LIMITED,40311700,8.53,HOUSING SERVICES - LANDLORDS EXPENSES,ELECTRICITY,D400,ELECTRICITY,HOUSING SERVICES,UTILITIES
http://statistics.data.gov.uk/id/local-authority/43UM,WOKING BOROUGH COUNCIL,13/04/2022,04/05/2022,0000477168/140,OPUS ENERGY LIMITED,40311700,22.01,HOUSING SERVICES - LANDLORDS EXPENSES,ELECTRICITY,D400,ELECTRICITY,HOUSING SERVICES,UTILITIES
http://statistics.data.gov.uk/id/local-authority/43UM,WOKING BOROUGH COUNCIL,13/04/2022,04/05/2022,0000477168/141,OPUS ENERGY LIMITED,40311700,7.13,HOUSING SERVICES - LANDLORDS EXPENSES,ELECTRICITY,D400,ELECTRICITY,HOUSING SERVICES,UTILITIES
http://statistics.data.gov.uk/id/local-authority/43UM,WOKING BOROUGH COUNCIL,13/04/2022,04/05/2022,0000477168/142,OPUS ENERGY LIMITED,40311700,15.31,HOUSING SERVICES - LANDLORDS EXPENSES,ELECTRICITY,D400,ELECTRICITY,HOUSING SERVICES,UTILITIES
http://statistics.data.gov.uk/id/local-authority/43UM,WOKING BOROUGH COUNCIL,13/04/2022,04/05/2022,0000477168/143,OPUS ENERGY LIMITED,40311700,11.61,HOUSING SERVICES - LANDLORDS EXPENSES,ELECTRICITY,D400,ELECTRICITY,HOUSING SERVICES,UTILITIES
http://statistics.data.gov.uk/id/local-authority/43UM,WOKING BOROUGH COUNCIL,13/04/2022,04/05/2022,0000477168/144,OPUS ENERGY LIMITED,40311700,13.21,HOUSING SERVICES - LANDLORDS EXPENSES,ELECTRICITY,D400,ELECTRICITY,HOUSING SERVICES,UTILITIES
http://statistics.data.gov.uk/id/local-authority/43UM,WOKING BOROUGH COUNCIL,13/04/2022,04/05/2022,0000477168/146,OPUS ENERGY LIMITED,40311700,5.74,HOUSING SERVICES - LANDLORDS EXPENSES,ELECTRICITY,D400,ELECTRICITY,HOUSING SERVICES,UTILITIES
http://statistics.data.gov.uk/id/local-authority/43UM,WOKING BOROUGH COUNCIL,13/04/2022,04/05/2022,0000477168/147,OPUS ENERGY LIMITED,40311700,11.94,HOUSING SERVICES - LANDLORDS EXPENSES,ELECTRICITY,D400,ELECTRICITY,HOUSING SERVICES,UTILITIES
http://statistics.data.gov.uk/id/local-authority/43UM,WOKING BOROUGH COUNCIL,13/04/2022,04/05/2022,0000477168/148,OPUS ENERGY LIMITED,40311700,12.19,HOUSING SERVICES - LANDLORDS EXPENSES,ELECTRICITY,D400,ELECTRICITY,HOUSING SERVICES,UTILITIES
http://statistics.data.gov.uk/id/local-authority/43UM,WOKING BOROUGH COUNCIL,13/04/2022,04/05/2022,0000477168/149,OPUS ENERGY LIMITED,40311700,5.14,HOUSING SERVICES - LANDLORDS EXPENSES,ELECTRICITY,D400,ELECTRICITY,HOUSING SERVICES,UTILITIES
http://statistics.data.gov.uk/id/local-authority/43UM,WOKING BOROUGH COUNCIL,13/04/2022,04/05/2022,0000477168/150,OPUS ENERGY LIMITED,40311700,85.20,HOUSING SERVICES - LANDLORDS EXPENSES,ELECTRICITY,D400,ELECTRICITY,HOUSING SERVICES,UTILITIES
http://statistics.data.gov.uk/id/local-authority/43UM,WOKING BOROUGH COUNCIL,13/04/2022,04/05/2022,0000477168/151,OPUS ENERGY LIMITED,40311700,29.65,HOUSING SERVICES - LANDLORDS EXPENSES,ELECTRICITY,D400,ELECTRICITY,HOUSING SERVICES,UTILITIES
http://statistics.data.gov.uk/id/local-authority/43UM,WOKING BOROUGH COUNCIL,13/04/2022,04/05/2022,0000477168/152,OPUS ENERGY LIMITED,40311700,22.52,HOUSING SERVICES - LANDLORDS EXPENSES,ELECTRICITY,D400,ELECTRICITY,HOUSING SERVICES,UTILITIES
http://statistics.data.gov.uk/id/local-authority/43UM,WOKING BOROUGH COUNCIL,13/04/2022,04/05/2022,0000477168/153,OPUS ENERGY LIMITED,40311700,21.32,HOUSING SERVICES - LANDLORDS EXPENSES,ELECTRICITY,D400,ELECTRICITY,HOUSING SERVICES,UTILITIES
http://statistics.data.gov.uk/id/local-authority/43UM,WOKING BOROUGH COUNCIL,13/04/2022,04/05/2022,0000477168/154,OPUS ENERGY LIMITED,40311700,21.19,HOUSING SERVICES - LANDLORDS EXPENSES,ELECTRICITY,D400,ELECTRICITY,HOUSING SERVICES,UTILITIES
http://statistics.data.gov.uk/id/local-authority/43UM,WOKING BOROUGH COUNCIL,13/04/2022,04/05/2022,0000477168/155,OPUS ENERGY LIMITED,40311700,25.68,HOUSING SERVICES - LANDLORDS EXPENSES,ELECTRICITY,D400,ELECTRICITY,HOUSING SERVICES,UTILITIES
http://statistics.data.gov.uk/id/local-authority/43UM,WOKING BOROUGH COUNCIL,13/04/2022,04/05/2022,0000477168/156,OPUS ENERGY LIMITED,40311700,25.89,HOUSING SERVICES - LANDLORDS EXPENSES,ELECTRICITY,D400,ELECTRICITY,HOUSING SERVICES,UTILITIES
http://statistics.data.gov.uk/id/local-authority/43UM,WOKING BOROUGH COUNCIL,13/04/2022,04/05/2022,0000477168/157,OPUS ENERGY LIMITED,40311700,307.27,HOUSING SERVICES - LANDLORDS EXPENSES,ELECTRICITY,D400,ELECTRICITY,HOUSING SERVICES,UTILITIES
http://statistics.data.gov.uk/id/local-authority/43UM,WOKING BOROUGH COUNCIL,13/04/2022,04/05/2022,0000477168/159,OPUS ENERGY LIMITED,40311700,27.18,HOUSING SERVICES - LANDLORDS EXPENSES,ELECTRICITY,D400,ELECTRICITY,HOUSING SERVICES,UTILITIES
http://statistics.data.gov.uk/id/local-authority/43UM,WOKING BOROUGH COUNCIL,13/04/2022,04/05/2022,0000477168/160,OPUS ENERGY LIMITED,40311700,84.47,HOUSING SERVICES - LANDLORDS EXPENSES,ELECTRICITY,D400,ELECTRICITY,HOUSING SERVICES,UTILITIES
http://statistics.data.gov.uk/id/local-authority/43UM,WOKING BOROUGH COUNCIL,13/04/2022,04/05/2022,0000477168/161,OPUS ENERGY LIMITED,40311700,90.61,HOUSING SERVICES - LANDLORDS EXPENSES,ELECTRICITY,D400,ELECTRICITY,HOUSING SERVICES,UTILITIES
http://statistics.data.gov.uk/id/local-authority/43UM,WOKING BOROUGH COUNCIL,13/04/2022,04/05/2022,0000477168/162,OPUS ENERGY LIMITED,40311700,43.75,HOUSING SERVICES - LANDLORDS EXPENSES,ELECTRICITY,D400,ELECTRICITY,HOUSING SERVICES,UTILITIES
http://statistics.data.gov.uk/id/local-authority/43UM,WOKING BOROUGH COUNCIL,13/04/2022,04/05/2022,0000477168/163,OPUS ENERGY LIMITED,40311700,5.78,HOUSING SERVICES - LANDLORDS EXPENSES,ELECTRICITY,D400,ELECTRICITY,HOUSING SERVICES,UTILITIES
http://statistics.data.gov.uk/id/local-authority/43UM,WOKING BOROUGH COUNCIL,13/04/2022,04/05/2022,0000477168/166,OPUS ENERGY LIMITED,40311700,23.90,HOUSING SERVICES - LANDLORDS EXPENSES,ELECTRICITY,D400,ELECTRICITY,HOUSING SERVICES,UTILITIES
http://statistics.data.gov.uk/id/local-authority/43UM,WOKING BOROUGH COUNCIL,13/04/2022,04/05/2022,0000477168/167,OPUS ENERGY LIMITED,40311700,"2,605.58",HOUSING SERVICES - LANDLORDS EXPENSES,ELECTRICITY,D400,ELECTRICITY,HOUSING SERVICES,UTILITIES
http://statistics.data.gov.uk/id/local-authority/43UM,WOKING BOROUGH COUNCIL,13/04/2022,04/05/2022,0000477168/169,OPUS ENERGY LIMITED,40311700,64.71,HOUSING SERVICES - LANDLORDS EXPENSES,ELECTRICITY,D400,ELECTRICITY,HOUSING SERVICES,UTILITIES
http://statistics.data.gov.uk/id/local-authority/43UM,WOKING BOROUGH COUNCIL,13/04/2022,04/05/2022,0000477168/170,OPUS ENERGY LIMITED,40311700,35.47,HOUSING SERVICES - LANDLORDS EXPENSES,ELECTRICITY,D400,ELECTRICITY,HOUSING SERVICES,UTILITIES
http://statistics.data.gov.uk/id/local-authority/43UM,WOKING BOROUGH COUNCIL,13/04/2022,04/05/2022,0000477168/171,OPUS ENERGY LIMITED,40311700,320.04,HOUSING SERVICES - LANDLORDS EXPENSES,ELECTRICITY,D400,ELECTRICITY,HOUSING SERVICES,UTILITIES
http://statistics.data.gov.uk/id/local-authority/43UM,WOKING BOROUGH COUNCIL,13/04/2022,04/05/2022,0000477168/174,OPUS ENERGY LIMITED,40311700,6.65,HOUSING SERVICES - LANDLORDS EXPENSES,ELECTRICITY,D400,ELECTRICITY,HOUSING SERVICES,UTILITIES
http://statistics.data.gov.uk/id/local-authority/43UM,WOKING BOROUGH COUNCIL,13/04/2022,04/05/2022,0000477168/175,OPUS ENERGY LIMITED,40311700,37.97,HOUSING SERVICES - LANDLORDS EXPENSES,ELECTRICITY,D400,ELECTRICITY,HOUSING SERVICES,UTILITIES
http://statistics.data.gov.uk/id/local-authority/43UM,WOKING BOROUGH COUNCIL,13/04/2022,04/05/2022,0000477168/179,OPUS ENERGY LIMITED,40311700,-266.72,HOUSING SERVICES - LANDLORDS EXPENSES,ELECTRICITY,D400,ELECTRICITY,HOUSING SERVICES,UTILITIES
http://statistics.data.gov.uk/id/local-authority/43UM,WOKING BOROUGH COUNCIL,13/04/2022,04/05/2022,0000477168/180,OPUS ENERGY LIMITED,40311700,36.42,HOUSING SERVICES - LANDLORDS EXPENSES,ELECTRICITY,D400,ELECTRICITY,HOUSING SERVICES,UTILITIES
http://statistics.data.gov.uk/id/local-authority/43UM,WOKING BOROUGH COUNCIL,13/04/2022,04/05/2022,0000477168/181,OPUS ENERGY LIMITED,40311700,4.76,HOUSING SERVICES - LANDLORDS EXPENSES,ELECTRICITY,D400,ELECTRICITY,HOUSING SERVICES,UTILITIES
http://statistics.data.gov.uk/id/local-authority/43UM,WOKING BOROUGH COUNCIL,13/04/2022,04/05/2022,0000477168/182,OPUS ENERGY LIMITED,40311700,-5.82,HOUSING SERVICES - LANDLORDS EXPENSES,ELECTRICITY,D400,ELECTRICITY,HOUSING SERVICES,UTILITIES
http://statistics.data.gov.uk/id/local-authority/43UM,WOKING BOROUGH COUNCIL,13/04/2022,04/05/2022,0000477168/183,OPUS ENERGY LIMITED,40311700,61.37,HOUSING SERVICES - LANDLORDS EXPENSES,ELECTRICITY,D400,ELECTRICITY,HOUSING SERVICES,UTILITIES
http://statistics.data.gov.uk/id/local-authority/43UM,WOKING BOROUGH COUNCIL,13/04/2022,04/05/2022,0000477168/184,OPUS ENERGY LIMITED,40311700,82.15,HOUSING SERVICES - LANDLORDS EXPENSES,ELECTRICITY,D400,ELECTRICITY,HOUSING SERVICES,UTILITIES
http://statistics.data.gov.uk/id/local-authority/43UM,WOKING BOROUGH COUNCIL,13/04/2022,04/05/2022,0000477168/185,OPUS ENERGY LIMITED,40311700,15.32,HOUSING SERVICES - LANDLORDS EXPENSES,ELECTRICITY,D400,ELECTRICITY,HOUSING SERVICES,UTILITIES
http://statistics.data.gov.uk/id/local-authority/43UM,WOKING BOROUGH COUNCIL,13/04/2022,04/05/2022,0000477168/186,OPUS ENERGY LIMITED,40311700,6.64,HOUSING SERVICES - LANDLORDS EXPENSES,ELECTRICITY,D400,ELECTRICITY,HOUSING SERVICES,UTILITIES
http://statistics.data.gov.uk/id/local-authority/43UM,WOKING BOROUGH COUNCIL,13/04/2022,04/05/2022,0000477168/187,OPUS ENERGY LIMITED,40311700,110.96,HOUSING SERVICES - LANDLORDS EXPENSES,ELECTRICITY,D400,ELECTRICITY,HOUSING SERVICES,UTILITIES
http://statistics.data.gov.uk/id/local-authority/43UM,WOKING BOROUGH COUNCIL,13/04/2022,04/05/2022,0000477168/188,OPUS ENERGY LIMITED,40311700,9.91,HOUSING SERVICES - LANDLORDS EXPENSES,ELECTRICITY,D400,ELECTRICITY,HOUSING SERVICES,UTILITIES
http://statistics.data.gov.uk/id/local-authority/43UM,WOKING BOROUGH COUNCIL,13/04/2022,04/05/2022,0000477168/189,OPUS ENERGY LIMITED,40311700,33.24,HOUSING SERVICES - LANDLORDS EXPENSES,ELECTRICITY,D400,ELECTRICITY,HOUSING SERVICES,UTILITIES
http://statistics.data.gov.uk/id/local-authority/43UM,WOKING BOROUGH COUNCIL,13/04/2022,04/05/2022,0000477168/190,OPUS ENERGY LIMITED,40311700,26.37,HOUSING SERVICES - LANDLORDS EXPENSES,ELECTRICITY,D400,ELECTRICITY,HOUSING SERVICES,UTILITIES
http://statistics.data.gov.uk/id/local-authority/43UM,WOKING BOROUGH COUNCIL,13/04/2022,04/05/2022,0000477168/201,OPUS ENERGY LIMITED,40311700,72.80,HOUSING SERVICES - LANDLORDS EXPENSES,ELECTRICITY,D400,ELECTRICITY,HOUSING SERVICES,UTILITIES
http://statistics.data.gov.uk/id/local-authority/43UM,WOKING BOROUGH COUNCIL,13/04/2022,04/05/2022,0000477168/202,OPUS ENERGY LIMITED,40311700,58.56,HOUSING SERVICES - LANDLORDS EXPENSES,ELECTRICITY,D400,ELECTRICITY,HOUSING SERVICES,UTILITIES
http://statistics.data.gov.uk/id/local-authority/43UM,WOKING BOROUGH COUNCIL,13/04/2022,04/05/2022,0000477168/203,OPUS ENERGY LIMITED,40311700,307.40,HOUSING SERVICES - LANDLORDS EXPENSES,ELECTRICITY,D400,ELECTRICITY,HOUSING SERVICES,UTILITIES
http://statistics.data.gov.uk/id/local-authority/43UM,WOKING BOROUGH COUNCIL,13/04/2022,04/05/2022,0000477168/205,OPUS ENERGY LIMITED,40311700,46.31,HOUSING SERVICES - LANDLORDS EXPENSES,ELECTRICITY,D400,ELECTRICITY,HOUSING SERVICES,UTILITIES
http://statistics.data.gov.uk/id/local-authority/43UM,WOKING BOROUGH COUNCIL,13/04/2022,04/05/2022,0000477168/206,OPUS ENERGY LIMITED,40311700,19.62,HOUSING SERVICES - LANDLORDS EXPENSES,ELECTRICITY,D400,ELECTRICITY,HOUSING SERVICES,UTILITIES
http://statistics.data.gov.uk/id/local-authority/43UM,WOKING BOROUGH COUNCIL,13/04/2022,04/05/2022,0000477168/207,OPUS ENERGY LIMITED,40311700,11.33,HOUSING SERVICES - LANDLORDS EXPENSES,ELECTRICITY,D400,ELECTRICITY,HOUSING SERVICES,UTILITIES
http://statistics.data.gov.uk/id/local-authority/43UM,WOKING BOROUGH COUNCIL,13/04/2022,04/05/2022,0000477168/208,OPUS ENERGY LIMITED,40311700,5.76,HOUSING SERVICES - LANDLORDS EXPENSES,ELECTRICITY,D400,ELECTRICITY,HOUSING SERVICES,UTILITIES
http://statistics.data.gov.uk/id/local-authority/43UM,WOKING BOROUGH COUNCIL,13/04/2022,04/05/2022,0000477168/209,OPUS ENERGY LIMITED,40311700,13.89,HOUSING SERVICES - LANDLORDS EXPENSES,ELECTRICITY,D400,ELECTRICITY,HOUSING SERVICES,UTILITIES
http://statistics.data.gov.uk/id/local-authority/43UM,WOKING BOROUGH COUNCIL,13/04/2022,04/05/2022,0000477168/215,OPUS ENERGY LIMITED,40311700,14.92,HOUSING SERVICES - LANDLORDS EXPENSES,ELECTRICITY,D400,ELECTRICITY,HOUSING SERVICES,UTILITIES
http://statistics.data.gov.uk/id/local-authority/43UM,WOKING BOROUGH COUNCIL,13/04/2022,04/05/2022,0000477168/217,OPUS ENERGY LIMITED,40311700,6.01,HOUSING SERVICES - LANDLORDS EXPENSES,ELECTRICITY,D400,ELECTRICITY,HOUSING SERVICES,UTILITIES
http://statistics.data.gov.uk/id/local-authority/43UM,WOKING BOROUGH COUNCIL,13/04/2022,04/05/2022,0000477168/218,OPUS ENERGY LIMITED,40311700,108.77,HOUSING SERVICES - LANDLORDS EXPENSES,ELECTRICITY,D400,ELECTRICITY,HOUSING SERVICES,UTILITIES
http://statistics.data.gov.uk/id/local-authority/43UM,WOKING BOROUGH COUNCIL,13/04/2022,04/05/2022,0000477168/223,OPUS ENERGY LIMITED,40311700,20.61,HOUSING SERVICES - LANDLORDS EXPENSES,ELECTRICITY,D400,ELECTRICITY,HOUSING SERVICES,UTILITIES
http://statistics.data.gov.uk/id/local-authority/43UM,WOKING BOROUGH COUNCIL,13/04/2022,04/05/2022,0000477168/226,OPUS ENERGY LIMITED,40311700,40.06,HOUSING SERVICES - LANDLORDS EXPENSES,ELECTRICITY,D400,ELECTRICITY,HOUSING SERVICES,UTILITIES
http://statistics.data.gov.uk/id/local-authority/43UM,WOKING BOROUGH COUNCIL,13/04/2022,04/05/2022,0000477168/227,OPUS ENERGY LIMITED,40311700,65.54,HOUSING SERVICES - LANDLORDS EXPENSES,ELECTRICITY,D400,ELECTRICITY,HOUSING SERVICES,UTILITIES
http://statistics.data.gov.uk/id/local-authority/43UM,WOKING BOROUGH COUNCIL,13/04/2022,04/05/2022,0000477168/228,OPUS ENERGY LIMITED,40311700,33.76,HOUSING SERVICES - LANDLORDS EXPENSES,ELECTRICITY,D400,ELECTRICITY,HOUSING SERVICES,UTILITIES
http://statistics.data.gov.uk/id/local-authority/43UM,WOKING BOROUGH COUNCIL,13/04/2022,04/05/2022,0000477168/229,OPUS ENERGY LIMITED,40311700,178.71,HOUSING SERVICES - LANDLORDS EXPENSES,ELECTRICITY,D400,ELECTRICITY,HOUSING SERVICES,UTILITIES
http://statistics.data.gov.uk/id/local-authority/43UM,WOKING BOROUGH COUNCIL,13/04/2022,04/05/2022,0000477168/231,OPUS ENERGY LIMITED,40311700,48.40,HOUSING SERVICES - LANDLORDS EXPENSES,ELECTRICITY,D400,ELECTRICITY,HOUSING SERVICES,UTILITIES
http://statistics.data.gov.uk/id/local-authority/43UM,WOKING BOROUGH COUNCIL,13/04/2022,04/05/2022,0000477168/232,OPUS ENERGY LIMITED,40311700,6.48,HOUSING SERVICES - LANDLORDS EXPENSES,ELECTRICITY,D400,ELECTRICITY,HOUSING SERVICES,UTILITIES
http://statistics.data.gov.uk/id/local-authority/43UM,WOKING BOROUGH COUNCIL,13/04/2022,04/05/2022,0000477168/235,OPUS ENERGY LIMITED,40311700,38.46,HOUSING SERVICES - LANDLORDS EXPENSES,ELECTRICITY,D400,ELECTRICITY,HOUSING SERVICES,UTILITIES
http://statistics.data.gov.uk/id/local-authority/43UM,WOKING BOROUGH COUNCIL,13/04/2022,04/05/2022,0000477168/236,OPUS ENERGY LIMITED,40311700,183.74,HOUSING SERVICES - LANDLORDS EXPENSES,ELECTRICITY,D400,ELECTRICITY,HOUSING SERVICES,UTILITIES
http://statistics.data.gov.uk/id/local-authority/43UM,WOKING BOROUGH COUNCIL,13/04/2022,04/05/2022,0000477168/238,OPUS ENERGY LIMITED,40311700,11.03,HOUSING SERVICES - LANDLORDS EXPENSES,ELECTRICITY,D400,ELECTRICITY,HOUSING SERVICES,UTILITIES
http://statistics.data.gov.uk/id/local-authority/43UM,WOKING BOROUGH COUNCIL,13/04/2022,04/05/2022,0000477168/244,OPUS ENERGY LIMITED,40311700,12.14,HOUSING SERVICES - LANDLORDS EXPENSES,ELECTRICITY,D400,ELECTRICITY,HOUSING SERVICES,UTILITIES
http://statistics.data.gov.uk/id/local-authority/43UM,WOKING BOROUGH COUNCIL,13/04/2022,04/05/2022,0000477168/245,OPUS ENERGY LIMITED,40311700,17.85,HOUSING SERVICES - LANDLORDS EXPENSES,ELECTRICITY,D400,ELECTRICITY,HOUSING SERVICES,UTILITIES
http://statistics.data.gov.uk/id/local-authority/43UM,WOKING BOROUGH COUNCIL,13/04/2022,04/05/2022,0000477168/249,OPUS ENERGY LIMITED,40311700,19.79,HOUSING SERVICES - LANDLORDS EXPENSES,ELECTRICITY,D400,ELECTRICITY,HOUSING SERVICES,UTILITIES
http://statistics.data.gov.uk/id/local-authority/43UM,WOKING BOROUGH COUNCIL,13/04/2022,04/05/2022,0000477168/250,OPUS ENERGY LIMITED,40311700,5.78,HOUSING SERVICES - LANDLORDS EXPENSES,ELECTRICITY,D400,ELECTRICITY,HOUSING SERVICES,UTILITIES
http://statistics.data.gov.uk/id/local-authority/43UM,WOKING BOROUGH COUNCIL,13/04/2022,04/05/2022,0000477168/251,OPUS ENERGY LIMITED,40311700,5.78,HOUSING SERVICES - LANDLORDS EXPENSES,ELECTRICITY,D400,ELECTRICITY,HOUSING SERVICES,UTILITIES
http://statistics.data.gov.uk/id/local-authority/43UM,WOKING BOROUGH COUNCIL,13/04/2022,04/05/2022,0000477168/255,OPUS ENERGY LIMITED,40311700,8.75,HOUSING SERVICES - LANDLORDS EXPENSES,ELECTRICITY,D400,ELECTRICITY,HOUSING SERVICES,UTILITIES
http://statistics.data.gov.uk/id/local-authority/43UM,WOKING BOROUGH COUNCIL,13/04/2022,04/05/2022,0000477168/259,OPUS ENERGY LIMITED,40311700,85.54,HOUSING SERVICES - LANDLORDS EXPENSES,ELECTRICITY,D400,ELECTRICITY,HOUSING SERVICES,UTILITIES
http://statistics.data.gov.uk/id/local-authority/43UM,WOKING BOROUGH COUNCIL,13/04/2022,04/05/2022,0000477168/260,OPUS ENERGY LIMITED,40311700,172.93,HOUSING SERVICES - LANDLORDS EXPENSES,ELECTRICITY,D400,ELECTRICITY,HOUSING SERVICES,UTILITIES
http://statistics.data.gov.uk/id/local-authority/43UM,WOKING BOROUGH COUNCIL,13/04/2022,04/05/2022,0000477168/262,OPUS ENERGY LIMITED,40311700,5.14,HOUSING SERVICES - LANDLORDS EXPENSES,ELECTRICITY,D400,ELECTRICITY,HOUSING SERVICES,UTILITIES
http://statistics.data.gov.uk/id/local-authority/43UM,WOKING BOROUGH COUNCIL,13/04/2022,04/05/2022,0000477168/264,OPUS ENERGY LIMITED,40311700,35.21,HOUSING SERVICES - LANDLORDS EXPENSES,ELECTRICITY,D400,ELECTRICITY,HOUSING SERVICES,UTILITIES
http://statistics.data.gov.uk/id/local-authority/43UM,WOKING BOROUGH COUNCIL,13/04/2022,04/05/2022,0000477168/265,OPUS ENERGY LIMITED,40311700,65.53,HOUSING SERVICES - LANDLORDS EXPENSES,ELECTRICITY,D400,ELECTRICITY,HOUSING SERVICES,UTILITIES
http://statistics.data.gov.uk/id/local-authority/43UM,WOKING BOROUGH COUNCIL,13/04/2022,04/05/2022,0000477168/266,OPUS ENERGY LIMITED,40311700,5.14,HOUSING SERVICES - LANDLORDS EXPENSES,ELECTRICITY,D400,ELECTRICITY,HOUSING SERVICES,UTILITIES
http://statistics.data.gov.uk/id/local-authority/43UM,WOKING BOROUGH COUNCIL,13/04/2022,04/05/2022,0000477168/268,OPUS ENERGY LIMITED,40311700,12.99,HOUSING SERVICES - LANDLORDS EXPENSES,ELECTRICITY,D400,ELECTRICITY,HOUSING SERVICES,UTILITIES
http://statistics.data.gov.uk/id/local-authority/43UM,WOKING BOROUGH COUNCIL,13/04/2022,04/05/2022,0000477168/269,OPUS ENERGY LIMITED,40311700,13.91,HOUSING SERVICES - LANDLORDS EXPENSES,ELECTRICITY,D400,ELECTRICITY,HOUSING SERVICES,UTILITIES
http://statistics.data.gov.uk/id/local-authority/43UM,WOKING BOROUGH COUNCIL,13/04/2022,04/05/2022,0000477168/270,OPUS ENERGY LIMITED,40311700,57.04,HOUSING SERVICES - LANDLORDS EXPENSES,ELECTRICITY,D400,ELECTRICITY,HOUSING SERVICES,UTILITIES
http://statistics.data.gov.uk/id/local-authority/43UM,WOKING BOROUGH COUNCIL,13/04/2022,04/05/2022,0000477168/271,OPUS ENERGY LIMITED,40311700,11.46,HOUSING SERVICES - LANDLORDS EXPENSES,ELECTRICITY,D400,ELECTRICITY,HOUSING SERVICES,UTILITIES
http://statistics.data.gov.uk/id/local-authority/43UM,WOKING BOROUGH COUNCIL,13/04/2022,04/05/2022,0000477168/272,OPUS ENERGY LIMITED,40311700,95.62,HOUSING SERVICES - LANDLORDS EXPENSES,ELECTRICITY,D400,ELECTRICITY,HOUSING SERVICES,UTILITIES
http://statistics.data.gov.uk/id/local-authority/43UM,WOKING BOROUGH COUNCIL,13/04/2022,04/05/2022,0000477168/273,OPUS ENERGY LIMITED,40311700,"1,538.65",HOUSING SERVICES - LANDLORDS EXPENSES,ELECTRICITY,D400,ELECTRICITY,HOUSING SERVICES,UTILITIES
http://statistics.data.gov.uk/id/local-authority/43UM,WOKING BOROUGH COUNCIL,13/04/2022,04/05/2022,0000477168/275,OPUS ENERGY LIMITED,40311700,17.03,HOUSING SERVICES - LANDLORDS EXPENSES,ELECTRICITY,D400,ELECTRICITY,HOUSING SERVICES,UTILITIES
http://statistics.data.gov.uk/id/local-authority/43UM,WOKING BOROUGH COUNCIL,13/04/2022,04/05/2022,0000477168/276,OPUS ENERGY LIMITED,40311700,65.68,HOUSING SERVICES - LANDLORDS EXPENSES,ELECTRICITY,D400,ELECTRICITY,HOUSING SERVICES,UTILITIES
http://statistics.data.gov.uk/id/local-authority/43UM,WOKING BOROUGH COUNCIL,13/04/2022,04/05/2022,0000477168/277,OPUS ENERGY LIMITED,40311700,307.72,HOUSING SERVICES - LANDLORDS EXPENSES,ELECTRICITY,D400,ELECTRICITY,HOUSING SERVICES,UTILITIES
http://statistics.data.gov.uk/id/local-authority/43UM,WOKING BOROUGH COUNCIL,13/04/2022,04/05/2022,0000477168/279,OPUS ENERGY LIMITED,40311700,19.81,HOUSING SERVICES - LANDLORDS EXPENSES,ELECTRICITY,D400,ELECTRICITY,HOUSING SERVICES,UTILITIES
http://statistics.data.gov.uk/id/local-authority/43UM,WOKING BOROUGH COUNCIL,13/04/2022,04/05/2022,0000477168/280,OPUS ENERGY LIMITED,40311700,3.57,HOUSING SERVICES - LANDLORDS EXPENSES,ELECTRICITY,D400,ELECTRICITY,HOUSING SERVICES,UTILITIES
http://statistics.data.gov.uk/id/local-authority/43UM,WOKING BOROUGH COUNCIL,13/04/2022,04/05/2022,0000477168/290,OPUS ENERGY LIMITED,40311700,79.57,HOUSING SERVICES - LANDLORDS EXPENSES,ELECTRICITY,D400,ELECTRICITY,HOUSING SERVICES,UTILITIES
http://statistics.data.gov.uk/id/local-authority/43UM,WOKING BOROUGH COUNCIL,13/04/2022,04/05/2022,0000477168/291,OPUS ENERGY LIMITED,40311700,301.05,HOUSING SERVICES - LANDLORDS EXPENSES,ELECTRICITY,D400,ELECTRICITY,HOUSING SERVICES,UTILITIES
http://statistics.data.gov.uk/id/local-authority/43UM,WOKING BOROUGH COUNCIL,13/04/2022,04/05/2022,0000477168/293,OPUS ENERGY LIMITED,40311700,69.20,HOUSING SERVICES - LANDLORDS EXPENSES,ELECTRICITY,D400,ELECTRICITY,HOUSING SERVICES,UTILITIES
http://statistics.data.gov.uk/id/local-authority/43UM,WOKING BOROUGH COUNCIL,13/04/2022,04/05/2022,0000477168/294,OPUS ENERGY LIMITED,40311700,17.55,HOUSING SERVICES - LANDLORDS EXPENSES,ELECTRICITY,D400,ELECTRICITY,HOUSING SERVICES,UTILITIES
http://statistics.data.gov.uk/id/local-authority/43UM,WOKING BOROUGH COUNCIL,13/04/2022,04/05/2022,0000477168/295,OPUS ENERGY LIMITED,40311700,74.27,HOUSING SERVICES - LANDLORDS EXPENSES,ELECTRICITY,D400,ELECTRICITY,HOUSING SERVICES,UTILITIES
http://statistics.data.gov.uk/id/local-authority/43UM,WOKING BOROUGH COUNCIL,13/04/2022,04/05/2022,0000477168/296,OPUS ENERGY LIMITED,40311700,8.58,HOUSING SERVICES - LANDLORDS EXPENSES,ELECTRICITY,D400,ELECTRICITY,HOUSING SERVICES,UTILITIES
http://statistics.data.gov.uk/id/local-authority/43UM,WOKING BOROUGH COUNCIL,13/04/2022,04/05/2022,0000477168/297,OPUS ENERGY LIMITED,40311700,11.50,HOUSING SERVICES - LANDLORDS EXPENSES,ELECTRICITY,D400,ELECTRICITY,HOUSING SERVICES,UTILITIES
http://statistics.data.gov.uk/id/local-authority/43UM,WOKING BOROUGH COUNCIL,13/04/2022,04/05/2022,0000477168/298,OPUS ENERGY LIMITED,40311700,63.31,HOUSING SERVICES - LANDLORDS EXPENSES,ELECTRICITY,D400,ELECTRICITY,HOUSING SERVICES,UTILITIES
http://statistics.data.gov.uk/id/local-authority/43UM,WOKING BOROUGH COUNCIL,13/04/2022,04/05/2022,0000477168/299,OPUS ENERGY LIMITED,40311700,154.67,HOUSING SERVICES - LANDLORDS EXPENSES,ELECTRICITY,D400,ELECTRICITY,HOUSING SERVICES,UTILITIES
http://statistics.data.gov.uk/id/local-authority/43UM,WOKING BOROUGH COUNCIL,13/04/2022,04/05/2022,0000477168/302,OPUS ENERGY LIMITED,40311700,415.88,HOUSING SERVICES - LANDLORDS EXPENSES,ELECTRICITY,D400,ELECTRICITY,HOUSING SERVICES,UTILITIES
http://statistics.data.gov.uk/id/local-authority/43UM,WOKING BOROUGH COUNCIL,13/04/2022,04/05/2022,0000477168/304,OPUS ENERGY LIMITED,40311700,53.84,HOUSING SERVICES - LANDLORDS EXPENSES,ELECTRICITY,D400,ELECTRICITY,HOUSING SERVICES,UTILITIES
http://statistics.data.gov.uk/id/local-authority/43UM,WOKING BOROUGH COUNCIL,13/04/2022,04/05/2022,0000477168/305,OPUS ENERGY LIMITED,40311700,33.34,HOUSING SERVICES - LANDLORDS EXPENSES,ELECTRICITY,D400,ELECTRICITY,HOUSING SERVICES,UTILITIES
http://statistics.data.gov.uk/id/local-authority/43UM,WOKING BOROUGH COUNCIL,13/04/2022,04/05/2022,0000477168/306,OPUS ENERGY LIMITED,40311700,19.77,HOUSING SERVICES - LANDLORDS EXPENSES,ELECTRICITY,D400,ELECTRICITY,HOUSING SERVICES,UTILITIES
http://statistics.data.gov.uk/id/local-authority/43UM,WOKING BOROUGH COUNCIL,13/04/2022,04/05/2022,0000477168/307,OPUS ENERGY LIMITED,40311700,19.64,HOUSING SERVICES - LANDLORDS EXPENSES,ELECTRICITY,D400,ELECTRICITY,HOUSING SERVICES,UTILITIES
http://statistics.data.gov.uk/id/local-authority/43UM,WOKING BOROUGH COUNCIL,13/04/2022,04/05/2022,0000477168/310,OPUS ENERGY LIMITED,40311700,-37.82,HOUSING SERVICES - LANDLORDS EXPENSES,ELECTRICITY,D400,ELECTRICITY,HOUSING SERVICES,UTILITIES
http://statistics.data.gov.uk/id/local-authority/43UM,WOKING BOROUGH COUNCIL,13/04/2022,04/05/2022,0000477168/311,OPUS ENERGY LIMITED,40311700,-33.43,HOUSING SERVICES - LANDLORDS EXPENSES,ELECTRICITY,D400,ELECTRICITY,HOUSING SERVICES,UTILITIES
http://statistics.data.gov.uk/id/local-authority/43UM,WOKING BOROUGH COUNCIL,13/04/2022,04/05/2022,0000477168/334,OPUS ENERGY LIMITED,40311700,-26.62,HOUSING SERVICES - LANDLORDS EXPENSES,ELECTRICITY,D400,ELECTRICITY,HOUSING SERVICES,UTILITIES
http://statistics.data.gov.uk/id/local-authority/43UM,WOKING BOROUGH COUNCIL,13/04/2022,04/05/2022,0000477168/351,OPUS ENERGY LIMITED,40311700,-6.85,HOUSING SERVICES - LANDLORDS EXPENSES,ELECTRICITY,D400,ELECTRICITY,HOUSING SERVICES,UTILITIES
http://statistics.data.gov.uk/id/local-authority/43UM,WOKING BOROUGH COUNCIL,13/04/2022,04/05/2022,0000477168/352,OPUS ENERGY LIMITED,40311700,-6.63,HOUSING SERVICES - LANDLORDS EXPENSES,ELECTRICITY,D400,ELECTRICITY,HOUSING SERVICES,UTILITIES
http://statistics.data.gov.uk/id/local-authority/43UM,WOKING BOROUGH COUNCIL,13/04/2022,04/05/2022,0000477168/353,OPUS ENERGY LIMITED,40311700,-6.25,HOUSING SERVICES - LANDLORDS EXPENSES,ELECTRICITY,D400,ELECTRICITY,HOUSING SERVICES,UTILITIES
http://statistics.data.gov.uk/id/local-authority/43UM,WOKING BOROUGH COUNCIL,13/04/2022,04/05/2022,0000477168/354,OPUS ENERGY LIMITED,40311700,-6.48,HOUSING SERVICES - LANDLORDS EXPENSES,ELECTRICITY,D400,ELECTRICITY,HOUSING SERVICES,UTILITIES
http://statistics.data.gov.uk/id/local-authority/43UM,WOKING BOROUGH COUNCIL,13/04/2022,04/05/2022,0000477168/355,OPUS ENERGY LIMITED,40311700,-7.22,HOUSING SERVICES - LANDLORDS EXPENSES,ELECTRICITY,D400,ELECTRICITY,HOUSING SERVICES,UTILITIES
http://statistics.data.gov.uk/id/local-authority/43UM,WOKING BOROUGH COUNCIL,13/04/2022,04/05/2022,0000477168/356,OPUS ENERGY LIMITED,40311700,-7.12,HOUSING SERVICES - LANDLORDS EXPENSES,ELECTRICITY,D400,ELECTRICITY,HOUSING SERVICES,UTILITIES
http://statistics.data.gov.uk/id/local-authority/43UM,WOKING BOROUGH COUNCIL,13/04/2022,04/05/2022,0000477168/032,OPUS ENERGY LIMITED,40311700,10.22,HOUSING SERVICES - ENERGY,CLIMATE CHANGE LEVY,D430,CLIMATE CHANGE LEVY,HOUSING SERVICES,UTILITIES
http://statistics.data.gov.uk/id/local-authority/43UM,WOKING BOROUGH COUNCIL,13/04/2022,04/05/2022,0000477168/243,OPUS ENERGY LIMITED,40311700,17.65,HOUSING SERVICES - ENERGY,CLIMATE CHANGE LEVY,D430,CLIMATE CHANGE LEVY,HOUSING SERVICES,UTILITIES
http://statistics.data.gov.uk/id/local-authority/43UM,WOKING BOROUGH COUNCIL,13/04/2022,04/05/2022,0000477168/289,OPUS ENERGY LIMITED,40311700,8.35,HOUSING SERVICES - ENERGY,CLIMATE CHANGE LEVY,D430,CLIMATE CHANGE LEVY,HOUSING SERVICES,UTILITIES
http://statistics.data.gov.uk/id/local-authority/43UM,WOKING BOROUGH COUNCIL,13/04/2022,04/05/2022,0000477168/021,OPUS ENERGY LIMITED,40311700,57.21,HOUSING SERVICES - ENERGY,ELECTRICITY,D400,ELECTRICITY,HOUSING SERVICES,UTILITIES
http://statistics.data.gov.uk/id/local-authority/43UM,WOKING BOROUGH COUNCIL,13/04/2022,04/05/2022,0000477168/022,OPUS ENERGY LIMITED,40311700,5.77,HOUSING SERVICES - ENERGY,ELECTRICITY,D400,ELECTRICITY,HOUSING SERVICES,UTILITIES
http://statistics.data.gov.uk/id/local-authority/43UM,WOKING BOROUGH COUNCIL,13/04/2022,04/05/2022,0000477168/031,OPUS ENERGY LIMITED,40311700,130.93,HOUSING SERVICES - ENERGY,ELECTRICITY,D400,ELECTRICITY,HOUSING SERVICES,UTILITIES
http://statistics.data.gov.uk/id/local-authority/43UM,WOKING BOROUGH COUNCIL,13/04/2022,04/05/2022,0000477168/033,OPUS ENERGY LIMITED,40311700,9.37,HOUSING SERVICES - ENERGY,ELECTRICITY,D400,ELECTRICITY,HOUSING SERVICES,UTILITIES
http://statistics.data.gov.uk/id/local-authority/43UM,WOKING BOROUGH COUNCIL,13/04/2022,04/05/2022,0000477168/034,OPUS ENERGY LIMITED,40311700,-63.33,HOUSING SERVICES - ENERGY,ELECTRICITY,D400,ELECTRICITY,HOUSING SERVICES,UTILITIES
http://statistics.data.gov.uk/id/local-authority/43UM,WOKING BOROUGH COUNCIL,13/04/2022,04/05/2022,0000477168/035,OPUS ENERGY LIMITED,40311700,-14.69,HOUSING SERVICES - ENERGY,ELECTRICITY,D400,ELECTRICITY,HOUSING SERVICES,UTILITIES
http://statistics.data.gov.uk/id/local-authority/43UM,WOKING BOROUGH COUNCIL,13/04/2022,04/05/2022,0000477168/036,OPUS ENERGY LIMITED,40311700,108.86,HOUSING SERVICES - ENERGY,ELECTRICITY,D400,ELECTRICITY,HOUSING SERVICES,UTILITIES
http://statistics.data.gov.uk/id/local-authority/43UM,WOKING BOROUGH COUNCIL,13/04/2022,04/05/2022,0000477168/037,OPUS ENERGY LIMITED,40311700,-85.50,HOUSING SERVICES - ENERGY,ELECTRICITY,D400,ELECTRICITY,HOUSING SERVICES,UTILITIES
http://statistics.data.gov.uk/id/local-authority/43UM,WOKING BOROUGH COUNCIL,13/04/2022,04/05/2022,0000477168/038,OPUS ENERGY LIMITED,40311700,-83.87,HOUSING SERVICES - ENERGY,ELECTRICITY,D400,ELECTRICITY,HOUSING SERVICES,UTILITIES
http://statistics.data.gov.uk/id/local-authority/43UM,WOKING BOROUGH COUNCIL,13/04/2022,04/05/2022,0000477168/039,OPUS ENERGY LIMITED,40311700,-94.41,HOUSING SERVICES - ENERGY,ELECTRICITY,D400,ELECTRICITY,HOUSING SERVICES,UTILITIES
http://statistics.data.gov.uk/id/local-authority/43UM,WOKING BOROUGH COUNCIL,13/04/2022,04/05/2022,0000477168/040,OPUS ENERGY LIMITED,40311700,-91.00,HOUSING SERVICES - ENERGY,ELECTRICITY,D400,ELECTRICITY,HOUSING SERVICES,UTILITIES
http://statistics.data.gov.uk/id/local-authority/43UM,WOKING BOROUGH COUNCIL,13/04/2022,04/05/2022,0000477168/041,OPUS ENERGY LIMITED,40311700,16.45,HOUSING SERVICES - ENERGY,ELECTRICITY,D400,ELECTRICITY,HOUSING SERVICES,UTILITIES
http://statistics.data.gov.uk/id/local-authority/43UM,WOKING BOROUGH COUNCIL,13/04/2022,04/05/2022,0000477168/070,OPUS ENERGY LIMITED,40311700,7.67,HOUSING SERVICES - ENERGY,ELECTRICITY,D400,ELECTRICITY,HOUSING SERVICES,UTILITIES
http://statistics.data.gov.uk/id/local-authority/43UM,WOKING BOROUGH COUNCIL,13/04/2022,04/05/2022,0000477168/071,OPUS ENERGY LIMITED,40311700,22.03,HOUSING SERVICES - ENERGY,ELECTRICITY,D400,ELECTRICITY,HOUSING SERVICES,UTILITIES
http://statistics.data.gov.uk/id/local-authority/43UM,WOKING BOROUGH COUNCIL,13/04/2022,04/05/2022,0000477168/089,OPUS ENERGY LIMITED,40311700,16.61,HOUSING SERVICES - ENERGY,ELECTRICITY,D400,ELECTRICITY,HOUSING SERVICES,UTILITIES
http://statistics.data.gov.uk/id/local-authority/43UM,WOKING BOROUGH COUNCIL,13/04/2022,04/05/2022,0000477168/090,OPUS ENERGY LIMITED,40311700,5.78,HOUSING SERVICES - ENERGY,ELECTRICITY,D400,ELECTRICITY,HOUSING SERVICES,UTILITIES
http://statistics.data.gov.uk/id/local-authority/43UM,WOKING BOROUGH COUNCIL,13/04/2022,04/05/2022,0000477168/173,OPUS ENERGY LIMITED,40311700,37.08,HOUSING SERVICES - ENERGY,ELECTRICITY,D400,ELECTRICITY,HOUSING SERVICES,UTILITIES
http://statistics.data.gov.uk/id/local-authority/43UM,WOKING BOROUGH COUNCIL,13/04/2022,04/05/2022,0000477168/191,OPUS ENERGY LIMITED,40311700,64.56,HOUSING SERVICES - ENERGY,ELECTRICITY,D400,ELECTRICITY,HOUSING SERVICES,UTILITIES
http://statistics.data.gov.uk/id/local-authority/43UM,WOKING BOROUGH COUNCIL,13/04/2022,04/05/2022,0000477168/198,OPUS ENERGY LIMITED,40311700,93.56,HOUSING SERVICES - ENERGY,ELECTRICITY,D400,ELECTRICITY,HOUSING SERVICES,UTILITIES
http://statistics.data.gov.uk/id/local-authority/43UM,WOKING BOROUGH COUNCIL,13/04/2022,04/05/2022,0000477168/199,OPUS ENERGY LIMITED,40311700,39.73,HOUSING SERVICES - ENERGY,ELECTRICITY,D400,ELECTRICITY,HOUSING SERVICES,UTILITIES
http://statistics.data.gov.uk/id/local-authority/43UM,WOKING BOROUGH COUNCIL,13/04/2022,04/05/2022,0000477168/200,OPUS ENERGY LIMITED,40311700,39.67,HOUSING SERVICES - ENERGY,ELECTRICITY,D400,ELECTRICITY,HOUSING SERVICES,UTILITIES
http://statistics.data.gov.uk/id/local-authority/43UM,WOKING BOROUGH COUNCIL,13/04/2022,04/05/2022,0000477168/212,OPUS ENERGY LIMITED,40311700,5.84,HOUSING SERVICES - ENERGY,ELECTRICITY,D400,ELECTRICITY,HOUSING SERVICES,UTILITIES
http://statistics.data.gov.uk/id/local-authority/43UM,WOKING BOROUGH COUNCIL,13/04/2022,04/05/2022,0000477168/213,OPUS ENERGY LIMITED,40311700,5.78,HOUSING SERVICES - ENERGY,ELECTRICITY,D400,ELECTRICITY,HOUSING SERVICES,UTILITIES
http://statistics.data.gov.uk/id/local-authority/43UM,WOKING BOROUGH COUNCIL,13/04/2022,04/05/2022,0000477168/214,OPUS ENERGY LIMITED,40311700,27.89,HOUSING SERVICES - ENERGY,ELECTRICITY,D400,ELECTRICITY,HOUSING SERVICES,UTILITIES
http://statistics.data.gov.uk/id/local-authority/43UM,WOKING BOROUGH COUNCIL,13/04/2022,04/05/2022,0000477168/219,OPUS ENERGY LIMITED,40311700,49.76,HOUSING SERVICES - ENERGY,ELECTRICITY,D400,ELECTRICITY,HOUSING SERVICES,UTILITIES
http://statistics.data.gov.uk/id/local-authority/43UM,WOKING BOROUGH COUNCIL,13/04/2022,04/05/2022,0000477168/220,OPUS ENERGY LIMITED,40311700,29.73,HOUSING SERVICES - ENERGY,ELECTRICITY,D400,ELECTRICITY,HOUSING SERVICES,UTILITIES
http://statistics.data.gov.uk/id/local-authority/43UM,WOKING BOROUGH COUNCIL,13/04/2022,04/05/2022,0000477168/221,OPUS ENERGY LIMITED,40311700,65.62,HOUSING SERVICES - ENERGY,ELECTRICITY,D400,ELECTRICITY,HOUSING SERVICES,UTILITIES
http://statistics.data.gov.uk/id/local-authority/43UM,WOKING BOROUGH COUNCIL,13/04/2022,04/05/2022,0000477168/222,OPUS ENERGY LIMITED,40311700,77.93,HOUSING SERVICES - ENERGY,ELECTRICITY,D400,ELECTRICITY,HOUSING SERVICES,UTILITIES
http://statistics.data.gov.uk/id/local-authority/43UM,WOKING BOROUGH COUNCIL,13/04/2022,04/05/2022,0000477168/241,OPUS ENERGY LIMITED,40311700,38.41,HOUSING SERVICES - ENERGY,ELECTRICITY,D400,ELECTRICITY,HOUSING SERVICES,UTILITIES
http://statistics.data.gov.uk/id/local-authority/43UM,WOKING BOROUGH COUNCIL,13/04/2022,04/05/2022,0000477168/242,OPUS ENERGY LIMITED,40311700,315.97,HOUSING SERVICES - ENERGY,ELECTRICITY,D400,ELECTRICITY,HOUSING SERVICES,UTILITIES
http://statistics.data.gov.uk/id/local-authority/43UM,WOKING BOROUGH COUNCIL,13/04/2022,04/05/2022,0000477168/246,OPUS ENERGY LIMITED,40311700,27.58,HOUSING SERVICES - ENERGY,ELECTRICITY,D400,ELECTRICITY,HOUSING SERVICES,UTILITIES
http://statistics.data.gov.uk/id/local-authority/43UM,WOKING BOROUGH COUNCIL,13/04/2022,04/05/2022,0000477168/247,OPUS ENERGY LIMITED,40311700,5.78,HOUSING SERVICES - ENERGY,ELECTRICITY,D400,ELECTRICITY,HOUSING SERVICES,UTILITIES
http://statistics.data.gov.uk/id/local-authority/43UM,WOKING BOROUGH COUNCIL,13/04/2022,04/05/2022,0000477168/248,OPUS ENERGY LIMITED,40311700,90.63,HOUSING SERVICES - ENERGY,ELECTRICITY,D400,ELECTRICITY,HOUSING SERVICES,UTILITIES
http://statistics.data.gov.uk/id/local-authority/43UM,WOKING BOROUGH COUNCIL,13/04/2022,04/05/2022,0000477168/252,OPUS ENERGY LIMITED,40311700,26.56,HOUSING SERVICES - ENERGY,ELECTRICITY,D400,ELECTRICITY,HOUSING SERVICES,UTILITIES
http://statistics.data.gov.uk/id/local-authority/43UM,WOKING BOROUGH COUNCIL,13/04/2022,04/05/2022,0000477168/253,OPUS ENERGY LIMITED,40311700,54.74,HOUSING SERVICES - ENERGY,ELECTRICITY,D400,ELECTRICITY,HOUSING SERVICES,UTILITIES
http://statistics.data.gov.uk/id/local-authority/43UM,WOKING BOROUGH COUNCIL,13/04/2022,04/05/2022,0000477168/254,OPUS ENERGY LIMITED,40311700,14.10,HOUSING SERVICES - ENERGY,ELECTRICITY,D400,ELECTRICITY,HOUSING SERVICES,UTILITIES
http://statistics.data.gov.uk/id/local-authority/43UM,WOKING BOROUGH COUNCIL,13/04/2022,04/05/2022,0000477168/287,OPUS ENERGY LIMITED,40311700,74.75,HOUSING SERVICES - ENERGY,ELECTRICITY,D400,ELECTRICITY,HOUSING SERVICES,UTILITIES
http://statistics.data.gov.uk/id/local-authority/43UM,WOKING BOROUGH COUNCIL,13/04/2022,04/05/2022,0000477168/288,OPUS ENERGY LIMITED,40311700,155.42,HOUSING SERVICES - ENERGY,ELECTRICITY,D400,ELECTRICITY,HOUSING SERVICES,UTILITIES
http://statistics.data.gov.uk/id/local-authority/43UM,WOKING BOROUGH COUNCIL,13/04/2022,04/05/2022,0000477168/301,OPUS ENERGY LIMITED,40311700,8.15,HOUSING SERVICES - ENERGY,ELECTRICITY,D400,ELECTRICITY,HOUSING SERVICES,UTILITIES
http://statistics.data.gov.uk/id/local-authority/43UM,WOKING BOROUGH COUNCIL,13/04/2022,04/05/2022,0000477168/312,OPUS ENERGY LIMITED,40311700,-32.74,HOUSING SERVICES - ENERGY,ELECTRICITY,D400,ELECTRICITY,HOUSING SERVICES,UTILITIES
http://statistics.data.gov.uk/id/local-authority/43UM,WOKING BOROUGH COUNCIL,13/04/2022,04/05/2022,0000477168/313,OPUS ENERGY LIMITED,40311700,-58.93,HOUSING SERVICES - ENERGY,ELECTRICITY,D400,ELECTRICITY,HOUSING SERVICES,UTILITIES
http://statistics.data.gov.uk/id/local-authority/43UM,WOKING BOROUGH COUNCIL,13/04/2022,04/05/2022,0000477168/314,OPUS ENERGY LIMITED,40311700,-50.51,HOUSING SERVICES - ENERGY,ELECTRICITY,D400,ELECTRICITY,HOUSING SERVICES,UTILITIES
http://statistics.data.gov.uk/id/local-authority/43UM,WOKING BOROUGH COUNCIL,13/04/2022,04/05/2022,0000477168/315,OPUS ENERGY LIMITED,40311700,-48.81,HOUSING SERVICES - ENERGY,ELECTRICITY,D400,ELECTRICITY,HOUSING SERVICES,UTILITIES
http://statistics.data.gov.uk/id/local-authority/43UM,WOKING BOROUGH COUNCIL,13/04/2022,04/05/2022,0000477168/316,OPUS ENERGY LIMITED,40311700,-6.46,HOUSING SERVICES - ENERGY,ELECTRICITY,D400,ELECTRICITY,HOUSING SERVICES,UTILITIES
http://statistics.data.gov.uk/id/local-authority/43UM,WOKING BOROUGH COUNCIL,13/04/2022,04/05/2022,0000477168/317,OPUS ENERGY LIMITED,40311700,-6.45,HOUSING SERVICES - ENERGY,ELECTRICITY,D400,ELECTRICITY,HOUSING SERVICES,UTILITIES
http://statistics.data.gov.uk/id/local-authority/43UM,WOKING BOROUGH COUNCIL,13/04/2022,04/05/2022,0000477168/318,OPUS ENERGY LIMITED,40311700,-6.92,HOUSING SERVICES - ENERGY,ELECTRICITY,D400,ELECTRICITY,HOUSING SERVICES,UTILITIES
http://statistics.data.gov.uk/id/local-authority/43UM,WOKING BOROUGH COUNCIL,13/04/2022,04/05/2022,0000477168/319,OPUS ENERGY LIMITED,40311700,-6.92,HOUSING SERVICES - ENERGY,ELECTRICITY,D400,ELECTRICITY,HOUSING SERVICES,UTILITIES
http://statistics.data.gov.uk/id/local-authority/43UM,WOKING BOROUGH COUNCIL,13/04/2022,04/05/2022,0000477168/320,OPUS ENERGY LIMITED,40311700,-43.82,HOUSING SERVICES - ENERGY,ELECTRICITY,D400,ELECTRICITY,HOUSING SERVICES,UTILITIES
http://statistics.data.gov.uk/id/local-authority/43UM,WOKING BOROUGH COUNCIL,13/04/2022,04/05/2022,0000477168/321,OPUS ENERGY LIMITED,40311700,-11.43,HOUSING SERVICES - ENERGY,ELECTRICITY,D400,ELECTRICITY,HOUSING SERVICES,UTILITIES
http://statistics.data.gov.uk/id/local-authority/43UM,WOKING BOROUGH COUNCIL,13/04/2022,04/05/2022,0000477168/322,OPUS ENERGY LIMITED,40311700,-12.37,HOUSING SERVICES - ENERGY,ELECTRICITY,D400,ELECTRICITY,HOUSING SERVICES,UTILITIES
http://statistics.data.gov.uk/id/local-authority/43UM,WOKING BOROUGH COUNCIL,13/04/2022,04/05/2022,0000477168/323,OPUS ENERGY LIMITED,40311700,-12.22,HOUSING SERVICES - ENERGY,ELECTRICITY,D400,ELECTRICITY,HOUSING SERVICES,UTILITIES
http://statistics.data.gov.uk/id/local-authority/43UM,WOKING BOROUGH COUNCIL,13/04/2022,04/05/2022,0000477168/324,OPUS ENERGY LIMITED,40311700,-10.63,HOUSING SERVICES - ENERGY,ELECTRICITY,D400,ELECTRICITY,HOUSING SERVICES,UTILITIES
http://statistics.data.gov.uk/id/local-authority/43UM,WOKING BOROUGH COUNCIL,13/04/2022,04/05/2022,0000477168/325,OPUS ENERGY LIMITED,40311700,-44.60,HOUSING SERVICES - ENERGY,ELECTRICITY,D400,ELECTRICITY,HOUSING SERVICES,UTILITIES
http://statistics.data.gov.uk/id/local-authority/43UM,WOKING BOROUGH COUNCIL,13/04/2022,04/05/2022,0000477168/326,OPUS ENERGY LIMITED,40311700,-44.91,HOUSING SERVICES - ENERGY,ELECTRICITY,D400,ELECTRICITY,HOUSING SERVICES,UTILITIES
http://statistics.data.gov.uk/id/local-authority/43UM,WOKING BOROUGH COUNCIL,13/04/2022,04/05/2022,0000477168/327,OPUS ENERGY LIMITED,40311700,-9.88,HOUSING SERVICES - ENERGY,ELECTRICITY,D400,ELECTRICITY,HOUSING SERVICES,UTILITIES
http://statistics.data.gov.uk/id/local-authority/43UM,WOKING BOROUGH COUNCIL,13/04/2022,04/05/2022,0000477168/328,OPUS ENERGY LIMITED,40311700,-10.97,HOUSING SERVICES - ENERGY,ELECTRICITY,D400,ELECTRICITY,HOUSING SERVICES,UTILITIES
http://statistics.data.gov.uk/id/local-authority/43UM,WOKING BOROUGH COUNCIL,13/04/2022,04/05/2022,0000477168/329,OPUS ENERGY LIMITED,40311700,-76.86,HOUSING SERVICES - ENERGY,ELECTRICITY,D400,ELECTRICITY,HOUSING SERVICES,UTILITIES
http://statistics.data.gov.uk/id/local-authority/43UM,WOKING BOROUGH COUNCIL,13/04/2022,04/05/2022,0000477168/330,OPUS ENERGY LIMITED,40311700,-86.58,HOUSING SERVICES - ENERGY,ELECTRICITY,D400,ELECTRICITY,HOUSING SERVICES,UTILITIES
http://statistics.data.gov.uk/id/local-authority/43UM,WOKING BOROUGH COUNCIL,13/04/2022,04/05/2022,0000477168/331,OPUS ENERGY LIMITED,40311700,-91.47,HOUSING SERVICES - ENERGY,ELECTRICITY,D400,ELECTRICITY,HOUSING SERVICES,UTILITIES
http://statistics.data.gov.uk/id/local-authority/43UM,WOKING BOROUGH COUNCIL,13/04/2022,04/05/2022,0000477168/332,OPUS ENERGY LIMITED,40311700,-83.30,HOUSING SERVICES - ENERGY,ELECTRICITY,D400,ELECTRICITY,HOUSING SERVICES,UTILITIES
http://statistics.data.gov.uk/id/local-authority/43UM,WOKING BOROUGH COUNCIL,13/04/2022,04/05/2022,0000477168/333,OPUS ENERGY LIMITED,40311700,-94.46,HOUSING SERVICES - ENERGY,ELECTRICITY,D400,ELECTRICITY,HOUSING SERVICES,UTILITIES
http://statistics.data.gov.uk/id/local-authority/43UM,WOKING BOROUGH COUNCIL,13/04/2022,04/05/2022,0000477168/194,OPUS ENERGY LIMITED,40311700,62.63,INDEPENDENT LIVING SERVICES - MOORCROFT,CLIMATE CHANGE LEVY,D430,CLIMATE CHANGE LEVY,INDEPENDENT LIVING SERVICES,UTILITIES
http://statistics.data.gov.uk/id/local-authority/43UM,WOKING BOROUGH COUNCIL,13/04/2022,04/05/2022,0000477168/193,OPUS ENERGY LIMITED,40311700,"1,131.09",INDEPENDENT LIVING SERVICES - MOORCROFT,ELECTRICITY,D400,ELECTRICITY,INDEPENDENT LIVING SERVICES,UTILITIES
http://statistics.data.gov.uk/id/local-authority/43UM,WOKING BOROUGH COUNCIL,13/04/2022,04/05/2022,0000477168/005,OPUS ENERGY LIMITED,40311700,184.76,ASSET MANAGEMENT - ALBION HOUSE (WOKING ONE),ELECTRICITY,D400,ELECTRICITY,ASSET MANAGEMENT,UTILITIES
http://statistics.data.gov.uk/id/local-authority/43UM,WOKING BOROUGH COUNCIL,13/04/2022,04/05/2022,0000477168/284,OPUS ENERGY LIMITED,40311700,75.81,ASSET MANAGEMENT - UNIT 15A MON WAY EAST,CLIMATE CHANGE LEVY,D430,CLIMATE CHANGE LEVY,ASSET MANAGEMENT,UTILITIES
http://statistics.data.gov.uk/id/local-authority/43UM,WOKING BOROUGH COUNCIL,13/04/2022,04/05/2022,0000477168/283,OPUS ENERGY LIMITED,40311700,"1,374.95",ASSET MANAGEMENT - UNIT 15A MON WAY EAST,ELECTRICITY,D400,ELECTRICITY,ASSET MANAGEMENT,UTILITIES
http://statistics.data.gov.uk/id/local-authority/43UM,WOKING BOROUGH COUNCIL,13/04/2022,04/05/2022,0000477168/192,OPUS ENERGY LIMITED,40311700,77.82,ASSET MANAGEMENT - PLOT 9A MON WAY EAST,ELECTRICITY,D400,ELECTRICITY,ASSET MANAGEMENT,UTILITIES
http://statistics.data.gov.uk/id/local-authority/43UM,WOKING BOROUGH COUNCIL,13/04/2022,04/05/2022,0000477168/101,OPUS ENERGY LIMITED,40311700,30.05,ASSET MANAGEMENT - TOWN SQUARE LIGHTING,ELECTRICITY,D400,ELECTRICITY,ASSET MANAGEMENT,UTILITIES
http://statistics.data.gov.uk/id/local-authority/43UM,WOKING BOROUGH COUNCIL,13/04/2022,04/05/2022,0000477168/102,OPUS ENERGY LIMITED,40311700,90.49,ASSET MANAGEMENT - TOWN SQUARE LIGHTING,ELECTRICITY,D400,ELECTRICITY,ASSET MANAGEMENT,UTILITIES
http://statistics.data.gov.uk/id/local-authority/43UM,WOKING BOROUGH COUNCIL,13/04/2022,04/05/2022,0000477168/282,OPUS ENERGY LIMITED,40311700,29.10,ASSET MANAGEMENT - MABLE ST GARAGE & SHOP,CLIMATE CHANGE LEVY,D430,CLIMATE CHANGE LEVY,ASSET MANAGEMENT,UTILITIES
http://statistics.data.gov.uk/id/local-authority/43UM,WOKING BOROUGH COUNCIL,13/04/2022,04/05/2022,0000477168/281,OPUS ENERGY LIMITED,40311700,562.54,ASSET MANAGEMENT - MABLE ST GARAGE & SHOP,ELECTRICITY,D400,ELECTRICITY,ASSET MANAGEMENT,UTILITIES
http://statistics.data.gov.uk/id/local-authority/43UM,WOKING BOROUGH COUNCIL,13/04/2022,04/05/2022,0000477168/164,OPUS ENERGY LIMITED,40311700,694.13,ASSET MANAGEMENT - PEACOCKS - GLOCS CHAMB,ELECTRICITY,D400,ELECTRICITY,ASSET MANAGEMENT,UTILITIES
http://statistics.data.gov.uk/id/local-authority/43UM,WOKING BOROUGH COUNCIL,13/04/2022,04/05/2022,0000477168/165,OPUS ENERGY LIMITED,40311700,40.52,ASSET MANAGEMENT - PEACOCKS - GLOCS CHAMB,ELECTRICITY,D400,ELECTRICITY,ASSET MANAGEMENT,UTILITIES
http://statistics.data.gov.uk/id/local-authority/43UM,WOKING BOROUGH COUNCIL,13/04/2022,04/05/2022,0000477168/098,OPUS ENERGY LIMITED,40311700,11.27,ASSET MANAGEMENT - PROVINCIAL HOUSE,CLIMATE CHANGE LEVY,D430,CLIMATE CHANGE LEVY,ASSET MANAGEMENT,UTILITIES
http://statistics.data.gov.uk/id/local-authority/43UM,WOKING BOROUGH COUNCIL,13/04/2022,04/05/2022,0000477168/100,OPUS ENERGY LIMITED,40311700,30.40,ASSET MANAGEMENT - PROVINCIAL HOUSE,CLIMATE CHANGE LEVY,D430,CLIMATE CHANGE LEVY,ASSET MANAGEMENT,UTILITIES
http://statistics.data.gov.uk/id/local-authority/43UM,WOKING BOROUGH COUNCIL,13/04/2022,04/05/2022,0000477168/097,OPUS ENERGY LIMITED,40311700,194.57,ASSET MANAGEMENT - PROVINCIAL HOUSE,ELECTRICITY,D400,ELECTRICITY,ASSET MANAGEMENT,UTILITIES
http://statistics.data.gov.uk/id/local-authority/43UM,WOKING BOROUGH COUNCIL,13/04/2022,04/05/2022,0000477168/099,OPUS ENERGY LIMITED,40311700,568.75,ASSET MANAGEMENT - PROVINCIAL HOUSE,ELECTRICITY,D400,ELECTRICITY,ASSET MANAGEMENT,UTILITIES
http://statistics.data.gov.uk/id/local-authority/43UM,WOKING BOROUGH COUNCIL,13/04/2022,04/05/2022,0000477168/211,OPUS ENERGY LIMITED,40311700,171.90,ASSET MANAGEMENT - PEACOCK WALK MARKET,CLIMATE CHANGE LEVY,D430,CLIMATE CHANGE LEVY,ASSET MANAGEMENT,UTILITIES
http://statistics.data.gov.uk/id/local-authority/43UM,WOKING BOROUGH COUNCIL,13/04/2022,04/05/2022,0000477168/309,OPUS ENERGY LIMITED,40311700,34.67,ASSET MANAGEMENT - PEACOCK WALK MARKET,CLIMATE CHANGE LEVY,D430,CLIMATE CHANGE LEVY,ASSET MANAGEMENT,UTILITIES
http://statistics.data.gov.uk/id/local-authority/43UM,WOKING BOROUGH COUNCIL,13/04/2022,04/05/2022,0000477168/210,OPUS ENERGY LIMITED,40311700,"2,899.55",ASSET MANAGEMENT - PEACOCK WALK MARKET,ELECTRICITY,D400,ELECTRICITY,ASSET MANAGEMENT,UTILITIES
http://statistics.data.gov.uk/id/local-authority/43UM,WOKING BOROUGH COUNCIL,13/04/2022,04/05/2022,0000477168/308,OPUS ENERGY LIMITED,40311700,629.93,ASSET MANAGEMENT - PEACOCK WALK MARKET,ELECTRICITY,D400,ELECTRICITY,ASSET MANAGEMENT,UTILITIES
http://statistics.data.gov.uk/id/local-authority/43UM,WOKING BOROUGH COUNCIL,28/02/2022,04/05/2022,0000477049/001,OUTCO LTD,40929800,"4,925.43",NEIGHBOURHOOD SERVICES - CAR PARKS ADMIN&OPERATIONAL EX,SALT BOXES & SALT,D255,SALT BOXES & SALT,NEIGHBOURHOOD SERVICES,HIGHWAY EQUIPMENT & MATERIALS
http://statistics.data.gov.uk/id/local-authority/43UM,WOKING BOROUGH COUNCIL,28/04/2022,04/05/2022,0000477193/001,OYSTER PARTNERSHIP,40443300,"1,567.83",PLANNING SERVICES - DEVELOPMENT CONTROL,TEMPORARY STAFF,A110,TEMPORARY STAFF,PLANNING SERVICES,HUMAN RESOURCES
http://statistics.data.gov.uk/id/local-authority/43UM,WOKING BOROUGH COUNCIL,21/04/2022,04/05/2022,0000477068/001,OYSTER PARTNERSHIP,40443300,"1,860.24",ASSET MANAGEMENT - VALUATION SERVICES,TEMPORARY STAFF,A110,TEMPORARY STAFF,ASSET MANAGEMENT,HUMAN RESOURCES
http://statistics.data.gov.uk/id/local-authority/43UM,WOKING BOROUGH COUNCIL,28/04/2022,04/05/2022,0000477194/001,OYSTER PARTNERSHIP,40443300,"1,878.03",ASSET MANAGEMENT - VALUATION SERVICES,TEMPORARY STAFF,A110,TEMPORARY STAFF,ASSET MANAGEMENT,HUMAN RESOURCES
http://statistics.data.gov.uk/id/local-authority/43UM,WOKING BOROUGH COUNCIL,04/04/2022,04/05/2022,0000476525/001,PENNA PLC,40087400,"11,890.00",FINANCIAL SERVICES - FINANCIAL SERVICES,TEMPORARY STAFF,A110,TEMPORARY STAFF,FINANCIAL SERVICES,HUMAN RESOURCES
http://statistics.data.gov.uk/id/local-authority/43UM,WOKING BOROUGH COUNCIL,27/04/2022,04/05/2022,0000477161/001,PLANNING JUNGLE LIMITED,40437800,300.00,PLANNING SERVICES - PLANNING SERVICES GENERAL EXPE,SUBSCRIPTIONS,H110,SUBSCRIPTIONS,PLANNING SERVICES,HOUSING MANAGEMENT
http://statistics.data.gov.uk/id/local-authority/43UM,WOKING BOROUGH COUNCIL,31/03/2022,04/05/2022,0000476371/001,PRICE & MYERS LLP,40986400,"1,500.00",ASSET MANAGEMENT - OLD WOKING COMMUNITY CNTR OWCC,OTHER CONSULTANTS,Q430,OTHER CONSULTANTS,ASSET MANAGEMENT,CONSULTANCY
http://statistics.data.gov.uk/id/local-authority/43UM,WOKING BOROUGH COUNCIL,04/05/2022,04/05/2022,GPC/00018883,PRIME VIDEO*2D57G5J14,PROCUREMENT CARD,2.91,FINANCIAL SERVICES - BROCKHILL SOCIAL FUND,MISCELLANEOUS EXPENSES,X827,MOVIE NIGHT,MRS M CHILCOTT,RECORD SHOPS
http://statistics.data.gov.uk/id/local-authority/43UM,WOKING BOROUGH COUNCIL,23/04/2022,04/05/2022,0000477078/001,RACKSPACE INTERNATIONAL GMBH,01570000,505.46,INFORMATION TECHNOLOGY - I.T.S. ICT,HOSTED SYSTEMS,G198,HOSTED SYSTEMS,INFORMATION TECHNOLOGY,INFORMATION COMMUNICATION TECHNOLOGY
http://statistics.data.gov.uk/id/local-authority/43UM,WOKING BOROUGH COUNCIL,27/04/2022,04/05/2022,0000477182/001,REDWOOD TREE SERVICES LTD,40914100,"4,000.00",NEIGHBOURHOOD SERVICES - CLOSED BURIAL GDS/CHYD,GROUNDS MAINT-CONTRACTORS,D200,GROUNDS MAINT-CONTRACTORS,NEIGHBOURHOOD SERVICES,ENVIRONMENTAL SERVICES
http://statistics.data.gov.uk/id/local-authority/43UM,WOKING BOROUGH COUNCIL,19/04/2022,04/05/2022,0000477036/001,ROYAL MAIL GROUP LTD,00040000,360.00,CORPORATE STRATEGY - POSTAGE,POSTAGE - REPLY PAID,G710,POSTAGE - REPLY PAID,CORPORATE STRATEGY,MAIL SERVICES
http://statistics.data.gov.uk/id/local-authority/43UM,WOKING BOROUGH COUNCIL,18/04/2022,04/05/2022,0000477116/001,ROYAL MAIL GROUP LTD,00040000,1.88,CORPORATE STRATEGY - POSTAGE,POSTAGE - REPLY PAID,G710,POSTAGE - REPLY PAID,CORPORATE STRATEGY,MAIL SERVICES
http://statistics.data.gov.uk/id/local-authority/43UM,WOKING BOROUGH COUNCIL,19/11/2021,04/05/2022,0000471574/001,RUTLAND (WOKING) LIMITED,40401900,"24,395.00",ASSET MANAGEMENT - BOUNDARY ROAD SITE OPP PURCH,OTHER CONSULTANTS,Q430,OTHER CONSULTANTS,ASSET MANAGEMENT,FINANCIAL SERVICES
http://statistics.data.gov.uk/id/local-authority/43UM,WOKING BOROUGH COUNCIL,08/04/2022,04/05/2022,0000476999/001,SAFFRON CONTRACT SERVICES LIMITED,40611600,"10,535.50",HOUSING SERVICES - HRA ACQUISITIONS - GENERAL,MAIN CONTRACTOR,Q200,MAIN CONTRACTOR,HOUSING SERVICES,WORKS (CONSTRUCTION REPAIR MAINTENANCE)
http://statistics.data.gov.uk/id/local-authority/43UM,WOKING BOROUGH COUNCIL,25/04/2022,04/05/2022,0000477172/001,SAFFRON CONTRACT SERVICES LIMITED,40611600,"20,283.49",HOUSING SERVICES - HRA ACQUISITIONS - GENERAL,MAIN CONTRACTOR,Q200,MAIN CONTRACTOR,HOUSING SERVICES,WORKS (CONSTRUCTION REPAIR MAINTENANCE)
http://statistics.data.gov.uk/id/local-authority/43UM,WOKING BOROUGH COUNCIL,27/04/2022,04/05/2022,0000477190/001,SAFFRON CONTRACT SERVICES LIMITED,40611600,206.22,HOUSING SERVICES - HRA ACQUISITIONS - GENERAL,MAIN CONTRACTOR,Q200,MAIN CONTRACTOR,HOUSING SERVICES,WORKS (CONSTRUCTION REPAIR MAINTENANCE)
http://statistics.data.gov.uk/id/local-authority/43UM,WOKING BOROUGH COUNCIL,08/04/2022,04/05/2022,0000476842/001,SAFFRON CONTRACT SERVICES LIMITED,40611600,"20,363.17",HOUSING SERVICES - HOMELESSNESS DIRECTRTE FUNDING,ROUGH SLEEPER EXPENDITURE,H122,ROUGH SLEEPER EXPENDITURE,HOUSING SERVICES,WORKS (CONSTRUCTION REPAIR MAINTENANCE)
http://statistics.data.gov.uk/id/local-authority/43UM,WOKING BOROUGH COUNCIL,25/04/2022,04/05/2022,0000477083/001,SAGE AND THYME GARDEN LANDSCAPES,40674000,525.00,HOUSING SERVICES - PRIVATE SECTOR LEASING SCHEME,SCHED 1A RESPONSIVE REPAIRS,D165,SCHED 1A RESPONSIVE REPAIRS,HOUSING SERVICES,HORTICULTURAL (INCLUDES AGRICULTURE)
http://statistics.data.gov.uk/id/local-authority/43UM,WOKING BOROUGH COUNCIL,04/05/2022,04/05/2022,GPC/00018868,SAINSBURYS S/MKTS,PROCUREMENT CARD,14.95,CORPORATE STRATEGY - BOROUGH ELECTIONS,EQUIPMENT,G100,ELECTIONS MISCELLANEOUS,JOANNE MCINTOSH,GROCERY STORES
http://statistics.data.gov.uk/id/local-authority/43UM,WOKING BOROUGH COUNCIL,03/05/2022,04/05/2022,0065000298/001,REDACTED PERSONAL DATA,41025800,540.00,HOUSING SERVICES - TENANTS REMOVAL EXPENS,REMOVAL EXPENSES,H775,REMOVAL EXPENSES,HOUSING SERVICES,HOUSING MANAGEMENT
http://statistics.data.gov.uk/id/local-authority/43UM,WOKING BOROUGH COUNCIL,01/12/2021,04/05/2022,0000473980/001,SAVILLS (UK) LTD,01581900,"4,538.00",ASSET MANAGEMENT - WOLSEY PLACE,SERVICE CHARGE,D510,SERVICE CHARGE,ASSET MANAGEMENT,FACILITIES & MANAGEMENT SERVICES
http://statistics.data.gov.uk/id/local-authority/43UM,WOKING BOROUGH COUNCIL,01/12/2021,04/05/2022,0000473987/001,SAVILLS (UK) LTD,01581900,"3,086.00",ASSET MANAGEMENT - WOLSEY PLACE,SERVICE CHARGE,D510,SERVICE CHARGE,ASSET MANAGEMENT,FACILITIES & MANAGEMENT SERVICES
http://statistics.data.gov.uk/id/local-authority/43UM,WOKING BOROUGH COUNCIL,01/12/2021,04/05/2022,0000473992/001,SAVILLS (UK) LTD,01581900,"2,531.00",ASSET MANAGEMENT - WOLSEY PLACE,SERVICE CHARGE,D510,SERVICE CHARGE,ASSET MANAGEMENT,FACILITIES & MANAGEMENT SERVICES
http://statistics.data.gov.uk/id/local-authority/43UM,WOKING BOROUGH COUNCIL,22/12/2021,04/05/2022,0000474038/001,SAVILLS (UK) LTD,01581900,"-2,687.00",ASSET MANAGEMENT - WOLSEY PLACE,SERVICE CHARGE,D510,SERVICE CHARGE,ASSET MANAGEMENT,FACILITIES & MANAGEMENT SERVICES
http://statistics.data.gov.uk/id/local-authority/43UM,WOKING BOROUGH COUNCIL,22/12/2021,04/05/2022,0000474039/001,SAVILLS (UK) LTD,01581900,"-5,336.10",ASSET MANAGEMENT - WOLSEY PLACE,SERVICE CHARGE,D510,SERVICE CHARGE,ASSET MANAGEMENT,FACILITIES & MANAGEMENT SERVICES
http://statistics.data.gov.uk/id/local-authority/43UM,WOKING BOROUGH COUNCIL,22/12/2021,04/05/2022,0000474040/001,SAVILLS (UK) LTD,01581900,"-1,770.00",ASSET MANAGEMENT - WOLSEY PLACE,SERVICE CHARGE,D510,SERVICE CHARGE,ASSET MANAGEMENT,FACILITIES & MANAGEMENT SERVICES
http://statistics.data.gov.uk/id/local-authority/43UM,WOKING BOROUGH COUNCIL,22/12/2021,04/05/2022,0000474042/001,SAVILLS (UK) LTD,01581900,"-5,829.00",ASSET MANAGEMENT - WOLSEY PLACE,SERVICE CHARGE,D510,SERVICE CHARGE,ASSET MANAGEMENT,FACILITIES & MANAGEMENT SERVICES
http://statistics.data.gov.uk/id/local-authority/43UM,WOKING BOROUGH COUNCIL,22/12/2021,04/05/2022,0000474043/001,SAVILLS (UK) LTD,01581900,"-2,776.54",ASSET MANAGEMENT - WOLSEY PLACE,SERVICE CHARGE,D510,SERVICE CHARGE,ASSET MANAGEMENT,FACILITIES & MANAGEMENT SERVICES
http://statistics.data.gov.uk/id/local-authority/43UM,WOKING BOROUGH COUNCIL,22/12/2021,04/05/2022,0000474045/001,SAVILLS (UK) LTD,01581900,"-4,225.53",ASSET MANAGEMENT - WOLSEY PLACE,SERVICE CHARGE,D510,SERVICE CHARGE,ASSET MANAGEMENT,FACILITIES & MANAGEMENT SERVICES
http://statistics.data.gov.uk/id/local-authority/43UM,WOKING BOROUGH COUNCIL,22/12/2021,04/05/2022,0000474047/001,SAVILLS (UK) LTD,01581900,"-8,142.85",ASSET MANAGEMENT - WOLSEY PLACE,SERVICE CHARGE,D510,SERVICE CHARGE,ASSET MANAGEMENT,FACILITIES & MANAGEMENT SERVICES
http://statistics.data.gov.uk/id/local-authority/43UM,WOKING BOROUGH COUNCIL,22/12/2021,04/05/2022,0000474048/001,SAVILLS (UK) LTD,01581900,"-6,740.73",ASSET MANAGEMENT - WOLSEY PLACE,SERVICE CHARGE,D510,SERVICE CHARGE,ASSET MANAGEMENT,FACILITIES & MANAGEMENT SERVICES
http://statistics.data.gov.uk/id/local-authority/43UM,WOKING BOROUGH COUNCIL,22/12/2021,04/05/2022,0000474049/001,SAVILLS (UK) LTD,01581900,"-4,242.45",ASSET MANAGEMENT - WOLSEY PLACE,SERVICE CHARGE,D510,SERVICE CHARGE,ASSET MANAGEMENT,FACILITIES & MANAGEMENT SERVICES
http://statistics.data.gov.uk/id/local-authority/43UM,WOKING BOROUGH COUNCIL,22/12/2021,04/05/2022,0000474050/001,SAVILLS (UK) LTD,01581900,"-8,755.58",ASSET MANAGEMENT - WOLSEY PLACE,SERVICE CHARGE,D510,SERVICE CHARGE,ASSET MANAGEMENT,FACILITIES & MANAGEMENT SERVICES
http://statistics.data.gov.uk/id/local-authority/43UM,WOKING BOROUGH COUNCIL,22/12/2021,04/05/2022,0000474051/001,SAVILLS (UK) LTD,01581900,"-6,313.95",ASSET MANAGEMENT - WOLSEY PLACE,SERVICE CHARGE,D510,SERVICE CHARGE,ASSET MANAGEMENT,FACILITIES & MANAGEMENT SERVICES
http://statistics.data.gov.uk/id/local-authority/43UM,WOKING BOROUGH COUNCIL,22/12/2021,04/05/2022,0000474052/001,SAVILLS (UK) LTD,01581900,"-1,012.00",ASSET MANAGEMENT - WOLSEY PLACE,SERVICE CHARGE,D510,SERVICE CHARGE,ASSET MANAGEMENT,FACILITIES & MANAGEMENT SERVICES
http://statistics.data.gov.uk/id/local-authority/43UM,WOKING BOROUGH COUNCIL,22/12/2021,04/05/2022,0000474054/001,SAVILLS (UK) LTD,01581900,"-1,172.00",ASSET MANAGEMENT - WOLSEY PLACE,SERVICE CHARGE,D510,SERVICE CHARGE,ASSET MANAGEMENT,FACILITIES & MANAGEMENT SERVICES
http://statistics.data.gov.uk/id/local-authority/43UM,WOKING BOROUGH COUNCIL,22/12/2021,04/05/2022,0000474055/001,SAVILLS (UK) LTD,01581900,"-1,869.17",ASSET MANAGEMENT - WOLSEY PLACE,SERVICE CHARGE,D510,SERVICE CHARGE,ASSET MANAGEMENT,FACILITIES & MANAGEMENT SERVICES
http://statistics.data.gov.uk/id/local-authority/43UM,WOKING BOROUGH COUNCIL,22/12/2021,04/05/2022,0000474056/001,SAVILLS (UK) LTD,01581900,"-42,068.76",ASSET MANAGEMENT - WOLSEY PLACE,SERVICE CHARGE,D510,SERVICE CHARGE,ASSET MANAGEMENT,FACILITIES & MANAGEMENT SERVICES
http://statistics.data.gov.uk/id/local-authority/43UM,WOKING BOROUGH COUNCIL,22/12/2021,04/05/2022,0000474062/001,SAVILLS (UK) LTD,01581900,"-3,904.23",ASSET MANAGEMENT - WOLSEY PLACE,SERVICE CHARGE,D510,SERVICE CHARGE,ASSET MANAGEMENT,FACILITIES & MANAGEMENT SERVICES
http://statistics.data.gov.uk/id/local-authority/43UM,WOKING BOROUGH COUNCIL,06/12/2020,04/05/2022,0000474920/001,SAVILLS (UK) LTD,01581900,"2,873.00",ASSET MANAGEMENT - WOLSEY PLACE,SERVICE CHARGE,D510,SERVICE CHARGE,ASSET MANAGEMENT,FACILITIES & MANAGEMENT SERVICES
http://statistics.data.gov.uk/id/local-authority/43UM,WOKING BOROUGH COUNCIL,22/02/2022,04/05/2022,0000474924/001,SAVILLS (UK) LTD,01581900,"-22,023.49",ASSET MANAGEMENT - WOLSEY PLACE,SERVICE CHARGE,D510,SERVICE CHARGE,ASSET MANAGEMENT,FACILITIES & MANAGEMENT SERVICES
http://statistics.data.gov.uk/id/local-authority/43UM,WOKING BOROUGH COUNCIL,01/03/2022,04/05/2022,0000475539/001,SAVILLS (UK) LTD,01581900,"3,086.00",ASSET MANAGEMENT - WOLSEY PLACE,SERVICE CHARGE,D510,SERVICE CHARGE,ASSET MANAGEMENT,FACILITIES & MANAGEMENT SERVICES
http://statistics.data.gov.uk/id/local-authority/43UM,WOKING BOROUGH COUNCIL,01/03/2022,04/05/2022,0000475581/001,SAVILLS (UK) LTD,01581900,"2,993.00",ASSET MANAGEMENT - WOLSEY PLACE,SERVICE CHARGE,D510,SERVICE CHARGE,ASSET MANAGEMENT,FACILITIES & MANAGEMENT SERVICES
http://statistics.data.gov.uk/id/local-authority/43UM,WOKING BOROUGH COUNCIL,01/03/2022,04/05/2022,0000475589/001,SAVILLS (UK) LTD,01581900,"4,538.00",ASSET MANAGEMENT - WOLSEY PLACE,SERVICE CHARGE,D510,SERVICE CHARGE,ASSET MANAGEMENT,FACILITIES & MANAGEMENT SERVICES
http://statistics.data.gov.uk/id/local-authority/43UM,WOKING BOROUGH COUNCIL,21/04/2022,04/05/2022,0000477131/001,SAVILLS (UK) LTD,01581900,"1,426.28",ASSET MANAGEMENT - WOLSEY PLACE,ELECTRICITY,D400,ELECTRICITY,ASSET MANAGEMENT,FACILITIES & MANAGEMENT SERVICES
http://statistics.data.gov.uk/id/local-authority/43UM,WOKING BOROUGH COUNCIL,21/04/2022,04/05/2022,0000477132/001,SAVILLS (UK) LTD,01581900,367.59,ASSET MANAGEMENT - WOLSEY PLACE,ELECTRICITY,D400,ELECTRICITY,ASSET MANAGEMENT,FACILITIES & MANAGEMENT SERVICES
http://statistics.data.gov.uk/id/local-authority/43UM,WOKING BOROUGH COUNCIL,21/04/2022,04/05/2022,0000477133/001,SAVILLS (UK) LTD,01581900,106.79,ASSET MANAGEMENT - WOLSEY PLACE,ELECTRICITY,D400,ELECTRICITY,ASSET MANAGEMENT,FACILITIES & MANAGEMENT SERVICES
http://statistics.data.gov.uk/id/local-authority/43UM,WOKING BOROUGH COUNCIL,21/04/2022,04/05/2022,0000477134/001,SAVILLS (UK) LTD,01581900,67.27,ASSET MANAGEMENT - WOLSEY PLACE,ELECTRICITY,D400,ELECTRICITY,ASSET MANAGEMENT,FACILITIES & MANAGEMENT SERVICES
http://statistics.data.gov.uk/id/local-authority/43UM,WOKING BOROUGH COUNCIL,21/04/2022,04/05/2022,0000477135/001,SAVILLS (UK) LTD,01581900,35.03,ASSET MANAGEMENT - WOLSEY PLACE,ELECTRICITY,D400,ELECTRICITY,ASSET MANAGEMENT,FACILITIES & MANAGEMENT SERVICES
http://statistics.data.gov.uk/id/local-authority/43UM,WOKING BOROUGH COUNCIL,21/04/2022,04/05/2022,0000477136/001,SAVILLS (UK) LTD,01581900,57.46,ASSET MANAGEMENT - WOLSEY PLACE,ELECTRICITY,D400,ELECTRICITY,ASSET MANAGEMENT,FACILITIES & MANAGEMENT SERVICES
http://statistics.data.gov.uk/id/local-authority/43UM,WOKING BOROUGH COUNCIL,25/01/2022,04/05/2022,0000473880/001,SAVILLS (UK) LTD,01581900,-816.00,ASSET MANAGEMENT - WOLSEY PLACE,VOID COST,D124,VOID COST,ASSET MANAGEMENT,FACILITIES & MANAGEMENT SERVICES
http://statistics.data.gov.uk/id/local-authority/43UM,WOKING BOROUGH COUNCIL,01/12/2021,04/05/2022,0000473988/001,SAVILLS (UK) LTD,01581900,"3,347.50",ASSET MANAGEMENT - WOLSEY PLACE,VOID COST,D124,VOID COST,ASSET MANAGEMENT,FACILITIES & MANAGEMENT SERVICES
http://statistics.data.gov.uk/id/local-authority/43UM,WOKING BOROUGH COUNCIL,01/12/2021,04/05/2022,0000473994/001,SAVILLS (UK) LTD,01581900,"7,427.00",ASSET MANAGEMENT - WOLSEY PLACE,VOID COST,D124,VOID COST,ASSET MANAGEMENT,FACILITIES & MANAGEMENT SERVICES
http://statistics.data.gov.uk/id/local-authority/43UM,WOKING BOROUGH COUNCIL,22/12/2021,04/05/2022,0000474036/001,SAVILLS (UK) LTD,01581900,"-4,323.19",ASSET MANAGEMENT - WOLSEY PLACE,VOID COST,D124,VOID COST,ASSET MANAGEMENT,FACILITIES & MANAGEMENT SERVICES
http://statistics.data.gov.uk/id/local-authority/43UM,WOKING BOROUGH COUNCIL,22/12/2021,04/05/2022,0000474037/001,SAVILLS (UK) LTD,01581900,"1,787.10",ASSET MANAGEMENT - WOLSEY PLACE,VOID COST,D124,VOID COST,ASSET MANAGEMENT,FACILITIES & MANAGEMENT SERVICES
http://statistics.data.gov.uk/id/local-authority/43UM,WOKING BOROUGH COUNCIL,22/12/2021,04/05/2022,0000474053/001,SAVILLS (UK) LTD,01581900,-724.84,ASSET MANAGEMENT - WOLSEY PLACE,VOID COST,D124,VOID COST,ASSET MANAGEMENT,FACILITIES & MANAGEMENT SERVICES
http://statistics.data.gov.uk/id/local-authority/43UM,WOKING BOROUGH COUNCIL,22/12/2021,04/05/2022,0000474057/001,SAVILLS (UK) LTD,01581900,"-2,109.79",ASSET MANAGEMENT - WOLSEY PLACE,VOID COST,D124,VOID COST,ASSET MANAGEMENT,FACILITIES & MANAGEMENT SERVICES
http://statistics.data.gov.uk/id/local-authority/43UM,WOKING BOROUGH COUNCIL,22/12/2021,04/05/2022,0000474058/001,SAVILLS (UK) LTD,01581900,"-3,332.71",ASSET MANAGEMENT - WOLSEY PLACE,VOID COST,D124,VOID COST,ASSET MANAGEMENT,FACILITIES & MANAGEMENT SERVICES
http://statistics.data.gov.uk/id/local-authority/43UM,WOKING BOROUGH COUNCIL,22/12/2021,04/05/2022,0000474060/001,SAVILLS (UK) LTD,01581900,"-1,403.10",ASSET MANAGEMENT - WOLSEY PLACE,VOID COST,D124,VOID COST,ASSET MANAGEMENT,FACILITIES & MANAGEMENT SERVICES
http://statistics.data.gov.uk/id/local-authority/43UM,WOKING BOROUGH COUNCIL,22/12/2021,04/05/2022,0000474061/001,SAVILLS (UK) LTD,01581900,"-2,399.01",ASSET MANAGEMENT - WOLSEY PLACE,VOID COST,D124,VOID COST,ASSET MANAGEMENT,FACILITIES & MANAGEMENT SERVICES
http://statistics.data.gov.uk/id/local-authority/43UM,WOKING BOROUGH COUNCIL,22/12/2021,04/05/2022,0000474064/001,SAVILLS (UK) LTD,01581900,"14,930.76",ASSET MANAGEMENT - WOLSEY PLACE,VOID COST,D124,VOID COST,ASSET MANAGEMENT,FACILITIES & MANAGEMENT SERVICES
http://statistics.data.gov.uk/id/local-authority/43UM,WOKING BOROUGH COUNCIL,01/03/2022,04/05/2022,0000475574/001,SAVILLS (UK) LTD,01581900,"11,150.00",ASSET MANAGEMENT - WOLSEY PLACE,VOID COST,D124,VOID COST,ASSET MANAGEMENT,FACILITIES & MANAGEMENT SERVICES
http://statistics.data.gov.uk/id/local-authority/43UM,WOKING BOROUGH COUNCIL,25/03/2022,04/05/2022,0000476066/001,SAVILLS (UK) LTD,01581900,821.00,ASSET MANAGEMENT - WOLSEY PLACE,VOID COST,D124,VOID COST,ASSET MANAGEMENT,FACILITIES & MANAGEMENT SERVICES
http://statistics.data.gov.uk/id/local-authority/43UM,WOKING BOROUGH COUNCIL,25/03/2022,04/05/2022,0000476067/001,SAVILLS (UK) LTD,01581900,"4,721.00",ASSET MANAGEMENT - WOLSEY PLACE,VOID COST,D124,VOID COST,ASSET MANAGEMENT,FACILITIES & MANAGEMENT SERVICES
http://statistics.data.gov.uk/id/local-authority/43UM,WOKING BOROUGH COUNCIL,01/01/2022,04/05/2022,0000477150/001,SAVILLS (UK) LTD,01581900,"7,053.00",ASSET MANAGEMENT - PEACOCKS - GENERAL,SERVICE CHARGE,D510,SERVICE CHARGE,ASSET MANAGEMENT,FACILITIES & MANAGEMENT SERVICES
http://statistics.data.gov.uk/id/local-authority/43UM,WOKING BOROUGH COUNCIL,01/04/2022,04/05/2022,0000477151/001,SAVILLS (UK) LTD,01581900,"7,053.00",ASSET MANAGEMENT - PEACOCKS - GENERAL,SERVICE CHARGE,D510,SERVICE CHARGE,ASSET MANAGEMENT,FACILITIES & MANAGEMENT SERVICES
http://statistics.data.gov.uk/id/local-authority/43UM,WOKING BOROUGH COUNCIL,01/04/2022,04/05/2022,0000477152/001,SAVILLS (UK) LTD,01581900,"28,523.00",ASSET MANAGEMENT - PEACOCKS - GENERAL,SERVICE CHARGE,D510,SERVICE CHARGE,ASSET MANAGEMENT,FACILITIES & MANAGEMENT SERVICES
http://statistics.data.gov.uk/id/local-authority/43UM,WOKING BOROUGH COUNCIL,01/01/2022,04/05/2022,0000477153/001,SAVILLS (UK) LTD,01581900,"28,523.00",ASSET MANAGEMENT - PEACOCKS - GENERAL,SERVICE CHARGE,D510,SERVICE CHARGE,ASSET MANAGEMENT,FACILITIES & MANAGEMENT SERVICES
http://statistics.data.gov.uk/id/local-authority/43UM,WOKING BOROUGH COUNCIL,04/05/2022,04/05/2022,GPC/00018866,SCOTTISH COURTS & TRIB,PROCUREMENT CARD,106.00,CORPORATE STRATEGY - LEGAL,COURT COSTS,H620,COURT CLAIM ISSUED IN SCOTLAND,JEEVAN MARWAHA,FINES
http://statistics.data.gov.uk/id/local-authority/43UM,WOKING BOROUGH COUNCIL,27/04/2022,04/05/2022,0000477246/001,SERCO LIMITED,01380600,"1,862.64",PLANNING SERVICES - SANG MANAGEMENT,MAIN CONTRACTOR,Q200,MAIN CONTRACTOR,PLANNING SERVICES,CLEANING & JANITORIAL
http://statistics.data.gov.uk/id/local-authority/43UM,WOKING BOROUGH COUNCIL,22/04/2022,04/05/2022,0000477046/002,SERCO LIMITED,01380600,"11,863.65",NEIGHBOURHOOD SERVICES - ENVIRONMENTAL MAINTENANCE CONT,EMC MANAGEMENT FEE,T717,EMC MANAGEMENT FEE,NEIGHBOURHOOD SERVICES,CLEANING & JANITORIAL
http://statistics.data.gov.uk/id/local-authority/43UM,WOKING BOROUGH COUNCIL,22/04/2022,04/05/2022,0000477046/001,SERCO LIMITED,01380600,"328,260.88",NEIGHBOURHOOD SERVICES - ENVIRONMENTAL MAINTENANCE CONT,EMC SERVICE CHARGE,T716,EMC SERVICE CHARGE,NEIGHBOURHOOD SERVICES,CLEANING & JANITORIAL
http://statistics.data.gov.uk/id/local-authority/43UM,WOKING BOROUGH COUNCIL,22/04/2022,04/05/2022,0000477046/005,SERCO LIMITED,01380600,"-15,944.22",NEIGHBOURHOOD SERVICES - ENVIRONMENTAL MAINTENANCE CONT,EMC SERVICE CHARGE,T716,EMC SERVICE CHARGE,NEIGHBOURHOOD SERVICES,CLEANING & JANITORIAL
http://statistics.data.gov.uk/id/local-authority/43UM,WOKING BOROUGH COUNCIL,22/04/2022,04/05/2022,0000477046/006,SERCO LIMITED,01380600,"-17,828.28",NEIGHBOURHOOD SERVICES - ENVIRONMENTAL MAINTENANCE CONT,EMC SERVICE CHARGE,T716,EMC SERVICE CHARGE,NEIGHBOURHOOD SERVICES,CLEANING & JANITORIAL
http://statistics.data.gov.uk/id/local-authority/43UM,WOKING BOROUGH COUNCIL,22/04/2022,04/05/2022,0000477046/007,SERCO LIMITED,01380600,-509.75,NEIGHBOURHOOD SERVICES - ENVIRONMENTAL MAINTENANCE CONT,EMC SERVICE CHARGE,T716,EMC SERVICE CHARGE,NEIGHBOURHOOD SERVICES,CLEANING & JANITORIAL
http://statistics.data.gov.uk/id/local-authority/43UM,WOKING BOROUGH COUNCIL,28/04/2022,04/05/2022,0000477238/001,SERCO LIMITED,01380600,"3,249.23",NEIGHBOURHOOD SERVICES - ENVIRONMENTAL MAINTENANCE CONT,EMC SERVICE CHARGE,T716,EMC SERVICE CHARGE,NEIGHBOURHOOD SERVICES,CLEANING & JANITORIAL
http://statistics.data.gov.uk/id/local-authority/43UM,WOKING BOROUGH COUNCIL,28/04/2022,04/05/2022,0000477241/001,SERCO LIMITED,01380600,"3,225.96",NEIGHBOURHOOD SERVICES - ENVIRONMENTAL MAINTENANCE CONT,EMC SERVICE CHARGE,T716,EMC SERVICE CHARGE,NEIGHBOURHOOD SERVICES,CLEANING & JANITORIAL
http://statistics.data.gov.uk/id/local-authority/43UM,WOKING BOROUGH COUNCIL,28/04/2022,04/05/2022,0000477243/001,SERCO LIMITED,01380600,"8,128.66",NEIGHBOURHOOD SERVICES - ENVIRONMENTAL MAINTENANCE CONT,EMC SERVICE CHARGE,T716,EMC SERVICE CHARGE,NEIGHBOURHOOD SERVICES,CLEANING & JANITORIAL
http://statistics.data.gov.uk/id/local-authority/43UM,WOKING BOROUGH COUNCIL,27/04/2022,04/05/2022,0000477245/001,SERCO LIMITED,01380600,"4,871.58",NEIGHBOURHOOD SERVICES - ENVIRONMENTAL MAINTENANCE CONT,EMC SERVICE CHARGE,T716,EMC SERVICE CHARGE,NEIGHBOURHOOD SERVICES,CLEANING & JANITORIAL
http://statistics.data.gov.uk/id/local-authority/43UM,WOKING BOROUGH COUNCIL,27/04/2022,04/05/2022,0000477254/001,SERCO LIMITED,01380600,"2,818.28",NEIGHBOURHOOD SERVICES - ENVIRONMENTAL MAINTENANCE CONT,EMC SERVICE CHARGE,T716,EMC SERVICE CHARGE,NEIGHBOURHOOD SERVICES,CLEANING & JANITORIAL
http://statistics.data.gov.uk/id/local-authority/43UM,WOKING BOROUGH COUNCIL,27/04/2022,04/05/2022,0000477256/001,SERCO LIMITED,01380600,"10,755.60",NEIGHBOURHOOD SERVICES - ENVIRONMENTAL MAINTENANCE CONT,EMC SERVICE CHARGE,T716,EMC SERVICE CHARGE,NEIGHBOURHOOD SERVICES,CLEANING & JANITORIAL
http://statistics.data.gov.uk/id/local-authority/43UM,WOKING BOROUGH COUNCIL,27/04/2022,04/05/2022,0000477257/001,SERCO LIMITED,01380600,935.84,NEIGHBOURHOOD SERVICES - ENVIRONMENTAL MAINTENANCE CONT,EMC SERVICE CHARGE,T716,EMC SERVICE CHARGE,NEIGHBOURHOOD SERVICES,CLEANING & JANITORIAL
http://statistics.data.gov.uk/id/local-authority/43UM,WOKING BOROUGH COUNCIL,27/04/2022,04/05/2022,0000477259/001,SERCO LIMITED,01380600,"4,871.58",NEIGHBOURHOOD SERVICES - ENVIRONMENTAL MAINTENANCE CONT,EMC SERVICE CHARGE,T716,EMC SERVICE CHARGE,NEIGHBOURHOOD SERVICES,CLEANING & JANITORIAL
http://statistics.data.gov.uk/id/local-authority/43UM,WOKING BOROUGH COUNCIL,27/04/2022,04/05/2022,0000477264/001,SERCO LIMITED,01380600,"2,211.34",NEIGHBOURHOOD SERVICES - ENVIRONMENTAL MAINTENANCE CONT,EMC SERVICE CHARGE,T716,EMC SERVICE CHARGE,NEIGHBOURHOOD SERVICES,CLEANING & JANITORIAL
http://statistics.data.gov.uk/id/local-authority/43UM,WOKING BOROUGH COUNCIL,27/04/2022,04/05/2022,0000477266/001,SERCO LIMITED,01380600,"4,032.72",NEIGHBOURHOOD SERVICES - ENV IMP SPONSORSHIP INITIATIVE,ENVIRONMENTAL INITIATIVES,H102,ENVIRONMENTAL INITIATIVES,NEIGHBOURHOOD SERVICES,CLEANING & JANITORIAL
http://statistics.data.gov.uk/id/local-authority/43UM,WOKING BOROUGH COUNCIL,27/04/2022,04/05/2022,0000477253/001,SERCO LIMITED,01380600,282.90,NEIGHBOURHOOD SERVICES - ALLOTMENTS-GENERAL,GROUNDS MAINT-CONTRACTORS,D200,GROUNDS MAINT-CONTRACTORS,NEIGHBOURHOOD SERVICES,CLEANING & JANITORIAL
http://statistics.data.gov.uk/id/local-authority/43UM,WOKING BOROUGH COUNCIL,28/04/2022,04/05/2022,0000477242/001,SERCO LIMITED,01380600,"1,811.00",NEIGHBOURHOOD SERVICES - PARKS-GENERAL,PLAY EQUIPMENT,G167,PLAY EQUIPMENT,NEIGHBOURHOOD SERVICES,CLEANING & JANITORIAL
http://statistics.data.gov.uk/id/local-authority/43UM,WOKING BOROUGH COUNCIL,27/04/2022,04/05/2022,0000477247/001,SERCO LIMITED,01380600,523.14,NEIGHBOURHOOD SERVICES - PARKS-GENERAL,PLAY EQUIPMENT,G167,PLAY EQUIPMENT,NEIGHBOURHOOD SERVICES,CLEANING & JANITORIAL
http://statistics.data.gov.uk/id/local-authority/43UM,WOKING BOROUGH COUNCIL,27/04/2022,04/05/2022,0000477248/001,SERCO LIMITED,01380600,"2,417.31",NEIGHBOURHOOD SERVICES - PARKS-GENERAL,PLAY EQUIPMENT,G167,PLAY EQUIPMENT,NEIGHBOURHOOD SERVICES,CLEANING & JANITORIAL
http://statistics.data.gov.uk/id/local-authority/43UM,WOKING BOROUGH COUNCIL,27/04/2022,04/05/2022,0000477262/001,SERCO LIMITED,01380600,"1,092.50",NEIGHBOURHOOD SERVICES - PARKS-GENERAL,PLAY EQUIPMENT,G167,PLAY EQUIPMENT,NEIGHBOURHOOD SERVICES,CLEANING & JANITORIAL
http://statistics.data.gov.uk/id/local-authority/43UM,WOKING BOROUGH COUNCIL,27/04/2022,04/05/2022,0000477267/001,SERCO LIMITED,01380600,"1,380.00",NEIGHBOURHOOD SERVICES - PARKS-GENERAL,GROUNDS MAINT-CONTRACTORS,D200,GROUNDS MAINT-CONTRACTORS,NEIGHBOURHOOD SERVICES,CLEANING & JANITORIAL
http://statistics.data.gov.uk/id/local-authority/43UM,WOKING BOROUGH COUNCIL,22/04/2022,04/05/2022,0000477046/008,SERCO LIMITED,01380600,173.21,HOUSING SERVICES - TEMPORARY ACCOMMODATION,GROUNDS MAINT-CONTRACTORS,D200,GROUNDS MAINT-CONTRACTORS,HOUSING SERVICES,CLEANING & JANITORIAL
http://statistics.data.gov.uk/id/local-authority/43UM,WOKING BOROUGH COUNCIL,28/04/2022,04/05/2022,0000477239/001,SERCO LIMITED,01380600,556.94,HOUSING SERVICES - CARETAKING COSTS,TREEWORK,D215,TREEWORK,HOUSING SERVICES,CLEANING & JANITORIAL
http://statistics.data.gov.uk/id/local-authority/43UM,WOKING BOROUGH COUNCIL,28/04/2022,04/05/2022,0000477240/001,SERCO LIMITED,01380600,298.20,HOUSING SERVICES - CARETAKING COSTS,TREEWORK,D215,TREEWORK,HOUSING SERVICES,CLEANING & JANITORIAL
http://statistics.data.gov.uk/id/local-authority/43UM,WOKING BOROUGH COUNCIL,28/04/2022,04/05/2022,0000477244/001,SERCO LIMITED,01380600,646.40,HOUSING SERVICES - CARETAKING COSTS,TREEWORK,D215,TREEWORK,HOUSING SERVICES,CLEANING & JANITORIAL
http://statistics.data.gov.uk/id/local-authority/43UM,WOKING BOROUGH COUNCIL,27/04/2022,04/05/2022,0000477249/001,SERCO LIMITED,01380600,619.84,HOUSING SERVICES - CARETAKING COSTS,TREEWORK,D215,TREEWORK,HOUSING SERVICES,CLEANING & JANITORIAL
http://statistics.data.gov.uk/id/local-authority/43UM,WOKING BOROUGH COUNCIL,27/04/2022,04/05/2022,0000477251/001,SERCO LIMITED,01380600,487.92,HOUSING SERVICES - CARETAKING COSTS,TREEWORK,D215,TREEWORK,HOUSING SERVICES,CLEANING & JANITORIAL
http://statistics.data.gov.uk/id/local-authority/43UM,WOKING BOROUGH COUNCIL,27/04/2022,04/05/2022,0000477252/001,SERCO LIMITED,01380600,547.56,HOUSING SERVICES - CARETAKING COSTS,TREEWORK,D215,TREEWORK,HOUSING SERVICES,CLEANING & JANITORIAL
http://statistics.data.gov.uk/id/local-authority/43UM,WOKING BOROUGH COUNCIL,27/04/2022,04/05/2022,0000477268/001,SERCO LIMITED,01380600,831.36,HOUSING SERVICES - CARETAKING COSTS,TREEWORK,D215,TREEWORK,HOUSING SERVICES,CLEANING & JANITORIAL
http://statistics.data.gov.uk/id/local-authority/43UM,WOKING BOROUGH COUNCIL,22/04/2022,04/05/2022,0000477046/003,SERCO LIMITED,01380600,849.67,HOUSING SERVICES - WOKING BOROUGH HOMES,GROUNDS MAINTENANCE / CLEANING,S674,GROUNDS MAINTENANCE / CLEANING,HOUSING SERVICES,CLEANING & JANITORIAL
http://statistics.data.gov.uk/id/local-authority/43UM,WOKING BOROUGH COUNCIL,22/04/2022,04/05/2022,0000477046/004,SERCO LIMITED,01380600,343.60,HOUSING SERVICES - WOKING BOROUGH HOMES,GROUNDS MAINTENANCE / CLEANING,S674,GROUNDS MAINTENANCE / CLEANING,HOUSING SERVICES,CLEANING & JANITORIAL
http://statistics.data.gov.uk/id/local-authority/43UM,WOKING BOROUGH COUNCIL,04/02/2022,04/05/2022,0000474418/001,SETON,00043000,34.99,INDEPENDENT LIVING SERVICES - MOORCROFT,FIXTURES & FITTINGS - NEW,D800,FIXTURES & FITTINGS - NEW,INDEPENDENT LIVING SERVICES,WORKS (CONSTRUCTION REPAIR MAINTENANCE)
http://statistics.data.gov.uk/id/local-authority/43UM,WOKING BOROUGH COUNCIL,28/04/2022,04/05/2022,0000477198/001,SHENA GRIGOR,40056300,120.00,INDEPENDENT LIVING SERVICES - SHEERWATER SOCIAL SUPPORT,OTHER CONSULTANTS,Q430,OTHER CONSULTANTS,INDEPENDENT LIVING SERVICES,ARTS & LEISURE SERVICES
http://statistics.data.gov.uk/id/local-authority/43UM,WOKING BOROUGH COUNCIL,28/04/2022,04/05/2022,0000477197/001,SHENA GRIGOR,40056300,120.00,NEIGHBOURHOOD SERVICES - SPORTS DEVELOPMENT,COACH EDUCATION,H657,COACH EDUCATION,NEIGHBOURHOOD SERVICES,ARTS & LEISURE SERVICES
http://statistics.data.gov.uk/id/local-authority/43UM,WOKING BOROUGH COUNCIL,28/04/2022,04/05/2022,0000477214/001,SIGNWAY SUPPLIES (DATCHET) LTD,00411200,272.84,NEIGHBOURHOOD SERVICES - STREET FURNITURE,GROUNDS MAINT-CONTRACTORS,D200,GROUNDS MAINT-CONTRACTORS,NEIGHBOURHOOD SERVICES,WORKS (CONSTRUCTION REPAIR MAINTENANCE)
http://statistics.data.gov.uk/id/local-authority/43UM,WOKING BOROUGH COUNCIL,28/04/2022,04/05/2022,0000477215/001,SIGNWAY SUPPLIES (DATCHET) LTD,00411200,378.50,NEIGHBOURHOOD SERVICES - STREET FURNITURE,GROUNDS MAINT-CONTRACTORS,D200,GROUNDS MAINT-CONTRACTORS,NEIGHBOURHOOD SERVICES,WORKS (CONSTRUCTION REPAIR MAINTENANCE)
http://statistics.data.gov.uk/id/local-authority/43UM,WOKING BOROUGH COUNCIL,28/04/2022,04/05/2022,0000477216/001,SIGNWAY SUPPLIES (DATCHET) LTD,00411200,556.16,NEIGHBOURHOOD SERVICES - STREET FURNITURE,GROUNDS MAINT-CONTRACTORS,D200,GROUNDS MAINT-CONTRACTORS,NEIGHBOURHOOD SERVICES,WORKS (CONSTRUCTION REPAIR MAINTENANCE)
http://statistics.data.gov.uk/id/local-authority/43UM,WOKING BOROUGH COUNCIL,22/04/2022,04/05/2022,0000477075/001,SIGNWAY SUPPLIES (DATCHET) LTD,00411200,493.10,NEIGHBOURHOOD SERVICES - SPORTS DEVELOPMENT,ADVERTISING,H400,ADVERTISING,NEIGHBOURHOOD SERVICES,WORKS (CONSTRUCTION REPAIR MAINTENANCE)
http://statistics.data.gov.uk/id/local-authority/43UM,WOKING BOROUGH COUNCIL,02/05/2022,04/05/2022,0065000294/001,REDACTED PERSONAL DATA,41025000,170.00,HOUSING SERVICES - RESPONSIVE REPARS HRA,HRA REPAIRS CONTRACTOR,D112,HRA REPAIRS CONTRACTOR,HOUSING SERVICES,HOUSING MANAGEMENT
http://statistics.data.gov.uk/id/local-authority/43UM,WOKING BOROUGH COUNCIL,27/04/2022,04/05/2022,0000477179/001,SOFTCAT LIMITED,40418200,322.50,INFORMATION TECHNOLOGY - I.T.S. ICT,PC & SERVER APPLICATION SOFT/W,G180,PC & SERVER APPLICATION SOFT/W,INFORMATION TECHNOLOGY,INFORMATION COMMUNICATION TECHNOLOGY
http://statistics.data.gov.uk/id/local-authority/43UM,WOKING BOROUGH COUNCIL,04/05/2022,04/05/2022,GPC/00018879,SQUIRES GARDEN CENTRE,PROCUREMENT CARD,3.67,INDEPENDENT LIVING SERVICES - FAMILY CENTRES,FAMILY ENABLING (FSP PROJECT),H137,MEETING PROFESSIONAL,NICOLA NORMAN,LAWN/GARDEN SUPPLY/NURSERY
http://statistics.data.gov.uk/id/local-authority/43UM,WOKING BOROUGH COUNCIL,26/04/2022,04/05/2022,0000477322/001,SSE PLC,40619300,26.92,HOUSING SERVICES - LANDLORDS EXPENSES,GAS,D420,GAS,HOUSING SERVICES,UTILITIES
http://statistics.data.gov.uk/id/local-authority/43UM,WOKING BOROUGH COUNCIL,26/05/2022,04/05/2022,0000477324/001,SSE PLC,40619300,28.52,HOUSING SERVICES - LANDLORDS EXPENSES,ELECTRICITY,D400,ELECTRICITY,HOUSING SERVICES,UTILITIES
http://statistics.data.gov.uk/id/local-authority/43UM,WOKING BOROUGH COUNCIL,30/04/2022,04/05/2022,0000477328/001,STC ENERGY MANAGEMENT LIMITED,40614500,675.07,HOUSING SERVICES - ENERGY,ENERGY BUREAU SERVICE,H489,ENERGY BUREAU SERVICE,HOUSING SERVICES,UTILITIES
http://statistics.data.gov.uk/id/local-authority/43UM,WOKING BOROUGH COUNCIL,30/04/2022,04/05/2022,0000477328/002,STC ENERGY MANAGEMENT LIMITED,40614500,75.01,INFORMATION TECHNOLOGY - CORPORATE MANAGEMENT-COMMERCIAL,ENERGY BUREAU SERVICE,H489,ENERGY BUREAU SERVICE,INFORMATION TECHNOLOGY,UTILITIES
http://statistics.data.gov.uk/id/local-authority/43UM,WOKING BOROUGH COUNCIL,11/04/2022,04/05/2022,0000476729/001,SURREY COUNTY COUNCIL-PENSION CONTRIBS,40235700,"80,783.28",FINANCIAL SERVICES - CORPORATE PENSION COSTS,PENSIONS-SCC,A730,PENSIONS-SCC,FINANCIAL SERVICES,FINANCIAL SERVICES
http://statistics.data.gov.uk/id/local-authority/43UM,WOKING BOROUGH COUNCIL,29/04/2022,04/05/2022,0000477314/001,SURREY FIRE & SAFETY LTD,41015600,"5,924.50",HOUSING SERVICES - STATUTORU HRA,HRA STATUTORY,D116,HRA STATUTORY,HOUSING SERVICES,HEALTH & SAFETY
http://statistics.data.gov.uk/id/local-authority/43UM,WOKING BOROUGH COUNCIL,20/04/2022,04/05/2022,0000477225/001,SURREY HEATH BOROUGH COUNCIL,00898100,"1,500.00",NEIGHBOURHOOD SERVICES - ARTS PARTNERSHIP SURREY,MISCELLANEOUS EXPENSES,X827,MISCELLANEOUS EXPENSES,NEIGHBOURHOOD SERVICES,WORKS (CONSTRUCTION REPAIR MAINTENANCE)
http://statistics.data.gov.uk/id/local-authority/43UM,WOKING BOROUGH COUNCIL,16/09/2021,04/05/2022,0000477227/001,SWITCHSURE FINANCE LIMITED,40078100,156.24,HOUSING SERVICES - PINNACLE DAY TO DAY REPAIRS,SCHED 1A RESPONSIVE REPAIRS,D165,SCHED 1A RESPONSIVE REPAIRS,HOUSING SERVICES,WORKS (CONSTRUCTION REPAIR MAINTENANCE)
http://statistics.data.gov.uk/id/local-authority/43UM,WOKING BOROUGH COUNCIL,17/09/2021,04/05/2022,0000469220/001,SWITCHSURE FINANCE LIMITED,40078100,"5,220.00",HOUSING SERVICES - NTL,R&M BUILDINGS - CONTRACTORS,D100,R&M BUILDINGS - CONTRACTORS,HOUSING SERVICES,WORKS (CONSTRUCTION REPAIR MAINTENANCE)
http://statistics.data.gov.uk/id/local-authority/43UM,WOKING BOROUGH COUNCIL,17/09/2021,04/05/2022,0000469222/001,SWITCHSURE FINANCE LIMITED,40078100,"5,220.00",HOUSING SERVICES - NTL,R&M BUILDINGS - CONTRACTORS,D100,R&M BUILDINGS - CONTRACTORS,HOUSING SERVICES,WORKS (CONSTRUCTION REPAIR MAINTENANCE)
http://statistics.data.gov.uk/id/local-authority/43UM,WOKING BOROUGH COUNCIL,04/05/2022,04/05/2022,GPC/00018875,TESCO PFS 4046,PROCUREMENT CARD,101.62,HOUSING SERVICES - HOME IMPS & BEN AGENCY,TRAVEL EXPENSES-OFFICERS,F600,FUEL FOR HP VAN,ROBERT ELDRIDGE,SERVICE STATIONS
http://statistics.data.gov.uk/id/local-authority/43UM,WOKING BOROUGH COUNCIL,04/05/2022,04/05/2022,GPC/00018877,TESCO STORES,PROCUREMENT CARD,1.40,CORPORATE STRATEGY - BOROUGH ELECTIONS,EQUIPMENT,G100,ELECTIONS MISCELLANEOUS,JOANNE MCINTOSH,GROCERY STORES
http://statistics.data.gov.uk/id/local-authority/43UM,WOKING BOROUGH COUNCIL,25/04/2022,04/05/2022,0000477088/002,THAMESWEY ENERGY LIMITED,01142300,"3,649.76",HOUSING SERVICES - ENERGY,TEL GAS/HEATING,D481,TEL GAS/HEATING,HOUSING SERVICES,UTILITIES
http://statistics.data.gov.uk/id/local-authority/43UM,WOKING BOROUGH COUNCIL,25/04/2022,04/05/2022,0000477088/001,THAMESWEY ENERGY LIMITED,01142300,"3,649.76",INDEPENDENT LIVING SERVICES - ST MARY'S DAY CENTRE,TEL GAS/HEATING,D481,TEL GAS/HEATING,INDEPENDENT LIVING SERVICES,UTILITIES
http://statistics.data.gov.uk/id/local-authority/43UM,WOKING BOROUGH COUNCIL,31/01/2022,04/05/2022,0000474471/001,THAMESWEY LTD,01361700,"44,148.93",CORPORATE STRATEGY - LEISURE MANAGEMENT CONTRACT,TEL PLANT INSURANCE,D183,TEL PLANT INSURANCE,CORPORATE STRATEGY,UTILITIES
http://statistics.data.gov.uk/id/local-authority/43UM,WOKING BOROUGH COUNCIL,31/01/2022,04/05/2022,0000474471/002,THAMESWEY LTD,01361700,"56,189.55",HOUSING SERVICES - ENERGY,TEL PLANT INSURANCE,D183,TEL PLANT INSURANCE,HOUSING SERVICES,UTILITIES
http://statistics.data.gov.uk/id/local-authority/43UM,WOKING BOROUGH COUNCIL,26/04/2022,04/05/2022,0000477157/001,THE BRIGITTE TRUST,40842600,500.00,CORPORATE STRATEGY - GRANTS TO ORGANISATION,GRANTS,H100,GRANTS,CORPORATE STRATEGY,CONSULTANCY
http://statistics.data.gov.uk/id/local-authority/43UM,WOKING BOROUGH COUNCIL,25/04/2022,04/05/2022,0000477107/001,THE UMBRELLA AGENCY LIMITED,40983300,925.00,REVENUES AND BENEFITS - COUNCIL TAX,TEMPORARY STAFF,A110,TEMPORARY STAFF,REVENUES AND BENEFITS,CONSULTANCY
http://statistics.data.gov.uk/id/local-authority/43UM,WOKING BOROUGH COUNCIL,27/04/2022,04/05/2022,0000477154/001,TITANOSAUR PROPERTIES LIMITED,40740900,"3,541.67",ASSET MANAGEMENT - VICTORIA ARCH SOUTH,MAIN CONTRACTOR,Q200,MAIN CONTRACTOR,ASSET MANAGEMENT,FINANCIAL SERVICES
http://statistics.data.gov.uk/id/local-authority/43UM,WOKING BOROUGH COUNCIL,03/05/2022,04/05/2022,0065000292/001,TREVOR KIMBER,40748400,247.40,ASSET MANAGEMENT - BUILDING SERVICES,SUBSCRIPTIONS,H110,SUBSCRIPTIONS,ASSET MANAGEMENT,FINANCIAL SERVICES
http://statistics.data.gov.uk/id/local-authority/43UM,WOKING BOROUGH COUNCIL,01/05/2022,04/05/2022,0000477303/001,TUSKERDIRECT LTD,40956400,550.80,CORPORATE MANAGEMENT GROUP - LEASED CAR PAYMENTS,PAYMENT TO LESSORS,T170,PAYMENT TO LESSORS,CORPORATE MANAGEMENT GROUP,VEHICLE MANAGEMENT
http://statistics.data.gov.uk/id/local-authority/43UM,WOKING BOROUGH COUNCIL,01/05/2022,04/05/2022,0000477303/003,TUSKERDIRECT LTD,40956400,38.39,CORPORATE MANAGEMENT GROUP - LEASED CAR PAYMENTS,PAYMENT TO LESSORS,T170,PAYMENT TO LESSORS,CORPORATE MANAGEMENT GROUP,VEHICLE MANAGEMENT
http://statistics.data.gov.uk/id/local-authority/43UM,WOKING BOROUGH COUNCIL,10/04/2022,04/05/2022,0000476969/004,UNITY RECRUITMENT LTD,40160500,572.69,NEIGHBOURHOOD SERVICES - SURREY HEATH ON STREET PARKING,TEMPORARY STAFF,H687,TEMPORARY STAFF,NEIGHBOURHOOD SERVICES,HUMAN RESOURCES
http://statistics.data.gov.uk/id/local-authority/43UM,WOKING BOROUGH COUNCIL,17/04/2022,04/05/2022,0000477076/003,UNITY RECRUITMENT LTD,40160500,712.25,NEIGHBOURHOOD SERVICES - SURREY HEATH ON STREET PARKING,TEMPORARY STAFF,H687,TEMPORARY STAFF,NEIGHBOURHOOD SERVICES,HUMAN RESOURCES
http://statistics.data.gov.uk/id/local-authority/43UM,WOKING BOROUGH COUNCIL,24/04/2022,04/05/2022,0000477282/003,UNITY RECRUITMENT LTD,40160500,"1,068.38",NEIGHBOURHOOD SERVICES - SURREY HEATH ON STREET PARKING,TEMPORARY STAFF,H687,TEMPORARY STAFF,NEIGHBOURHOOD SERVICES,HUMAN RESOURCES
http://statistics.data.gov.uk/id/local-authority/43UM,WOKING BOROUGH COUNCIL,10/04/2022,04/05/2022,0000476969/001,UNITY RECRUITMENT LTD,40160500,981.75,NEIGHBOURHOOD SERVICES - PARKING SERVICES,TEMPORARY STAFF,A110,TEMPORARY STAFF,NEIGHBOURHOOD SERVICES,HUMAN RESOURCES
http://statistics.data.gov.uk/id/local-authority/43UM,WOKING BOROUGH COUNCIL,10/04/2022,04/05/2022,0000476969/002,UNITY RECRUITMENT LTD,40160500,129.94,NEIGHBOURHOOD SERVICES - PARKING SERVICES,TEMPORARY STAFF,A110,TEMPORARY STAFF,NEIGHBOURHOOD SERVICES,HUMAN RESOURCES
http://statistics.data.gov.uk/id/local-authority/43UM,WOKING BOROUGH COUNCIL,10/04/2022,04/05/2022,0000476969/003,UNITY RECRUITMENT LTD,40160500,866.25,NEIGHBOURHOOD SERVICES - PARKING SERVICES,TEMPORARY STAFF,A110,TEMPORARY STAFF,NEIGHBOURHOOD SERVICES,HUMAN RESOURCES
http://statistics.data.gov.uk/id/local-authority/43UM,WOKING BOROUGH COUNCIL,17/04/2022,04/05/2022,0000477076/001,UNITY RECRUITMENT LTD,40160500,"1,010.63",NEIGHBOURHOOD SERVICES - PARKING SERVICES,TEMPORARY STAFF,A110,TEMPORARY STAFF,NEIGHBOURHOOD SERVICES,HUMAN RESOURCES
http://statistics.data.gov.uk/id/local-authority/43UM,WOKING BOROUGH COUNCIL,17/04/2022,04/05/2022,0000477076/002,UNITY RECRUITMENT LTD,40160500,"1,010.63",NEIGHBOURHOOD SERVICES - PARKING SERVICES,TEMPORARY STAFF,A110,TEMPORARY STAFF,NEIGHBOURHOOD SERVICES,HUMAN RESOURCES
http://statistics.data.gov.uk/id/local-authority/43UM,WOKING BOROUGH COUNCIL,24/04/2022,04/05/2022,0000477282/001,UNITY RECRUITMENT LTD,40160500,577.50,NEIGHBOURHOOD SERVICES - PARKING SERVICES,TEMPORARY STAFF,A110,TEMPORARY STAFF,NEIGHBOURHOOD SERVICES,HUMAN RESOURCES
http://statistics.data.gov.uk/id/local-authority/43UM,WOKING BOROUGH COUNCIL,24/04/2022,04/05/2022,0000477282/002,UNITY RECRUITMENT LTD,40160500,866.25,NEIGHBOURHOOD SERVICES - PARKING SERVICES,TEMPORARY STAFF,A110,TEMPORARY STAFF,NEIGHBOURHOOD SERVICES,HUMAN RESOURCES
http://statistics.data.gov.uk/id/local-authority/43UM,WOKING BOROUGH COUNCIL,29/03/2022,04/05/2022,0000476283/001,VAIL WILLIAMS LLP,01844600,"17,000.00",ASSET MANAGEMENT - FACILITIES MANAGEMENT,FACILITIES MANAGEMENT REPAIRS,D908,FACILITIES MANAGEMENT REPAIRS,ASSET MANAGEMENT,CONSULTANCY
http://statistics.data.gov.uk/id/local-authority/43UM,WOKING BOROUGH COUNCIL,26/04/2022,04/05/2022,0000477146/001,VAIL WILLIAMS LLP GENERAL CLIENT ACCOUNT,40901400,878.15,ASSET MANAGEMENT - PROVINCIAL HOUSE,SERVICE CHARGE,D510,SERVICE CHARGE,ASSET MANAGEMENT,LEGAL SERVICES
http://statistics.data.gov.uk/id/local-authority/43UM,WOKING BOROUGH COUNCIL,14/04/2022,04/05/2022,0000477210/001,VENN GROUP LIMITED,40383900,807.00,REVENUES AND BENEFITS - BENEFIT SERVICES,TEMPORARY STAFF,A110,TEMPORARY STAFF,REVENUES AND BENEFITS,HUMAN RESOURCES
http://statistics.data.gov.uk/id/local-authority/43UM,WOKING BOROUGH COUNCIL,27/04/2022,04/05/2022,0000477233/001,VIRGIN MEDIA BUSINESS,00316500,40.00,HOUSING SERVICES - ESTATE MANAGEMENT,NETWORK CIRCUITS,G800,NETWORK CIRCUITS,HOUSING SERVICES,INFORMATION COMMUNICATION TECHNOLOGY
http://statistics.data.gov.uk/id/local-authority/43UM,WOKING BOROUGH COUNCIL,25/03/2022,04/05/2022,0000476642/001,VIRGIN MEDIA BUSINESS,00367000,"5,661.25",ASSET MANAGEMENT - C.C.T.V.,CCTV TRANSMISSION MAINTENANCE,D342,CCTV TRANSMISSION MAINTENANCE,ASSET MANAGEMENT,UTILITIES
http://statistics.data.gov.uk/id/local-authority/43UM,WOKING BOROUGH COUNCIL,27/04/2022,04/05/2022,0000477176/001,VIVID RESOURCING,40463200,"1,848.40",PLANNING SERVICES - DEVELOPMENT CONTROL,TEMPORARY STAFF,A110,TEMPORARY STAFF,PLANNING SERVICES,HUMAN RESOURCES
http://statistics.data.gov.uk/id/local-authority/43UM,WOKING BOROUGH COUNCIL,24/04/2022,04/05/2022,0000477072/001,WHISTL UK LIMITED,00367900,53.54,CORPORATE STRATEGY - POSTAGE,POSTAGE - STANDARD TARIFF,G700,POSTAGE - STANDARD TARIFF,CORPORATE STRATEGY,MAIL SERVICES
http://statistics.data.gov.uk/id/local-authority/43UM,WOKING BOROUGH COUNCIL,24/04/2022,04/05/2022,0000477073/001,WHISTL UK LIMITED,00367900,"2,334.41",CORPORATE STRATEGY - POSTAGE,POSTAGE - STANDARD TARIFF,G700,POSTAGE - STANDARD TARIFF,CORPORATE STRATEGY,MAIL SERVICES
http://statistics.data.gov.uk/id/local-authority/43UM,WOKING BOROUGH COUNCIL,28/04/2022,04/05/2022,0000477169/001,WIGHTMAN & PARRISH LTD,40474600,47.76,INDEPENDENT LIVING SERVICES - MEALS SERVICE - ST MARYS,CLEANING MATERIALS,D920,CLEANING MATERIALS,INDEPENDENT LIVING SERVICES,CLEANING & JANITORIAL
http://statistics.data.gov.uk/id/local-authority/43UM,WOKING BOROUGH COUNCIL,28/04/2022,04/05/2022,0000477169/002,WIGHTMAN & PARRISH LTD,40474600,65.33,INDEPENDENT LIVING SERVICES - MEALS SERVICE - ST MARYS,CLEANING MATERIALS,D920,CLEANING MATERIALS,INDEPENDENT LIVING SERVICES,CLEANING & JANITORIAL
http://statistics.data.gov.uk/id/local-authority/43UM,WOKING BOROUGH COUNCIL,28/04/2022,04/05/2022,0000477169/003,WIGHTMAN & PARRISH LTD,40474600,31.84,INDEPENDENT LIVING SERVICES - MEALS SERVICE - ST MARYS,CLEANING MATERIALS,D920,CLEANING MATERIALS,INDEPENDENT LIVING SERVICES,CLEANING & JANITORIAL
http://statistics.data.gov.uk/id/local-authority/43UM,WOKING BOROUGH COUNCIL,28/04/2022,04/05/2022,0000477169/004,WIGHTMAN & PARRISH LTD,40474600,14.93,INDEPENDENT LIVING SERVICES - MEALS SERVICE - ST MARYS,CLEANING MATERIALS,D920,CLEANING MATERIALS,INDEPENDENT LIVING SERVICES,CLEANING & JANITORIAL
http://statistics.data.gov.uk/id/local-authority/43UM,WOKING BOROUGH COUNCIL,28/04/2022,04/05/2022,0000477169/005,WIGHTMAN & PARRISH LTD,40474600,11.65,INDEPENDENT LIVING SERVICES - MEALS SERVICE - ST MARYS,CLEANING MATERIALS,D920,CLEANING MATERIALS,INDEPENDENT LIVING SERVICES,CLEANING & JANITORIAL
http://statistics.data.gov.uk/id/local-authority/43UM,WOKING BOROUGH COUNCIL,28/04/2022,04/05/2022,0000477169/006,WIGHTMAN & PARRISH LTD,40474600,7.66,INDEPENDENT LIVING SERVICES - MEALS SERVICE - ST MARYS,CLEANING MATERIALS,D920,CLEANING MATERIALS,INDEPENDENT LIVING SERVICES,CLEANING & JANITORIAL
http://statistics.data.gov.uk/id/local-authority/43UM,WOKING BOROUGH COUNCIL,28/04/2022,04/05/2022,0000477169/007,WIGHTMAN & PARRISH LTD,40474600,31.61,INDEPENDENT LIVING SERVICES - MEALS SERVICE - ST MARYS,CLEANING MATERIALS,D920,CLEANING MATERIALS,INDEPENDENT LIVING SERVICES,CLEANING & JANITORIAL
http://statistics.data.gov.uk/id/local-authority/43UM,WOKING BOROUGH COUNCIL,28/04/2022,04/05/2022,0000477169/008,WIGHTMAN & PARRISH LTD,40474600,11.51,INDEPENDENT LIVING SERVICES - MEALS SERVICE - ST MARYS,CLEANING MATERIALS,D920,CLEANING MATERIALS,INDEPENDENT LIVING SERVICES,CLEANING & JANITORIAL
http://statistics.data.gov.uk/id/local-authority/43UM,WOKING BOROUGH COUNCIL,28/04/2022,04/05/2022,0000477169/009,WIGHTMAN & PARRISH LTD,40474600,22.96,INDEPENDENT LIVING SERVICES - MEALS SERVICE - ST MARYS,CLEANING MATERIALS,D920,CLEANING MATERIALS,INDEPENDENT LIVING SERVICES,CLEANING & JANITORIAL
http://statistics.data.gov.uk/id/local-authority/43UM,WOKING BOROUGH COUNCIL,28/04/2022,04/05/2022,0000477169/010,WIGHTMAN & PARRISH LTD,40474600,31.90,INDEPENDENT LIVING SERVICES - MEALS SERVICE - ST MARYS,CLEANING MATERIALS,D920,CLEANING MATERIALS,INDEPENDENT LIVING SERVICES,CLEANING & JANITORIAL
http://statistics.data.gov.uk/id/local-authority/43UM,WOKING BOROUGH COUNCIL,28/04/2022,04/05/2022,0000477169/011,WIGHTMAN & PARRISH LTD,40474600,1.68,INDEPENDENT LIVING SERVICES - MEALS SERVICE - ST MARYS,CLEANING MATERIALS,D920,CLEANING MATERIALS,INDEPENDENT LIVING SERVICES,CLEANING & JANITORIAL
http://statistics.data.gov.uk/id/local-authority/43UM,WOKING BOROUGH COUNCIL,04/05/2022,04/05/2022,GPC/00018876,WILKO RETAIL LIMITED,PROCUREMENT CARD,29.29,CORPORATE STRATEGY - BOROUGH ELECTIONS,EQUIPMENT,G100,ELECTIONS MISCELLANEOUS,JOANNE MCINTOSH,MISC GEN MERCHANDISE - DEF
http://statistics.data.gov.uk/id/local-authority/43UM,WOKING BOROUGH COUNCIL,04/05/2022,04/05/2022,GPC/00018874,WILKO.COM,PROCUREMENT CARD,64.17,INDEPENDENT LIVING SERVICES - HALE END COURT,PROVISIONS,G410,BIN STORE FOOD BINS,RIANNA MEME,MISC GEN MERCHANDISE - DEF
http://statistics.data.gov.uk/id/local-authority/43UM,WOKING BOROUGH COUNCIL,06/04/2022,04/05/2022,0000476988/001,WOKING AERIALS,01510600,120.81,HOUSING SERVICES - PRIVATE SECTOR LEASING SCHEME,SCHED 1A RESPONSIVE REPAIRS,D165,SCHED 1A RESPONSIVE REPAIRS,HOUSING SERVICES,WORKS (CONSTRUCTION REPAIR MAINTENANCE)
http://statistics.data.gov.uk/id/local-authority/43UM,WOKING BOROUGH COUNCIL,28/04/2022,04/05/2022,0000477191/001,WOKING CHAMBER OF COMMERCE,00097300,12.50,CORPORATE STRATEGY - TOWN CENTRE FORUM,ECDEV BUSINESS ENGAGEMENT,H411,ECDEV BUSINESS ENGAGEMENT,CORPORATE STRATEGY,FACILITIES & MANAGEMENT SERVICES
http://statistics.data.gov.uk/id/local-authority/43UM,WOKING BOROUGH COUNCIL,31/03/2022,04/05/2022,0000476398/001,WOKING NEWS & MAIL LIMITED,40249900,"3,333.33",CORPORATE STRATEGY - PUBLIC RELATIONS,PROMOTIONS & GRANTS,H467,PROMOTIONS & GRANTS,CORPORATE STRATEGY,FACILITIES & MANAGEMENT SERVICES
http://statistics.data.gov.uk/id/local-authority/43UM,WOKING BOROUGH COUNCIL,21/04/2022,04/05/2022,0000477010/001,WOKING NEWS & MAIL LIMITED,40249900,784.00,CORPORATE STRATEGY - PUBLIC RELATIONS,PROMOTIONS & GRANTS,H467,PROMOTIONS & GRANTS,CORPORATE STRATEGY,FACILITIES & MANAGEMENT SERVICES
http://statistics.data.gov.uk/id/local-authority/43UM,WOKING BOROUGH COUNCIL,28/04/2022,04/05/2022,0000477294/001,WOKING NEWS & MAIL LIMITED,40249900,343.00,CORPORATE STRATEGY - PUBLIC RELATIONS,STATUTORY ADVERTS,H410,STATUTORY ADVERTS,CORPORATE STRATEGY,FACILITIES & MANAGEMENT SERVICES
http://statistics.data.gov.uk/id/local-authority/43UM,WOKING BOROUGH COUNCIL,31/03/2022,04/05/2022,0000476367/001,WOKING NEWS & MAIL LIMITED,40249900,100.00,CORPORATE STRATEGY - TOWN CENTRE FORUM,MARKETING,H406,MARKETING,CORPORATE STRATEGY,FACILITIES & MANAGEMENT SERVICES
http://statistics.data.gov.uk/id/local-authority/43UM,WOKING BOROUGH COUNCIL,14/04/2022,04/05/2022,0000476901/001,WOKING NEWS & MAIL LIMITED,40249900,100.00,CORPORATE STRATEGY - TOWN CENTRE FORUM,MARKETING,H406,MARKETING,CORPORATE STRATEGY,FACILITIES & MANAGEMENT SERVICES
http://statistics.data.gov.uk/id/local-authority/43UM,WOKING BOROUGH COUNCIL,21/04/2022,04/05/2022,0000476991/001,WOKING NEWS & MAIL LIMITED,40249900,100.00,CORPORATE STRATEGY - TOWN CENTRE FORUM,MARKETING,H406,MARKETING,CORPORATE STRATEGY,FACILITIES & MANAGEMENT SERVICES
http://statistics.data.gov.uk/id/local-authority/43UM,WOKING BOROUGH COUNCIL,25/04/2022,04/05/2022,0000477213/001,WOKING SHOPMOBILITY,00591100,"3,125.00",CORPORATE STRATEGY - GRANTS TO ORGANISATION,GRANTS,H100,GRANTS,CORPORATE STRATEGY,FINANCIAL SERVICES
http://statistics.data.gov.uk/id/local-authority/43UM,WOKING BOROUGH COUNCIL,01/04/2022,04/05/2022,0000476985/001,WOKING UNITED REFORMED CHURCH,40484800,"2,376.00",HOUSING SERVICES - SYRIAN REFUGEE FAMILES,ENGLISH LESSONS,Q636,ENGLISH LESSONS,HOUSING SERVICES,FINANCIAL SERVICES
http://statistics.data.gov.uk/id/local-authority/43UM,WOKING BOROUGH COUNCIL,19/04/2022,04/05/2022,0000477269/001,ZAMIR ZAMAN,41025200,400.00,NEIGHBOURHOOD SERVICES - SPORTS DEVELOPMENT,COACH EDUCATION,H657,COACH EDUCATION,NEIGHBOURHOOD SERVICES,SOCIAL COMMUNITY CARE SUP & SERV (ADULT)
http://statistics.data.gov.uk/id/local-authority/43UM,WOKING BOROUGH COUNCIL,05/05/2022,05/05/2022,GPC/00018900,3C_*WOKING BOROUGH COUNC,PROCUREMENT CARD,6.33,INDEPENDENT LIVING SERVICES - FAMILY CENTRES,PARKING COSTS,F510,TOWN CENTRE PARKING,NICOLA NORMAN,AUTO PARKING LOTS/GARAGES
http://statistics.data.gov.uk/id/local-authority/43UM,WOKING BOROUGH COUNCIL,05/05/2022,05/05/2022,GPC/00018895,ALLPAY *THE GUINNESS PART,PROCUREMENT CARD,339.68,HOUSING SERVICES - HOUSING OPTIONS DEPOSITS,DEPOSITS,T720,RENT IN ADVANCE,PHILIP OGLESBY,CHARITABLE/SOC SERVICE ORGS
http://statistics.data.gov.uk/id/local-authority/43UM,WOKING BOROUGH COUNCIL,05/05/2022,05/05/2022,GPC/00018885,AMZNMKTPLACE,PROCUREMENT CARD,83.32,INFORMATION TECHNOLOGY - ICT GENERAL REPLACEMENT 2022/23,ADDITIONAL EQUIPMENT,Q020,DOKCING STATION,PAUL MURPHY,MISC SPECIALITY RETAIL
http://statistics.data.gov.uk/id/local-authority/43UM,WOKING BOROUGH COUNCIL,05/05/2022,05/05/2022,GPC/00018897,AMZNMKTPLACE,PROCUREMENT CARD,9.99,ASSET MANAGEMENT - CAR PARK MANAGEMENT SYSTEM,PURCHASE OF EQUIPMENT,Q510,CARDS FOR CREATING PERMIT PASSES,IAN REYNOLDS,MISC SPECIALITY RETAIL
http://statistics.data.gov.uk/id/local-authority/43UM,WOKING BOROUGH COUNCIL,05/05/2022,05/05/2022,GPC/00018873,AMZNMKTPLACE,PROCUREMENT CARD,9.97,INDEPENDENT LIVING SERVICES - YOUTH DEVELOPMENT,EQUIPMENT,G100,EQUIPMENT FOR WOKING YOUTH PROGRAMME,SANDIE BOLGER,MISC SPECIALITY RETAIL
http://statistics.data.gov.uk/id/local-authority/43UM,WOKING BOROUGH COUNCIL,05/05/2022,05/05/2022,GPC/00018884,AMZNMKTPLACE,PROCUREMENT CARD,24.96,INDEPENDENT LIVING SERVICES - MOORCROFT,FIXTURES & FITTINGS - NEW,D800,JUBILEE EVENT,RICHARD BUCKENHAM,MISC SPECIALITY RETAIL
http://statistics.data.gov.uk/id/local-authority/43UM,WOKING BOROUGH COUNCIL,05/05/2022,05/05/2022,GPC/00018886,C & E ELECTRICAL WHOLES,PROCUREMENT CARD,198.20,HOUSING SERVICES - HOME IMPS & BEN AGENCY,HANDYPERSON MATERIALS,G201,HANDYPERSON MATERUIALS,JASON BALCHIN,SMALL APPLIANCE REPAIR DEF
http://statistics.data.gov.uk/id/local-authority/43UM,WOKING BOROUGH COUNCIL,05/05/2022,05/05/2022,GPC/00018892,FALCON POOLS LTD,PROCUREMENT CARD,43.50,NEIGHBOURHOOD SERVICES - MUSLIM BURIAL GRND PEACE GARDE,MAINTENANCE/MINOR WORKS,D211,PARTS FOR PEACE GARDEN,DAVID RASBURN,SWIMMING POOLS/SALES/SERVICE
http://statistics.data.gov.uk/id/local-authority/43UM,WOKING BOROUGH COUNCIL,05/05/2022,05/05/2022,GPC/00018872,FLICKR PRO MONTHLY,PROCUREMENT CARD,5.41,CORPORATE STRATEGY - PUBLIC RELATIONS,GENERAL PUBLIC RELATIONS EXPNS,H915,MONTHLY SUBSCRIPTION,MR AC DENNER,BUSINESS SERVICES - DEFAULT
http://statistics.data.gov.uk/id/local-authority/43UM,WOKING BOROUGH COUNCIL,05/05/2022,05/05/2022,GPC/00018887,FREEDOM LEISURE,PROCUREMENT CARD,7.77,ASSET MANAGEMENT - CIVIC OFFICES,VENDING SERVICES,G420,REFRESHMENTS,DAVID RASBURN,MEMBER CLUBS/SPORT/REC/GOLF
http://statistics.data.gov.uk/id/local-authority/43UM,WOKING BOROUGH COUNCIL,05/05/2022,05/05/2022,GPC/00018893,FREEDOM LEISURE,PROCUREMENT CARD,5.88,ASSET MANAGEMENT - CIVIC OFFICES,VENDING SERVICES,G420,REFRESHMENTS AT ELECTIONS,MR D JONES,MEMBER CLUBS/SPORT/REC/GOLF
http://statistics.data.gov.uk/id/local-authority/43UM,WOKING BOROUGH COUNCIL,05/05/2022,05/05/2022,GPC/00018894,HALX - WOKING,PROCUREMENT CARD,100.00,CORPORATE STRATEGY - WOMENS SUPPORT CENTRE SURREY,TRAVEL EXPENSES-CLIENTS,F640,HALIFAX CASH WITHDRAWAL,DONNA DRUMMOND,FINANCIAL INST/AUTO CASH
http://statistics.data.gov.uk/id/local-authority/43UM,WOKING BOROUGH COUNCIL,05/05/2022,05/05/2022,GPC/00018888,LLG ENTERPRISES LTD,PROCUREMENT CARD,130.00,CORPORATE MANAGEMENT GROUP - STAFF TRAINING/GENERAL COSTS,TRAINING - CORPORATE,A910,TRAINING COURSE - S106 AGREEMENTS,MISS A J FRANCIS,VOCATIONAL/TRADE SCHOOLS
http://statistics.data.gov.uk/id/local-authority/43UM,WOKING BOROUGH COUNCIL,05/05/2022,05/05/2022,GPC/00018889,MILANO PIZZA,PROCUREMENT CARD,50.94,CORPORATE STRATEGY - BOROUGH ELECTIONS,EQUIPMENT,G100,ELECTION EQUIPMENT,EMERA CHOWN,RESTAURANTS
http://statistics.data.gov.uk/id/local-authority/43UM,WOKING BOROUGH COUNCIL,05/05/2022,05/05/2022,GPC/00018896,SUMUP  *IRFAN AMIN,PROCUREMENT CARD,7.92,CORPORATE STRATEGY - BOROUGH ELECTIONS,TRAVEL ALLOWNCE,F800,MINI CAB FROM COUNT VENUE,IOANNA KOUTSIONI,TAXICABS/LIMOUSINES
http://statistics.data.gov.uk/id/local-authority/43UM,WOKING BOROUGH COUNCIL,05/05/2022,05/05/2022,GPC/00018891,TIMPSON LTD,PROCUREMENT CARD,18.00,CORPORATE STRATEGY - WOMENS SUPPORT CENTRE SURREY,STATIONERY,G620,TIMPSONS INVOICE - LOCKS FOR OFFICE,DONNA DRUMMOND,MISC SPECIALITY RETAIL
http://statistics.data.gov.uk/id/local-authority/43UM,WOKING BOROUGH COUNCIL,05/05/2022,05/05/2022,GPC/00018898,TIMPSON LTD,PROCUREMENT CARD,6.67,CORPORATE STRATEGY - WOMENS SUPPORT CENTRE SURREY,STATIONERY,G620,TIMPSONS INVOICE COUNSELLOR KEYS,DONNA DRUMMOND,MISC SPECIALITY RETAIL
http://statistics.data.gov.uk/id/local-authority/43UM,WOKING BOROUGH COUNCIL,05/05/2022,05/05/2022,GPC/00018915,TVLICENSING.CO.UK,PROCUREMENT CARD,132.50,INDEPENDENT LIVING SERVICES - PARKVIEW,LICENCES,H460,TV LICENSING,DONNA GREGORY,MGMT/CONSULT/PUBLIC REL SER
http://statistics.data.gov.uk/id/local-authority/43UM,WOKING BOROUGH COUNCIL,05/05/2022,05/05/2022,GPC/00018890,WOKING CONVENIENCE STORE,PROCUREMENT CARD,3.58,CORPORATE STRATEGY - BOROUGH ELECTIONS,EQUIPMENT,G100,ELECTIONS 2022 EQUIPMENT,LOUISE STRONGITHARM,MISC FOOD STORES - DEFAULT
http://statistics.data.gov.uk/id/local-authority/43UM,WOKING BOROUGH COUNCIL,20/04/2022,06/05/2022,0000477005/001,ALLSTAR BUSINESS SOLUTIONS LTD,01500600,212.47,INDEPENDENT LIVING SERVICES - MEALS ON WHEELS,PETROL,F200,PETROL,INDEPENDENT LIVING SERVICES,UTILITIES
http://statistics.data.gov.uk/id/local-authority/43UM,WOKING BOROUGH COUNCIL,06/05/2022,06/05/2022,GPC/00018899,AMZ*AMAZON.CO.UK,PROCUREMENT CARD,-0.33,INDEPENDENT LIVING SERVICES - YOUTH DEVELOPMENT,EQUIPMENT,G100,CREDIT FOR AMAZON SPEND ON YOUTH PROJECT,SANDIE BOLGER,MISC SPECIALITY RETAIL
http://statistics.data.gov.uk/id/local-authority/43UM,WOKING BOROUGH COUNCIL,06/05/2022,06/05/2022,GPC/00018914,AMZNMKTPLACE,PROCUREMENT CARD,44.63,INDEPENDENT LIVING SERVICES - ST MARY'S DAY CENTRE,STATIONERY,G620,JUBILEE SUPPLIES,BEVERLEY PARISH,MISC SPECIALITY RETAIL
http://statistics.data.gov.uk/id/local-authority/43UM,WOKING BOROUGH COUNCIL,06/05/2022,06/05/2022,GPC/00018922,AMZNMKTPLACE,PROCUREMENT CARD,164.72,INDEPENDENT LIVING SERVICES - PARKVIEW,PROMOTIONS & GRANTS,H467,JUBILEE DECS FOR EVENT,DONNA GREGORY,MISC SPECIALITY RETAIL
http://statistics.data.gov.uk/id/local-authority/43UM,WOKING BOROUGH COUNCIL,06/05/2022,06/05/2022,GPC/00018902,ASDA STORES 4823,PROCUREMENT CARD,19.37,INDEPENDENT LIVING SERVICES - PARKVIEW,PROVISIONS,G410,CAFE STOCK,DONNA GREGORY,GROCERY STORES
http://statistics.data.gov.uk/id/local-authority/43UM,WOKING BOROUGH COUNCIL,06/05/2022,06/05/2022,GPC/00018906,CO-OP GROUP FOOD,PROCUREMENT CARD,9.00,INDEPENDENT LIVING SERVICES - MEALS SERVICE - ST MARYS,PROVISIONS,G410,CAFE SUPPLIES,BEVERLEY PARISH,GROCERY STORES
http://statistics.data.gov.uk/id/local-authority/43UM,WOKING BOROUGH COUNCIL,03/05/2022,06/05/2022,0030003440/001,DAVITT JONES BOULD,40370200,"100,000.00",FINANCIAL SERVICES - LOAN ADV THL SW PROPERTY PURCH,LONG TERM LOAN,S864,LONG TERM LOAN,FINANCIAL SERVICES,LEGAL SERVICES
http://statistics.data.gov.uk/id/local-authority/43UM,WOKING BOROUGH COUNCIL,31/03/2022,06/05/2022,0000476761/001,LLOYDS BANK PLC,00018000,"1,092.25",NEIGHBOURHOOD SERVICES - CAR PARKS ADMIN&OPERATIONAL EX,CARD BANKING FEES - EXEMPT VAT,H618,CARD BANKING FEES - EXEMPT VAT,NEIGHBOURHOOD SERVICES,FINANCIAL SERVICES
http://statistics.data.gov.uk/id/local-authority/43UM,WOKING BOROUGH COUNCIL,31/03/2022,06/05/2022,0000476761/002,LLOYDS BANK PLC,00018000,28.01,NEIGHBOURHOOD SERVICES - CAR PARKS ADMIN&OPERATIONAL EX,CARD BANKING FEES - EXEMPT VAT,H618,CARD BANKING FEES - EXEMPT VAT,NEIGHBOURHOOD SERVICES,FINANCIAL SERVICES
http://statistics.data.gov.uk/id/local-authority/43UM,WOKING BOROUGH COUNCIL,31/03/2022,06/05/2022,0000476761/018,LLOYDS BANK PLC,00018000,39.47,NEIGHBOURHOOD SERVICES - CAR PARKS ADMIN&OPERATIONAL EX,CARD BANKING FEES - EXEMPT VAT,H618,CARD BANKING FEES - EXEMPT VAT,NEIGHBOURHOOD SERVICES,FINANCIAL SERVICES
http://statistics.data.gov.uk/id/local-authority/43UM,WOKING BOROUGH COUNCIL,31/03/2022,06/05/2022,0000476761/019,LLOYDS BANK PLC,00018000,7.31,NEIGHBOURHOOD SERVICES - CAR PARKS ADMIN&OPERATIONAL EX,CARD BANKING FEES - EXEMPT VAT,H618,CARD BANKING FEES - EXEMPT VAT,NEIGHBOURHOOD SERVICES,FINANCIAL SERVICES
http://statistics.data.gov.uk/id/local-authority/43UM,WOKING BOROUGH COUNCIL,31/03/2022,06/05/2022,0000476761/014,LLOYDS BANK PLC,00018000,7.50,INDEPENDENT LIVING SERVICES - ST MARY'S DAY CENTRE,CARD BANKING FEES - EXEMPT VAT,H618,CARD BANKING FEES - EXEMPT VAT,INDEPENDENT LIVING SERVICES,FINANCIAL SERVICES
http://statistics.data.gov.uk/id/local-authority/43UM,WOKING BOROUGH COUNCIL,31/03/2022,06/05/2022,0000476761/017,LLOYDS BANK PLC,00018000,5.50,INDEPENDENT LIVING SERVICES - ST MARY'S DAY CENTRE,CARD BANKING FEES - EXEMPT VAT,H618,CARD BANKING FEES - EXEMPT VAT,INDEPENDENT LIVING SERVICES,FINANCIAL SERVICES
http://statistics.data.gov.uk/id/local-authority/43UM,WOKING BOROUGH COUNCIL,31/03/2022,06/05/2022,0000476761/013,LLOYDS BANK PLC,00018000,51.28,INDEPENDENT LIVING SERVICES - ST MARY'S DAY CENTRE,CARDNET CHARGES,H605,CARDNET CHARGES,INDEPENDENT LIVING SERVICES,FINANCIAL SERVICES
http://statistics.data.gov.uk/id/local-authority/43UM,WOKING BOROUGH COUNCIL,31/03/2022,06/05/2022,0000476761/012,LLOYDS BANK PLC,00018000,5.67,INDEPENDENT LIVING SERVICES - PARKVIEW,CARD BANKING FEES - EXEMPT VAT,H618,CARD BANKING FEES - EXEMPT VAT,INDEPENDENT LIVING SERVICES,FINANCIAL SERVICES
http://statistics.data.gov.uk/id/local-authority/43UM,WOKING BOROUGH COUNCIL,31/03/2022,06/05/2022,0000476761/011,LLOYDS BANK PLC,00018000,1.97,INDEPENDENT LIVING SERVICES - PARKVIEW,CARDNET CHARGES,H605,CARDNET CHARGES,INDEPENDENT LIVING SERVICES,FINANCIAL SERVICES
http://statistics.data.gov.uk/id/local-authority/43UM,WOKING BOROUGH COUNCIL,31/03/2022,06/05/2022,0000476761/021,LLOYDS BANK PLC,00018000,5.51,INDEPENDENT LIVING SERVICES - HALE END COURT,CARD BANKING FEES - EXEMPT VAT,H618,CARD BANKING FEES - EXEMPT VAT,INDEPENDENT LIVING SERVICES,FINANCIAL SERVICES
http://statistics.data.gov.uk/id/local-authority/43UM,WOKING BOROUGH COUNCIL,31/03/2022,06/05/2022,0000476761/023,LLOYDS BANK PLC,00018000,20.09,INDEPENDENT LIVING SERVICES - HALE END COURT,CARD BANKING FEES - EXEMPT VAT,H618,CARD BANKING FEES - EXEMPT VAT,INDEPENDENT LIVING SERVICES,FINANCIAL SERVICES
http://statistics.data.gov.uk/id/local-authority/43UM,WOKING BOROUGH COUNCIL,31/03/2022,06/05/2022,0000476761/020,LLOYDS BANK PLC,00018000,0.39,INDEPENDENT LIVING SERVICES - HALE END COURT,CARDNET CHARGES,H605,CARDNET CHARGES,INDEPENDENT LIVING SERVICES,FINANCIAL SERVICES
http://statistics.data.gov.uk/id/local-authority/43UM,WOKING BOROUGH COUNCIL,31/03/2022,06/05/2022,0000476761/022,LLOYDS BANK PLC,00018000,2.33,INDEPENDENT LIVING SERVICES - HALE END COURT,CARDNET CHARGES,H605,CARDNET CHARGES,INDEPENDENT LIVING SERVICES,FINANCIAL SERVICES
http://statistics.data.gov.uk/id/local-authority/43UM,WOKING BOROUGH COUNCIL,31/03/2022,06/05/2022,0000476761/016,LLOYDS BANK PLC,00018000,6.01,INDEPENDENT LIVING SERVICES - THE VYNE,CARD BANKING FEES - EXEMPT VAT,H618,CARD BANKING FEES - EXEMPT VAT,INDEPENDENT LIVING SERVICES,FINANCIAL SERVICES
http://statistics.data.gov.uk/id/local-authority/43UM,WOKING BOROUGH COUNCIL,31/03/2022,06/05/2022,0000476761/015,LLOYDS BANK PLC,00018000,27.93,INDEPENDENT LIVING SERVICES - THE VYNE,CARDNET CHARGES,H605,CARDNET CHARGES,INDEPENDENT LIVING SERVICES,FINANCIAL SERVICES
http://statistics.data.gov.uk/id/local-authority/43UM,WOKING BOROUGH COUNCIL,31/03/2022,06/05/2022,0000476761/006,LLOYDS BANK PLC,00018000,5.53,INDEPENDENT LIVING SERVICES - BROCKHILL EXTRA CARE,CARD BANKING FEES - EXEMPT VAT,H618,CARD BANKING FEES - EXEMPT VAT,INDEPENDENT LIVING SERVICES,FINANCIAL SERVICES
http://statistics.data.gov.uk/id/local-authority/43UM,WOKING BOROUGH COUNCIL,31/03/2022,06/05/2022,0000476761/008,LLOYDS BANK PLC,00018000,5.60,INDEPENDENT LIVING SERVICES - BROCKHILL EXTRA CARE,CARD BANKING FEES - EXEMPT VAT,H618,CARD BANKING FEES - EXEMPT VAT,INDEPENDENT LIVING SERVICES,FINANCIAL SERVICES
http://statistics.data.gov.uk/id/local-authority/43UM,WOKING BOROUGH COUNCIL,31/03/2022,06/05/2022,0000476761/005,LLOYDS BANK PLC,00018000,2.70,INDEPENDENT LIVING SERVICES - BROCKHILL EXTRA CARE,CARDNET CHARGES,H605,CARDNET CHARGES,INDEPENDENT LIVING SERVICES,FINANCIAL SERVICES
http://statistics.data.gov.uk/id/local-authority/43UM,WOKING BOROUGH COUNCIL,31/03/2022,06/05/2022,0000476761/007,LLOYDS BANK PLC,00018000,1.26,INDEPENDENT LIVING SERVICES - BROCKHILL EXTRA CARE,CARDNET CHARGES,H605,CARDNET CHARGES,INDEPENDENT LIVING SERVICES,FINANCIAL SERVICES
http://statistics.data.gov.uk/id/local-authority/43UM,WOKING BOROUGH COUNCIL,31/03/2022,06/05/2022,0000476761/010,LLOYDS BANK PLC,00018000,5.51,INDEPENDENT LIVING SERVICES - MOORCROFT,CARD BANKING FEES - EXEMPT VAT,H618,CARD BANKING FEES - EXEMPT VAT,INDEPENDENT LIVING SERVICES,FINANCIAL SERVICES
http://statistics.data.gov.uk/id/local-authority/43UM,WOKING BOROUGH COUNCIL,31/03/2022,06/05/2022,0000476761/009,LLOYDS BANK PLC,00018000,2.89,INDEPENDENT LIVING SERVICES - MOORCROFT,CARDNET CHARGES,H605,CARDNET CHARGES,INDEPENDENT LIVING SERVICES,FINANCIAL SERVICES
http://statistics.data.gov.uk/id/local-authority/43UM,WOKING BOROUGH COUNCIL,31/03/2022,06/05/2022,0000476761/004,LLOYDS BANK PLC,00018000,5.51,ASSET MANAGEMENT - PEACOCK WALK MARKET,CARD BANKING FEES - EXEMPT VAT,H618,CARD BANKING FEES - EXEMPT VAT,ASSET MANAGEMENT,FINANCIAL SERVICES
http://statistics.data.gov.uk/id/local-authority/43UM,WOKING BOROUGH COUNCIL,31/03/2022,06/05/2022,0000476761/003,LLOYDS BANK PLC,00018000,6.56,ASSET MANAGEMENT - PEACOCK WALK MARKET,CARDNET CHARGES,H605,CARDNET CHARGES,ASSET MANAGEMENT,FINANCIAL SERVICES
http://statistics.data.gov.uk/id/local-authority/43UM,WOKING BOROUGH COUNCIL,05/04/2022,06/05/2022,0000476731/001,LLOYDS BANK PLC,00018000,161.50,FINANCIAL SERVICES - CORPORATE MANAGEMENT (FINANCE),BANK CHARGES,H625,BANK CHARGES,FINANCIAL SERVICES,FINANCIAL SERVICES
http://statistics.data.gov.uk/id/local-authority/43UM,WOKING BOROUGH COUNCIL,03/05/2022,06/05/2022,0030003435/001,LYONS AND COMPANY,40440200,"80,168.85",HOUSING SERVICES - SHARED OWENERSHIP PURCHASES,DEED OF SURRENDER,Q102,DEED OF SURRENDER,HOUSING SERVICES,FINANCIAL SERVICES
http://statistics.data.gov.uk/id/local-authority/43UM,WOKING BOROUGH COUNCIL,29/04/2022,06/05/2022,0030003434/001,"MINISTRY OF HOUSING, COMMUNITIES AND LOC",40955300,"535,801.04",FINANCIAL SERVICES - CAP RECS UNAPP-HRA SOCH,POOLING PAYMENT TO ODPM,T709,POOLING PAYMENT TO ODPM,FINANCIAL SERVICES,FINANCIAL SERVICES
http://statistics.data.gov.uk/id/local-authority/43UM,WOKING BOROUGH COUNCIL,06/05/2022,06/05/2022,GPC/00018909,NEWITTS.COM,PROCUREMENT CARD,242.37,NEIGHBOURHOOD SERVICES - JUBILEE INFRASTRUCTURE,MAIN CONTRACTOR,Q200,TABLES TENNIS EQUIPMENT,RIETTE THOMAS,SPORTING GOODS STORES
http://statistics.data.gov.uk/id/local-authority/43UM,WOKING BOROUGH COUNCIL,03/05/2022,06/05/2022,0030003436/001,PUBLIC WORKS LOAN BOARD,00021400,"121,500.00",FINANCIAL SERVICES - INTEREST PAYABLE & SIMILAR CHG,PWLB MATURITY LOAN,U112,PWLB MATURITY LOAN,FINANCIAL SERVICES,FINANCIAL SERVICES
http://statistics.data.gov.uk/id/local-authority/43UM,WOKING BOROUGH COUNCIL,03/05/2022,06/05/2022,0030003437/001,PUBLIC WORKS LOAN BOARD,00021400,"64,350.00",FINANCIAL SERVICES - INTEREST PAYABLE & SIMILAR CHG,PWLB MATURITY LOAN,U112,PWLB MATURITY LOAN,FINANCIAL SERVICES,FINANCIAL SERVICES
http://statistics.data.gov.uk/id/local-authority/43UM,WOKING BOROUGH COUNCIL,03/05/2022,06/05/2022,0030003438/001,PUBLIC WORKS LOAN BOARD,00021400,"87,250.00",FINANCIAL SERVICES - INTEREST PAYABLE & SIMILAR CHG,PWLB MATURITY LOAN,U112,PWLB MATURITY LOAN,FINANCIAL SERVICES,FINANCIAL SERVICES
http://statistics.data.gov.uk/id/local-authority/43UM,WOKING BOROUGH COUNCIL,03/05/2022,06/05/2022,0030003439/001,PUBLIC WORKS LOAN BOARD,00021400,"51,750.00",FINANCIAL SERVICES - INTEREST PAYABLE & SIMILAR CHG,PWLB MATURITY LOAN,U112,PWLB MATURITY LOAN,FINANCIAL SERVICES,FINANCIAL SERVICES
http://statistics.data.gov.uk/id/local-authority/43UM,WOKING BOROUGH COUNCIL,04/05/2022,06/05/2022,0030003442/001,PUBLIC WORKS LOAN BOARD,00021400,"105,000.00",FINANCIAL SERVICES - INTEREST PAYABLE & SIMILAR CHG,PWLB MATURITY LOAN,U112,PWLB MATURITY LOAN,FINANCIAL SERVICES,FINANCIAL SERVICES
http://statistics.data.gov.uk/id/local-authority/43UM,WOKING BOROUGH COUNCIL,04/05/2022,06/05/2022,0030003441/001,PUBLIC WORKS LOAN BOARD,00021400,"191,000.00",FINANCIAL SERVICES - INTEREST PAYABLE & SIMILAR CHG,PWLB ANNUITY,U111,PWLB ANNUITY,FINANCIAL SERVICES,FINANCIAL SERVICES
http://statistics.data.gov.uk/id/local-authority/43UM,WOKING BOROUGH COUNCIL,01/05/2022,06/05/2022,0000477395/001,SAGE UK,40900000,339.70,INFORMATION TECHNOLOGY - I.T.S. ICT,PC & SERVER SYSTEMS SOFTWARE,G193,PC & SERVER SYSTEMS SOFTWARE,INFORMATION TECHNOLOGY,INFORMATION COMMUNICATION TECHNOLOGY
http://statistics.data.gov.uk/id/local-authority/43UM,WOKING BOROUGH COUNCIL,06/05/2022,06/05/2022,GPC/00018917,SAINSBURY'S S/MKT,PROCUREMENT CARD,5.56,INDEPENDENT LIVING SERVICES - MEALS ON WHEELS,PROVISIONS,G410,GROCERIES AND BATTERIES,REBECCA STEVENS,GROCERY STORES
http://statistics.data.gov.uk/id/local-authority/43UM,WOKING BOROUGH COUNCIL,06/05/2022,06/05/2022,GPC/00018917,SAINSBURY'S S/MKT,PROCUREMENT CARD,5.60,INDEPENDENT LIVING SERVICES - MEALS SERVICE -THE VYNE,PROVISIONS,G410,GROCERIES AND BATTERIES,REBECCA STEVENS,GROCERY STORES
http://statistics.data.gov.uk/id/local-authority/43UM,WOKING BOROUGH COUNCIL,06/05/2022,06/05/2022,GPC/00018917,SAINSBURY'S S/MKT,PROCUREMENT CARD,8.00,INDEPENDENT LIVING SERVICES - MEALS SERVICE - BROCKHILL,LONE WORKER,G162,GROCERIES AND BATTERIES,REBECCA STEVENS,GROCERY STORES
http://statistics.data.gov.uk/id/local-authority/43UM,WOKING BOROUGH COUNCIL,06/05/2022,06/05/2022,GPC/00018912,SAINSBURYS S/MKTS,PROCUREMENT CARD,9.70,NEIGHBOURHOOD SERVICES - CAR PARKS ADMIN&OPERATIONAL EX,PROVISIONS,G410,TEA COFFEE FOR CONTROL ROOM,HAYLEY HEWITT-DUTTON,GROCERY STORES
http://statistics.data.gov.uk/id/local-authority/43UM,WOKING BOROUGH COUNCIL,06/05/2022,06/05/2022,GPC/00018918,SHELL TRIDENT GARAGE,PROCUREMENT CARD,104.07,HOUSING SERVICES - HOME IMPS & BEN AGENCY,TRAVEL EXPENSES-OFFICERS,F600,FUEL FOR HP VAN,LEIGH ROBERTS,SERVICE STATIONS
http://statistics.data.gov.uk/id/local-authority/43UM,WOKING BOROUGH COUNCIL,06/05/2022,06/05/2022,GPC/00018921,SP NATURESPY,PROCUREMENT CARD,385.39,NEIGHBOURHOOD SERVICES - EAST NEIGHBOURHOOD TEAM,EQUIPMENT,G100,WILDLIFE TRAIL CAMERA,MISS TRACEY L HASKINS,CAMERA AND PHOTO SUPPLY STORE
http://statistics.data.gov.uk/id/local-authority/43UM,WOKING BOROUGH COUNCIL,06/05/2022,06/05/2022,GPC/00018911,SUMUP  *M  BATEBI,PROCUREMENT CARD,7.92,CORPORATE STRATEGY - BOROUGH ELECTIONS,TRAVEL ALLOWNCE,F800,MINI CAB TO COUNT VENUE,IOANNA KOUTSIONI,TAXICABS/LIMOUSINES
http://statistics.data.gov.uk/id/local-authority/43UM,WOKING BOROUGH COUNCIL,06/05/2022,06/05/2022,GPC/00018907,SWRAILWAYSELFSERVE,PROCUREMENT CARD,5.70,CORPORATE STRATEGY - TOWN CENTRE FORUM,TRAVEL EXPENSES-OFFICERS,F600,TRAVEL TO BYFLEET,MR GLENN J THOROGOOD,PASSENGER RAILWAYS
http://statistics.data.gov.uk/id/local-authority/43UM,WOKING BOROUGH COUNCIL,06/05/2022,06/05/2022,GPC/00018910,TIMPSON LTD,PROCUREMENT CARD,72.00,INDEPENDENT LIVING SERVICES - HOME SUPPORT SERVICE,EQUIPMENT,G100,KEYS,JULIE COWELL,MISC SPECIALITY RETAIL
http://statistics.data.gov.uk/id/local-authority/43UM,WOKING BOROUGH COUNCIL,06/05/2022,06/05/2022,GPC/00018905,WAITROSE 181,PROCUREMENT CARD,7.10,INDEPENDENT LIVING SERVICES - BROCKHILL EXTRA CARE,STEP DOWN,H300,STEPDOWN ITEMS,OVIDIU MITROFAN,GROCERY STORES
http://statistics.data.gov.uk/id/local-authority/43UM,WOKING BOROUGH COUNCIL,06/05/2022,06/05/2022,GPC/00018908,WORKWEAR EXPRESS,PROCUREMENT CARD,941.63,HOUSING SERVICES - STRATEGY HOUSING & DEVELOPMENT,STAFF TRAINING,C531,PPE FOR HOUSING TEAM,GIUSEPPE AMICO,UNIFORMS AND COMMERCIAL CLOTHING
http://statistics.data.gov.uk/id/local-authority/43UM,WOKING BOROUGH COUNCIL,06/05/2022,06/05/2022,GPC/00018919,WWW.GARDENGAMES.COM,PROCUREMENT CARD,339.99,NEIGHBOURHOOD SERVICES - JUBILEE INFRASTRUCTURE,MAIN CONTRACTOR,Q200,GARDEN GAMES FOR SUMMER SQUARE,RIETTE THOMAS,HOBBY TOY AND GAME SHOPS
http://statistics.data.gov.uk/id/local-authority/43UM,WOKING BOROUGH COUNCIL,08/05/2022,08/05/2022,GPC/00018916,AMZNBUSINESS,PROCUREMENT CARD,20.82,INDEPENDENT LIVING SERVICES - MEALS SERVICE - ST MARYS,NEW EQUIPMENT,G105,HAND MIXER ST MARY'S,REBECCA STEVENS,MISC SPECIALITY RETAIL
http://statistics.data.gov.uk/id/local-authority/43UM,WOKING BOROUGH COUNCIL,08/05/2022,08/05/2022,GPC/00018901,AMZNMKTPLACE,PROCUREMENT CARD,24.99,INDEPENDENT LIVING SERVICES - MOORCROFT,FIXTURES & FITTINGS - NEW,D800,JUBILEE GAMES,RICHARD BUCKENHAM,MISC SPECIALITY RETAIL
http://statistics.data.gov.uk/id/local-authority/43UM,WOKING BOROUGH COUNCIL,08/05/2022,08/05/2022,GPC/00018913,BOOKERECOMM,PROCUREMENT CARD,37.99,INDEPENDENT LIVING SERVICES - MEALS SERVICE - HALE END COURT,PROVISIONS,G410,GROCERIES FOR KITCHENS,REBECCA STEVENS,CATERERS
http://statistics.data.gov.uk/id/local-authority/43UM,WOKING BOROUGH COUNCIL,08/05/2022,08/05/2022,GPC/00018913,BOOKERECOMM,PROCUREMENT CARD,116.00,INDEPENDENT LIVING SERVICES - MEALS SERVICE - HALE END COURT,PROVISIONS,G410,GROCERIES FOR KITCHENS,REBECCA STEVENS,CATERERS
http://statistics.data.gov.uk/id/local-authority/43UM,WOKING BOROUGH COUNCIL,08/05/2022,08/05/2022,GPC/00018913,BOOKERECOMM,PROCUREMENT CARD,17.98,INDEPENDENT LIVING SERVICES - MEALS ON WHEELS,PROVISIONS,G410,GROCERIES FOR KITCHENS,REBECCA STEVENS,CATERERS
http://statistics.data.gov.uk/id/local-authority/43UM,WOKING BOROUGH COUNCIL,08/05/2022,08/05/2022,GPC/00018913,BOOKERECOMM,PROCUREMENT CARD,96.53,INDEPENDENT LIVING SERVICES - MEALS ON WHEELS,PROVISIONS,G410,GROCERIES FOR KITCHENS,REBECCA STEVENS,CATERERS
http://statistics.data.gov.uk/id/local-authority/43UM,WOKING BOROUGH COUNCIL,08/05/2022,08/05/2022,GPC/00018913,BOOKERECOMM,PROCUREMENT CARD,18.71,INDEPENDENT LIVING SERVICES - MEALS SERVICE -THE VYNE,PROVISIONS,G410,GROCERIES FOR KITCHENS,REBECCA STEVENS,CATERERS
http://statistics.data.gov.uk/id/local-authority/43UM,WOKING BOROUGH COUNCIL,08/05/2022,08/05/2022,GPC/00018913,BOOKERECOMM,PROCUREMENT CARD,32.47,INDEPENDENT LIVING SERVICES - MEALS SERVICE -THE VYNE,PROVISIONS,G410,GROCERIES FOR KITCHENS,REBECCA STEVENS,CATERERS
http://statistics.data.gov.uk/id/local-authority/43UM,WOKING BOROUGH COUNCIL,08/05/2022,08/05/2022,GPC/00018913,BOOKERECOMM,PROCUREMENT CARD,45.27,INDEPENDENT LIVING SERVICES - MEALS SERVICE - ST MARYS,PROVISIONS,G410,GROCERIES FOR KITCHENS,REBECCA STEVENS,CATERERS
http://statistics.data.gov.uk/id/local-authority/43UM,WOKING BOROUGH COUNCIL,08/05/2022,08/05/2022,GPC/00018913,BOOKERECOMM,PROCUREMENT CARD,110.87,INDEPENDENT LIVING SERVICES - MEALS SERVICE - ST MARYS,PROVISIONS,G410,GROCERIES FOR KITCHENS,REBECCA STEVENS,CATERERS
http://statistics.data.gov.uk/id/local-authority/43UM,WOKING BOROUGH COUNCIL,08/05/2022,08/05/2022,GPC/00018913,BOOKERECOMM,PROCUREMENT CARD,46.64,INDEPENDENT LIVING SERVICES - MEALS SERVICE - BROCKHILL,PROVISIONS,G410,GROCERIES FOR KITCHENS,REBECCA STEVENS,CATERERS
http://statistics.data.gov.uk/id/local-authority/43UM,WOKING BOROUGH COUNCIL,08/05/2022,08/05/2022,GPC/00018913,BOOKERECOMM,PROCUREMENT CARD,129.07,INDEPENDENT LIVING SERVICES - MEALS SERVICE - BROCKHILL,PROVISIONS,G410,GROCERIES FOR KITCHENS,REBECCA STEVENS,CATERERS
http://statistics.data.gov.uk/id/local-authority/43UM,WOKING BOROUGH COUNCIL,08/05/2022,08/05/2022,GPC/00018904,CHARTERED MANAGEME,PROCUREMENT CARD,237.00,NEIGHBOURHOOD SERVICES - REGULATION AND ENFORCEMENT,GRANTS,H100,CMI SUBSCRIPTION,G D MCMANUS,MEMBER ORGANISATIONS - DEF
http://statistics.data.gov.uk/id/local-authority/43UM,WOKING BOROUGH COUNCIL,08/05/2022,08/05/2022,GPC/00018920,CLOUD NEXT,PROCUREMENT CARD,13.98,INFORMATION TECHNOLOGY - I.T.S. ICT,PC & SERVER SYSTEMS SOFTWARE,G193,DOMAIN RENEWAL,ANDREW GRESHAM,COMPUTERS/PERIPHERALS/SOFTWARE
http://statistics.data.gov.uk/id/local-authority/43UM,WOKING BOROUGH COUNCIL,08/05/2022,08/05/2022,GPC/00018903,MAILCHIMP,PROCUREMENT CARD,61.57,CORPORATE STRATEGY - PUBLIC RELATIONS,GENERAL PUBLIC RELATIONS EXPNS,H915,MAILCHIMP ENEWS SENDING COSTS,MISS K MAIR,DIGITAL GOODS-MULTI-CATEGORY
http://statistics.data.gov.uk/id/local-authority/43UM,WOKING BOROUGH COUNCIL,09/05/2022,09/05/2022,GPC/00018926,3C_*WOKING BOROUGH COUNC,PROCUREMENT CARD,4.00,INDEPENDENT LIVING SERVICES - FAMILY CENTRES,PARKING COSTS,F510,TOWN CENTRE MEETING,NICOLA NORMAN,AUTO PARKING LOTS/GARAGES
http://statistics.data.gov.uk/id/local-authority/43UM,WOKING BOROUGH COUNCIL,09/05/2022,09/05/2022,GPC/00018930,AMZNBUSINESS,PROCUREMENT CARD,5.81,CORPORATE MANAGEMENT GROUP - STAFF TRAINING/GENERAL COSTS,HEALTH CARE,A780,SILVER SNAP FRAME SIGN HOLDER,LISA HARRINGTON,MISC SPECIALITY RETAIL
http://statistics.data.gov.uk/id/local-authority/43UM,WOKING BOROUGH COUNCIL,09/05/2022,09/05/2022,GPC/00018923,AMZNMKTPLACE,PROCUREMENT CARD,24.16,ASSET MANAGEMENT - CIVIC OFFICES,CLOTHING/UNIFORMS,G510,STEEL TOE CAP SAFETY BOOTS,MR C NORTON,MISC SPECIALITY RETAIL
http://statistics.data.gov.uk/id/local-authority/43UM,WOKING BOROUGH COUNCIL,09/05/2022,09/05/2022,GPC/00018928,ASDA STORES 4823,PROCUREMENT CARD,14.55,INDEPENDENT LIVING SERVICES - PARKVIEW,PROVISIONS,G410,CAFE,DONNA GREGORY,GROCERY STORES
http://statistics.data.gov.uk/id/local-authority/43UM,WOKING BOROUGH COUNCIL,09/05/2022,09/05/2022,GPC/00018934,ASDA STORES 4823,PROCUREMENT CARD,39.91,INDEPENDENT LIVING SERVICES - FAMILY SUPPORT PROGRAMME,FAMILY ENABLING (FSP PROJECT),H137,GROCERIES FOR CLIENT,PALLAVI SHARAN,GROCERY STORES
http://statistics.data.gov.uk/id/local-authority/43UM,WOKING BOROUGH COUNCIL,09/05/2022,09/05/2022,GPC/00018936,CLOUD NEXT,PROCUREMENT CARD,16.99,INFORMATION TECHNOLOGY - I.T.S. ICT,PC & SERVER SYSTEMS SOFTWARE,G193,DOMAIN RENEWAL,ANDREW GRESHAM,COMPUTERS/PERIPHERALS/SOFTWARE
http://statistics.data.gov.uk/id/local-authority/43UM,WOKING BOROUGH COUNCIL,09/05/2022,09/05/2022,GPC/00018927,JUSTPARK PARKING LIMITED,PROCUREMENT CARD,3.20,INDEPENDENT LIVING SERVICES - FAMILY SUPPORT PROGRAMME,PARKING COSTS,F510,PARKING FOR HOME VISIT,PALLAVI SHARAN,AUTO PARKING LOTS/GARAGES
http://statistics.data.gov.uk/id/local-authority/43UM,WOKING BOROUGH COUNCIL,09/05/2022,09/05/2022,GPC/00018932,POUNDLAND LTD,PROCUREMENT CARD,28.33,INDEPENDENT LIVING SERVICES - PARKVIEW,PROMOTIONS & GRANTS,H467,JUBILEE TABLE DEC,DONNA GREGORY,DISCOUNT STORES
http://statistics.data.gov.uk/id/local-authority/43UM,WOKING BOROUGH COUNCIL,09/05/2022,09/05/2022,GPC/00018933,TESCO STORE 2160,PROCUREMENT CARD,2.96,INDEPENDENT LIVING SERVICES - MEALS SERVICE - HALE END COURT,PROVISIONS,G410,BANANAS,TERESA DUNNE,GROCERY STORES
http://statistics.data.gov.uk/id/local-authority/43UM,WOKING BOROUGH COUNCIL,09/05/2022,09/05/2022,GPC/00018929,WAITROSE 181,PROCUREMENT CARD,8.25,INDEPENDENT LIVING SERVICES - BROCKHILL EXTRA CARE,STEP DOWN,H300,STEPDOWN ITEMS,OVIDIU MITROFAN,GROCERY STORES
http://statistics.data.gov.uk/id/local-authority/43UM,WOKING BOROUGH COUNCIL,09/05/2022,09/05/2022,GPC/00018924,WILKO RETAIL LIMITED,PROCUREMENT CARD,15.00,ASSET MANAGEMENT - FACILITIES MANAGEMENT,FACILITIES MANAGEMENT REPAIRS,D908,FLOOR MOPS FOR MIDAS HOUSE,MR C NORTON,MISC GEN MERCHANDISE - DEF
http://statistics.data.gov.uk/id/local-authority/43UM,WOKING BOROUGH COUNCIL,09/05/2022,09/05/2022,GPC/00018935,WOKING GARDEN CENTRE,PROCUREMENT CARD,42.50,INDEPENDENT LIVING SERVICES - MOORCROFT,FIXTURES & FITTINGS - NEW,D800,GARDEN TOOLS,RICHARD BUCKENHAM,LAWN/GARDEN SUPPLY/NURSERY
http://statistics.data.gov.uk/id/local-authority/43UM,WOKING BOROUGH COUNCIL,09/05/2022,09/05/2022,GPC/00018925,WWW.CMWLTD.CO.UK,PROCUREMENT CARD,71.17,ASSET MANAGEMENT - FACILITIES MANAGEMENT,FACILITIES MANAGEMENT REPAIRS,D908,SOCKET INSERTS FOR MIDAS HOUSE 3RD FLOOR,MR D JONES,ELECTRICAL PARTS/EQUIPMENT
http://statistics.data.gov.uk/id/local-authority/43UM,WOKING BOROUGH COUNCIL,09/05/2022,09/05/2022,GPC/00018931,WWW.SCREWFIX.COM,PROCUREMENT CARD,95.33,CORPORATE STRATEGY - LEISURE MANAGEMENT CONTRACT,R&M BUILDINGS - CONTRACTORS,D100,ITEMS TO RE ESTABLISH WATER SUPPLY,RICK HAZLEWOOD,LUMBER/BUILD SUPPLY STORES
http://statistics.data.gov.uk/id/local-authority/43UM,WOKING BOROUGH COUNCIL,10/05/2022,10/05/2022,GPC/00018951,3C_*WOKING BOROUGH COUNC,PROCUREMENT CARD,1.33,HOUSING SERVICES - SHEERWATER REGENERATION,TRAVEL EXPENSES-OFFICERS,F600,PARKING,BEN JONES,AUTO PARKING LOTS/GARAGES
http://statistics.data.gov.uk/id/local-authority/43UM,WOKING BOROUGH COUNCIL,10/05/2022,10/05/2022,GPC/00018953,AMZNBUSINESS,PROCUREMENT CARD,16.25,INDEPENDENT LIVING SERVICES - MEALS MANAGEMENT,NEW EQUIPMENT,G105,KEY BOX,REBECCA STEVENS,MISC SPECIALITY RETAIL
http://statistics.data.gov.uk/id/local-authority/43UM,WOKING BOROUGH COUNCIL,10/05/2022,10/05/2022,GPC/00018946,AMZNMKTPLACE,PROCUREMENT CARD,104.15,INFORMATION TECHNOLOGY - ICT GENERAL REPLACEMENT 2022/23,ADDITIONAL EQUIPMENT,Q020,DELL D3100 DOCKING STATION,DAVE FAYERS,MISC SPECIALITY RETAIL
http://statistics.data.gov.uk/id/local-authority/43UM,WOKING BOROUGH COUNCIL,10/05/2022,10/05/2022,GPC/00018945,AMZNMKTPLACE,PROCUREMENT CARD,12.46,INFORMATION TECHNOLOGY - ICT GENERAL REPLACEMENT 2022/23,ADDITIONAL EQUIPMENT,Q020,RJ45 PORT BLOCKERS,DAVE FAYERS,MISC SPECIALITY RETAIL
